Workbook

Sheet Model
A1: Year | B1: lnActual | C1: Regress | D1: Proj | F1: Actual | G1: Regrs | H1: BkTst
A2: 1998 | B2: 9.396473323 | C2: 9.392962649 | F2: 12045.824 | G2: 12003.60919 | J2: bt %error | K2: 0.003413824127
A3: 1999 | B3: 9.443304424 | C3: 9.457216642 | F3: 12623.361 | G3: 12800.20726
A4: 2000 | B4: 9.483266757 | C4: 9.503427829 | F4: 13138.03525 | G4: 13405.60027
A5: 2001 | B5: 9.492764923 | C5: 9.47222613 | F5: 13263.417 | G5: 12993.78091
A6: 2002 | B6: 9.509582148 | C6: 9.515341367 | F6: 13488.357 | G6: 13566.26352
A7: 2003 | B7: 9.537160408 | C7: 9.552404768 | F7: 13865.51925 | G7: 14078.50955
A8: 2004 | B8: 9.574962374 | C8: 9.571677765 | F8: 14399.696 | G8: 14352.47621
A9: 2005 | B9: 9.609201656 | C9: 9.618879915 | F9: 14901.269 | G9: 15046.18749
A10: 2006 | B10: 9.636649607 | C10: 9.628868087 | F10: 15315.94325 | G10: 15197.22443
A11: 2007 | B11: 9.656555248 | C11: 9.634247729 | F11: 15623.8715 | G11: 15279.20036
A12: 2008 | B12: 9.657776382 | C12: 9.619688001 | F12: 15642.962 | G12: 15058.35102
A13: 2009 | B13: 9.63143354 | C13: 9.640158416 | F13: 15236.26225 | G13: 15369.77835
A14: 2010 | B14: 9.658161721 | C14: 9.665662225 | F14: 15648.991 | G14: 15766.8076
A15: 2011 | B15: 9.673541794 | C15: 9.659940479 | F15: 15891.534 | G15: 15676.85154
A16: 2012 | B16: 9.696092466 | C16: 9.72499157 | F16: 16253.97 | G16: 16730.54835
A17: 2013 | B17: 9.714343626 | C17: 9.727468661 | F17: 16553.3475 | G17: 16772.04281
A18: 2014 | B18: 9.736963658 | C18: 9.735636245 | F18: 16932.05175 | G18: 16909.59083
A19: 2015 | B19: 9.763667585 | C19: 9.751281599 | D19: 9.751281599 | F19: 17390.29525 | G19: 17176.22775 | H19: 17176.22775
A20: 2016 | B20: 9.78020482 | D20: 9.779608008 | F20: 17680.27375 | H20: 17669.7251
A21: 2017 | B21: 9.802510969 | D21: 9.79629176 | F21: 18079.084 | H21: 17966.99532
A22: 2018 | B22: 9.831281659 | D22: 9.814909172 | F22: 18606.7865 | H22: 18304.62743

Sheet Model.rGDP
A2: Estimate Std. Error t value Pr(>|t|)
A3: (Intercept) -6.762451 1.234080 -5.4797 0.0001057 ***
A4: InERXMWh 0.126060 0.010978 11.4830 3.537e-08 ***
A5: lnCO2L2 0.974791 0.072085 13.5228 4.925e-09 ***
A6: TN10yL2 -3.802122 0.411335 -9.2434 4.447e-07 ***
A7: BBBL1 -1.315203 0.264512 -4.9722 0.0002552 ***
A8: ---
A9: Signif. codes: 0 ‘***’ 0.001 ‘**’ 0.01 ‘*’ 0.05 ‘.’ 0.1 ‘ ’ 1
A11: Multiple R-squared: 0.9741, | B11: Adjusted R-squared: 0.9662
A12: RMSE: 0.0164875 | B12: RSE: 0.0194008
A13: Augmented Dickey-Fuller Test
A14: alternative: stationary
A16: Type 1: no drift no trend
A17: lag ADF p.value
A18: [1,] 0 -3.72 0.010
A19: [2,] 1 -3.24 0.010
A20: [3,] 2 -2.17 0.032
A21: Type 2: with drift no trend
A22: lag ADF p.value
A23: [1,] 0 -3.60 0.0152
A24: [2,] 1 -3.11 0.0413
A25: [3,] 2 -2.08 0.3024
A26: Type 3: with drift and trend
A27: lag ADF p.value
A28: [1,] 0 -3.51 0.0628
A29: [2,] 1 -2.99 0.1911
A30: [3,] 2 -1.98 0.5641
A31: ----
A32: Note: in fact, p.value = 0.01 means p.value <= 0.01
A34: KPSS Unit Root Test
A35: alternative: nonstationary
A37: Type 1: no drift no trend
A38: lag stat p.value
A39: 1 0.103 0.1
A40: -----
A41: Type 2: with drift no trend
A42: lag stat p.value
A43: 1 0.0997 0.1
A44: -----
A45: Type 1: with drift and trend
A46: lag stat p.value
A47: 1 0.0883 0.1
A48: -----------
A49: Note: p.value = 0.01 means p.value <= 0.01
A50: : p.value = 0.10 means p.value >= 0.10
A52: Phillips-Perron Unit Root Test
A53: alternative: stationary
A55: Type 1: no drift no trend
A56: lag Z_rho p.value
A57: 2 -15.039 0.0100
A58: -----
A59: Type 2: with drift no trend
A60: lag Z_rho p.value
A61: 2 -15.051 0.0224
A62: -----
A63: Type 3: with drift and trend
A64: lag Z_rho p.value
A65: 2 -15.246 0.1199
A66: ---------------
A67: Note: p-value = 0.01 means p.value <= 0.01
A69: Driver VIF
A70: lnERXMWh 7.693280
A71: lnCO2L2 2.307659
A72: TN10yL2 9.189428
A73: BBBL1 3.720670

Sheet FREDDrv
A1: Year | B1: rGDP | C1: rGDPg | D1: lnrGDP | E1: UNEMP | F1: TN10y | G1: TN5y | H1: TB3m | I1: MORT | J1: BBB | K1: PRIME | L1: CPI | M1: rDI | N1: rDIg | O1: lndrGDP | P1: dUNEMP | Q1: lndrDI | R1: t | S1: tlnrGDP | T1: explnrGDP | U1: DrGDP | V1: telnrGDP
A2: 1996 | B2: 11038.266 | C2: 0.03772567939 | D2: 9.309123242 | E2: 5.408333333 | F2: 6.443531746 | G2: 6.182103175 | H2: 5.145595238 | I2: 7.806153846 | J2: 7.8256 | K2: 8.271084337 | L2: 0.2728777826 | M2: 7979.708333 | N2: 0.03177211398 | R2: -3 | S2: =9.4772+0.0176*R2 -> 9.4244 | V2: =$X$2+$X$3*R2 -> 9.367 | W2: intercept | X2: 9.43
A3: 1997 | B3: 11529.157 | C3: 0.04447174946 | D3: 9.352634497 | E3: 4.941666667 | F3: 6.35396 | G3: 6.22468 | H3: 5.20144 | I3: 7.598846154 | J3: 7.205953307 | K3: 8.443227092 | L3: 0.1408758097 | M3: 8271.791667 | N3: 0.03660325931 | O3: =LN(B3/B2) -> 0.0435112547 | P3: =E3-E2 -> -0.4666666667 | Q3: =LN(M3/M2) -> 0.035949271 | R3: -2 | S3: =9.4772+0.0176*R3 -> 9.442 | U3: =B3-B2 -> 490.891 | V3: =$X$2+$X$3*R3 -> 9.388 | W3: gradient | X3: 0.021
A4: 1998 | B4: 12045.824 | C4: 0.04481394433 | D4: 9.396473323 | E4: 4.5 | F4: 5.26288 | G4: 5.15232 | H4: 4.90696 | I4: 6.942641509 | J4: 6.732900763 | K4: 8.355577689 | L4: 0.1333770765 | M4: 8757.533333 | N4: 0.0587226669 | O4: =LN(B4/B3) -> 0.04383882586 | P4: =E4-E3 -> -0.4416666667 | Q4: =LN(M4/M3) -> 0.05706315026 | R4: -1 | S4: =9.4772+0.0176*R4 -> 9.4596 | U4: =B4-B3 -> 516.667 | V4: 9.409
A5: 1999 | B5: 12623.361 | C5: 0.04794499737 | D5: 9.443304424 | E5: 4.216666667 | F5: 5.646135458 | G5: 5.550039841 | H5: 4.777211155 | I5: 7.44 | J5: 7.421363636 | K5: 7.997047244 | L5: 0.2212236927 | M5: 9053.066667 | N5: 0.03374618424 | O5: 0.0468311011 | P5: -0.2833333333 | Q5: 0.03318927616 | R5: 0 | S5: =9.4772+0.0176*R5 -> 9.4772 | U5: 577.537 | V5: 9.43
A6: 2000 | B6: 13138.03525 | C6: 0.04077157027 | D6: 9.483266757 | E6: 3.966666667 | F6: 6.030278884 | G6: 6.157768924 | H6: 5.999920319 | I6: 8.053461538 | J6: 8.304904215 | K6: 9.235119048 | L6: 0.2782956892 | M6: 9501.216667 | N6: 0.04950256267 | O6: 0.03996233257 | P6: -0.25 | Q6: 0.04831630207 | R6: 1 | S6: =9.4772+0.0176*R6 -> 9.4948 | T6: =9.4779*EXP(0.0018*R6) -> 9.494975583 | U6: 514.67425 | V6: 9.451
A7: 2001 | B7: 13263.417 | C7: 0.00954341708 | D7: 9.492764923 | E7: 4.741666667 | F7: 5.020685484 | G7: 4.556693548 | H7: 3.478669355 | I7: 6.967884615 | J7: 7.196744186 | K7: 6.938 | L7: 0.1289750689 | M7: 9759.233333 | N7: 0.02715617123 | O7: 0.009498166345 | P7: 0.775 | Q7: 0.02679398485 | R7: 2 | S7: =9.4772+0.0176*R7 -> 9.5124 | T7: =9.4779*EXP(0.0018*R7) -> 9.512081931 | U7: 125.38175 | V7: 9.472
A8: 2002 | B8: 13488.357 | C8: 0.01695943059 | D8: 9.509582148 | E8: 5.783333333 | F8: 4.61308 | G8: 3.81572 | H8: 1.63532 | I8: 6.537307692 | J8: 7.032824427 | K8: 4.67687747 | L8: 0.1962016403 | M8: 10047.83333 | N8: 0.02957199507 | O8: 0.01681722501 | P8: 1.041666667 | Q8: 0.02914317711 | R8: 3 | S8: 9.53 | T8: =9.4779*EXP(0.0018*R8) -> 9.529219097 | U8: 224.94 | V8: 9.493
A9: 2003 | B9: 13865.51925 | C9: 0.02796206017 | D9: 9.537160408 | E9: 5.991666667 | F9: 4.01388 | G9: 2.96616 | H9: 1.02804 | I9: 5.826981132 | J9: 5.292413793 | K9: 4.121541502 | L9: 0.1558327972 | M9: 10309.75833 | N9: 0.02606780898 | O9: 0.0275782599 | P9: 0.2083333333 | Q9: 0.02573383519 | R9: 4 | S9: 9.5476 | T9: 9.546387138 | U9: 377.16225 | V9: 9.514
A10: 2004 | B10: 14399.696 | C10: 0.03852554963 | D10: 9.574962374 | E10: 5.541666667 | F10: 4.27132 | G10: 3.42596 | H10: 1.39872 | I10: 5.839230769 | J10: 5.02973384 | K10: 4.343873518 | L10: 0.2677957369 | M10: 10652.74167 | N10: 0.03326783444 | O10: 0.03780196647 | P10: -0.45 | Q10: 0.03272643479 | R10: 5 | S10: 9.5652 | T10: 9.563586109 | U10: 534.17675 | V10: 9.535
A11: 2005 | B11: 14901.269 | C11: 0.03483219368 | D11: 9.609201656 | E11: 5.083333333 | F11: 4.28888 | G11: 4.04636 | H11: 3.21612 | I11: 5.866730769 | J11: 5.504022989 | K11: 6.189243028 | L11: 0.2816586791 | M11: 10811.36667 | N11: 0.01489053288 | O11: 0.03423928186 | P11: -0.4583333333 | Q11: 0.01478075729 | R11: 6 | S11: 9.5828 | T11: 9.580816066 | U11: 501.573 | V11: 9.556
A12: 2006 | B12: 15315.94325 | C12: 0.02782811652 | D12: 9.636649607 | E12: 4.608333333 | F12: 4.795 | G12: 4.74876 | H12: 4.85156 | I12: 6.413269231 | J12: 6.039269231 | K12: 7.961155378 | L12: 0.2101738288 | M12: 11226.59167 | N12: 0.03840633777 | O12: 0.02744795122 | P12: -0.475 | Q12: 0.03768717035 | R12: 7 | S12: 9.6004 | T12: 9.598077066 | U12: 414.67425 | V12: 9.577
A13: 2007 | B13: 15623.8715 | C13: 0.02010507907 | D13: 9.656555248 | E13: 4.616666667 | F13: 4.634661355 | G13: 4.431593625 | H13: 4.480956175 | I13: 6.337307692 | J13: 6.114961538 | K13: 8.053784861 | L13: 0.3344085104 | M13: 11492.83333 | N13: 0.02371527126 | O13: 0.01990564068 | P13: 0.008333333333 | Q13: 0.02343843254 | R13: 8 | S13: 9.618 | T13: 9.615369163 | U13: 307.92825 | V13: 9.598
A14: 2008 | B14: 15642.962 | C14: 0.001221880249 | D14: 9.657776382 | E14: 5.8 | F14: 3.664262948 | G14: 2.803545817 | H14: 1.39685259 | I14: 6.027169811 | J14: 7.366145038 | K14: 5.070866142 | L14: 0.01154409041 | M14: 11630.125 | N14: 0.01194585031 | O14: 0.001221134361 | P14: 1.183333333 | Q14: 0.01187506184 | R14: 9 | S14: 9.6356 | T14: 9.632692413 | U14: 19.0905 | V14: 9.619
A15: 2009 | B15: 15236.26225 | C15: -0.0259988965 | D15: 9.63143354 | E15: 9.283333333 | F15: 3.26412 | G15: 2.1978 | H15: 0.15092 | I15: 5.036538462 | J15: 7.377977099 | K15: 3.25 | L15: 0.2243710287 | M15: 11618.25833 | N15: -0.001020338704 | O15: -0.02634284238 | P15: 3.483333333 | Q15: -0.001020859604 | R15: 10 | S15: 9.6532 | T15: 9.650046874 | U15: -406.69975 | V15: 9.64
A16: 2010 | B16: 15648.991 | C16: 0.0270885827 | D16: 9.658161721 | E16: 9.608333333 | F16: 3.215059761 | G16: 1.930159363 | H16: 0.1384462151 | I16: 4.689807692 | J16: 4.820304183 | K16: 3.25 | L16: 0.1238875778 | M16: 11861.325 | N16: 0.02092109331 | O16: 0.02672818107 | P16: 0.325 | Q16: 0.02070525246 | R16: 11 | S16: 9.6708 | T16: 9.667432601 | U16: 412.72875 | V16: 9.661
A17: 2011 | B17: 15891.534 | C17: 0.01549895453 | D17: 9.673541794 | E17: 8.933333333 | F17: 2.78164 | G17: 1.51824 | H17: 0.05284 | I17: 4.447884615 | J17: 4.47137931 | K17: 3.25 | L17: 0.2442304455 | M17: 12107.26667 | N17: 0.0207347549 | O17: 0.01538007253 | P17: -0.675 | Q17: 0.02052271591 | R17: 12 | S17: 9.6884 | T17: 9.68484965 | U17: 242.543 | V17: 9.682
A18: 2012 | B18: 16253.97 | C18: 0.02280686056 | D18: 9.696092466 | E18: 8.075 | F18: 1.80344 | G18: 0.76172 | H18: 0.0876 | I18: 3.6575 | J18: 3.830384615 | K18: 3.25 | L18: 0.1446365427 | M18: 12504.43333 | N18: 0.03280399099 | O18: 0.02255067204 | P18: -0.8583333333 | Q18: 0.03227742479 | R18: 13 | S18: 9.706 | T18: 9.702298078 | U18: 362.436 | V18: 9.703
A19: 2013 | B19: 16553.3475 | C19: 0.01841873093 | D19: 9.714343626 | E19: 7.358333333 | F19: 2.35016 | G19: 1.17208 | H19: 0.05708 | I19: 3.975576923 | J19: 3.700269231 | K19: 3.25 | L19: 0.124656111 | M19: 12350.075 | N19: -0.01234428856 | O19: 0.0182511606 | P19: -0.7166666667 | Q19: -0.01242111217 | R19: 14 | S19: 9.7236 | T19: 9.719777942 | U19: 299.3775 | V19: 9.724
A20: 2014 | B20: 16932.05175 | C20: 0.02287780463 | D20: 9.736963658 | E20: 6.158333333 | F20: 2.53956 | G20: 1.6416 | H20: 0.03272 | I20: 4.168867925 | J20: 3.591302682 | K20: 3.25 | L20: 0.06349796432 | M20: 12821.78333 | N20: 0.0381947748 | O20: 0.02262003177 | P20: -1.2 | Q20: 0.03748341145 | R20: 15 | S20: 9.7412 | T20: 9.737289298 | U20: 378.70425 | V20: 9.745
A21: 2015 | B21: 17390.29525 | C21: 0.0270636723 | D21: 9.763667585 | E21: 5.275 | F21: 2.138286853 | G21: 1.531035857 | H21: 0.05250996016 | I21: 3.850576923 | J21: 3.856153846 | K21: 3.259920635 | L21: 0.06115335979 | M21: 13330.075 | N21: 0.0396428214 | O21: 0.02670392737 | P21: -0.8833333333 | Q21: 0.0388772132 | R21: 16 | S21: 9.7588 | T21: 9.754832202 | U21: 458.2435 | V21: 9.766
A22: 2016 | B22: 17680.27375 | C22: 0.01667473127 | D22: 9.78020482 | E22: 4.875 | F22: 1.83744 | G22: 1.33472 | H22: 0.31936 | I22: 3.654038462 | J22: 3.727519084 | K22: 3.510956175 | L22: 0.1714691886 | M22: 13575.71667 | N22: 0.01842762825 | O22: 0.01653723432 | P22: -0.4 | Q22: 0.01825989697 | R22: 17 | S22: 9.7764 | T22: 9.772406713 | U22: 289.9785 | V22: 9.787
A23: 2017 | B23: 18079.084 | C23: 0.02255679158 | D23: 9.802510969 | E23: 4.35 | F23: 2.32948 | G23: 1.90964 | H23: 0.94896 | I23: 3.989807692 | J23: 3.587038462 | K23: 4.097222222 | L23: 0.1743157934 | M23: 13956.71667 | N23: 0.02806481671 | O23: 0.02230614928 | P23: -0.525 | Q23: 0.02767821632 | R23: 18 | S23: 9.794 | T23: 9.790012886 | U23: 398.81025 | V23: 9.808
A24: 2018 | B24: 18606.7865 | C24: 0.02918856398 | D24: 9.831281659 | E24: 3.891666667 | F24: 2.91124498 | G24: 2.748995984 | H24: 1.971686747 | I24: 4.544615385 | J24: 4.310996169 | K24: 4.902390438 | L24: 0.1581660701 | M24: 14429.29167 | N24: 0.0338600411 | O24: 0.0287706898 | P24: -0.4583333333 | Q24: 0.03329941016 | R24: 19 | S24: 9.8116 | T24: 9.807650778 | U24: 527.7025 | V24: 9.829
A25: 2019 | B25: 19032.6715 | C25: 0.02288869171 | D25: 9.853912334 | E25: 3.683333333 | F25: 2.1414 | G25: 1.953 | H25: 2.10576 | I25: 3.935769231 | J25: 3.729501916 | K25: 5.287549407 | L25: 0.1886817958 | M25: 14755.63333 | N25: 0.02261661031 | O25: 0.0226306753 | P25: -0.2083333333 | Q25: 0.02236464674 | R25: 20 | S25: 9.8292 | T25: 9.825320447 | U25: 425.885 | V25: 9.85
A26: 2020 | B26: 18384.68725 | C26: -0.03404589051 | D26: 9.819273382 | E26: 8.108333333 | F26: 0.8892031873 | G26: 0.5330677291 | H26: 0.3602788845 | I26: 3.111698113 | J26: 2.837557252 | K26: 3.530632411 | L26: 0.1133211141 | M26: 15677.35 | N26: 0.06246540869 | O26: -0.0346389516 | P26: 4.425 | Q26: 0.06059206476 | R26: 21 | S26: 9.8468 | T26: 9.843021951 | U26: -647.98425 | V26: 9.871

Sheet ClnData
A1: Year | B1: CH4 | C1: GHG | D1: CO2 | E1: lnCH4 | F1: lnGHG | G1: lnCO2 | H1: lndCH4 | I1: lndGHG | J1: lndCO2 | K1: RnwElec | L1: RnwElecXH2O | M1: RnwElecH2O | N1: ElecNatGas | O1: ElecRXkWh | P1: lnERXMWh | Q1: lndERXMWh | R1: t | S1: explnCH4 | T1: explnCO2 | U1: t2lnERXMWh | V1: explnERXMWh | W1: tlnERXMWh | X1: CO2Pct | Y1: CH4Pct | Z1: EnPerGDP | AA1: lnEnPerGDP | AB1: ERXMWh | AC1: t2elnERXMWh
A2: 1996 | B2: 738600 | C2: 6426070 | D2: 5283110 | E2: =LN(B2) -> 13.51251178 | F2: =LN(C2) -> 15.67587371 | G2: =LN(D2) -> 15.4800255 | K2: 11.58145005 | L2: 1.970369551 | M2: 9.611080497 | N2: 13.11238033 | O2: 71943000000 | P2: =LN(O2/1000000) -> 11.18362942 | R2: -3 | S2: =13.429*EXP(-0.0004*R2) -> 13.44512447 | T2: =15.601*EXP(-0.0007*S2) -> 15.45485862 | U2: =11.125+0.0381*R2+0.0041*R2^2 -> 11.0476 | V2: =10.945*EXP(0.009*R2) -> 10.65343879 | W2: =10.917+0.1074*R2 -> 10.5948 | X2: =D2/C2 -> 0.8221370138 | Y2: =B2/C2 -> 0.114938057 | Z2: 177.7441618 | AA2: =LN(Z2) -> 5.180345223 | AB2: =O2/1000000 -> 71943 | AC2: =$AE$2+$AE$3*R2+$AE$4*R2^2 -> 11.1726 | AD2: intercept | AE2: 11.25
A3: 1997 | B3: 722830 | C3: 6675670 | D3: 5547990 | E3: =LN(B3) -> 13.49092934 | F3: =LN(C3) -> 15.71398013 | G3: =LN(D3) -> 15.52894626 | H3: =LN(B3/B2) -> -0.0215824393 | I3: =LN(C3/C2) -> 0.0381064199 | J3: =LN(D3/D2) -> 0.04892076053 | K3: 10.97782813 | L3: 1.904923997 | M3: 9.072904129 | N3: 13.76951817 | O3: 69953000000 | P3: =LN(O3/1000000) -> 11.15557887 | Q3: =LN(O3/O2) -> -0.02805055085 | R3: -2 | S3: 13.4397475 | T3: =15.601*EXP(-0.0007*S3) -> 15.45491679 | U3: =11.125+0.0381*R3+0.0041*R3^2 -> 11.0652 | V3: 10.7497525 | W3: =10.917+0.1074*R3 -> 10.7022 | X3: =D3/C3 -> 0.8310761317 | Y3: =B3/C3 -> 0.1082782702 | Z3: 171.9962364 | AA3: =LN(Z3) -> 5.147472595 | AB3: =O3/1000000 -> 69953 | AC3: =$AE$2+$AE$3*R3+$AE$4*R3^2 -> 11.1902 | AD3: coef1 | AE3: 0.0381
A4: 1998 | B4: 702980 | C4: 6709430 | D4: 5590700 | E4: 13.46308372 | F4: 15.71902456 | G4: 15.53661506 | H4: =LN(B4/B3) -> -0.02784562121 | I4: 0.005044425755 | J4: 0.007668802941 | K4: 9.608584982 | L4: 1.825835904 | M4: 7.782749078 | N4: 14.67862828 | O4: 69464000000 | P4: 11.14856391 | Q4: =LN(O4/O3) -> -0.00701495521 | R4: -1 | S4: 13.43437267 | T4: =15.601*EXP(-0.0007*S4) -> 15.45497494 | U4: 11.091 | V4: 10.84693695 | W4: 10.8096 | X4: 0.8332600534 | Y4: 0.1047749213 | Z4: 166.0198206 | AA4: 5.112107182 | AB4: 69464 | AC4: 11.216 | AD4: coef2 | AE4: 0.0041
A5: 1999 | B5: 688340 | C5: 6706400 | D5: 5610300 | E5: 13.44203818 | F5: 15.71857285 | G5: 15.54011475 | H5: -0.02104553999 | I5: -0.0004517051948 | J5: 0.0034996911 | K5: 9.069200581 | L5: 1.894730483 | M5: 7.174470098 | N5: 15.02290612 | O5: 73395000000 | P5: 11.20361109 | Q5: 0.05504718065 | R5: 0 | S5: 13.429 | T5: =15.601*EXP(-0.0007*S5) -> 15.45503306 | U5: 11.125 | V5: 10.945 | W5: 10.917 | X5: 0.8365591077 | Y5: 0.10263927 | Z5: 162.7725496 | AA5: 5.092353825 | AB5: 73395 | AC5: 11.25
A6: 2000 | B6: 678650 | C6: 6861150 | D6: 5776410 | E6: 13.42786081 | F6: 15.74138562 | G6: 15.56929294 | H6: -0.01417737117 | I6: 0.02281277183 | J6: 0.02917818841 | K6: 8.205996942 | L6: 1.91659722 | M6: 6.289399722 | N6: 15.75529356 | O6: 77160000000 | P6: 11.25363647 | Q6: 0.05002537463 | R6: 1 | S6: 13.42362947 | T6: =15.601*EXP(-0.0007*R6) -> 15.59008312 | U6: 11.1672 | V6: 11.04394961 | W6: 11.0244 | X6: 0.841901139 | Y6: 0.09891198997 | Z6: 160.7357874 | AA6: 5.079761945 | AB6: 77160 | AC6: 11.2922
A7: 2001 | B7: 672400 | C7: 6806970 | D7: 5749250 | E7: 13.41860868 | F7: 15.73345765 | G7: 15.56457997 | H7: -0.00925212921 | I7: -0.007927978944 | J7: -0.004712970932 | K7: 6.783992314 | L7: 1.880103604 | M7: 4.90388871 | N7: 17.19049367 | O7: 72174000000 | P7: 11.18683515 | Q7: -0.0668013178 | R7: 2 | S7: 13.4182611 | T7: =15.601*EXP(-0.0007*S7) -> 15.45514924 | U7: 11.2176 | V7: 11.14379378 | W7: 11.1318 | X7: 0.8446122137 | Y7: 0.09878110231 | Z7: 156.161949 | AA7: 5.050893603 | AB7: 72174 | AC7: 11.3426
A8: 2002 | B8: 659770 | C8: 6646960 | D8: 5594160 | E8: 13.39964657 | F8: 15.70967017 | G8: 15.53723375 | H8: -0.0189621121 | I8: -0.02378747994 | J8: -0.02734621507 | K8: 8.646361178 | L8: 2.014281247 | M8: 6.63207993 | N8: 17.69402387 | O8: 81103000000 | P8: 11.30347523 | Q8: 0.1166400816 | R8: 3 | S8: =13.429*EXP(-0.0004*R8) -> 13.41289487 | T8: =15.601*EXP(-0.0007*S8) -> 15.4552073 | U8: 11.2762 | V8: 11.2445406 | W8: 11.2392 | X8: 0.8416118045 | Y8: 0.09925890934 | Z8: 155.22527 | AA8: 5.044877417 | AB8: 81103 | AC8: 11.4012
A9: 2003 | B9: 659470 | C9: 6706390 | D9: 5659630 | E9: 13.39919176 | F9: 15.71857136 | G9: 15.54886908 | H9: -0.0004548073211 | I9: 0.008901195938 | J9: 0.01163532261 | K9: 8.889376121 | L9: 2.018029181 | M9: 6.87134694 | N9: 16.52897698 | O9: 81824000000 | P9: 11.31232588 | Q9: 0.008850647303 | R9: 4 | S9: 13.40753078 | T9: 15.45526533 | U9: 11.343 | V9: 11.34619824 | W9: 11.3466 | X9: 0.8439160264 | Y9: 0.09833457344 | Z9: 151.2570719 | AA9: 5.018980852 | AB9: 81824 | AC9: 11.468
A10: 2004 | B10: 654670 | C10: 6787570 | D10: 5740030 | E10: 13.39188657 | F10: 15.73060356 | G10: 15.56297499 | H10: -0.007305190233 | I10: 0.01203219505 | J10: 0.01410591775 | K10: 8.630185532 | L10: 2.094197798 | M10: 6.535987734 | N10: 17.6359183 | O10: 86869000000 | P10: 11.37215652 | Q10: 0.05983063764 | R10: 5 | S10: 13.40216884 | T10: 15.45532334 | U10: 11.418 | V10: 11.44877493 | W10: 11.454 | X10: 0.84566789 | Y10: 0.09645130732 | Z10: 148.7243188 | AA10: 5.002094383 | AB10: 86869 | AC10: 11.543
A11: 2005 | B11: 652360 | C11: 6801820 | D11: 5756080 | E11: 13.38835184 | F11: 15.73270078 | G11: 15.56576725 | H11: -0.003534735094 | I11: 0.002097225147 | J11: 0.002792250671 | K11: 8.578465534 | L11: 2.196357036 | M11: 6.382108498 | N11: 18.33801176 | O11: 93760000000 | P11: 11.4484936 | Q11: 0.07633708908 | R11: 6 | S11: 13.39680904 | T11: 15.45538132 | U11: 11.5012 | V11: 11.55227897 | W11: 11.5614 | X11: 0.8462558551 | Y11: 0.09590962419 | Z11: 144.3616689 | AA11: 4.97232174 | AB11: 93760 | AC11: 11.6262
A12: 2006 | B12: 653140 | C12: 6707430 | D12: 5656580 | E12: 13.38954678 | F12: 15.71872643 | G12: 15.54833003 | H12: 0.001194944608 | I12: -0.01397435625 | J12: -0.01743721816 | K12: 9.244631183 | L12: 2.417303722 | M12: 6.827327462 | N12: 19.71396097 | O12: 103340000000 | P12: 11.5457798 | Q12: 0.09728619703 | R12: 7 | S12: 13.39145139 | T12: 15.45543929 | U12: 11.5926 | V12: 11.65671876 | W12: 11.6688 | X12: 0.8433304559 | Y12: 0.09737559691 | Z12: 139.0261979 | AA12: 4.934662389 | AB12: 103340 | AC12: 11.7176
A13: 2007 | B13: 645850 | C13: 6797860 | D13: 5740270 | E13: 13.37832256 | F13: 15.73211841 | G13: 15.56301681 | H13: -0.01122422272 | I13: 0.01339198959 | J13: 0.01468677825 | K13: 8.367763936 | L13: 2.594778112 | M13: 5.772985824 | N13: 21.16591099 | O13: 112196000000 | P13: 11.62800262 | Q13: 0.08222281897 | R13: 8 | S13: 13.38609588 | T13: 15.45549723 | U13: 11.6922 | V13: 11.76210274 | W13: 11.7762 | X13: 0.8444230979 | Y13: 0.0950078407 | Z13: 138.8529702 | AA13: 4.933415605 | AB13: 112196 | AC13: 11.8172
A14: 2008 | B14: 659100 | C14: 6619980 | D14: 5563340 | E14: 13.39863055 | F14: 15.70560291 | G14: 15.53170921 | H14: 0.02030798938 | I14: -0.02651550797 | J14: -0.03130760023 | K14: 9.003541347 | L14: 3.092530935 | M14: 5.911010412 | N14: 20.95740713 | O14: 134308000000 | P14: 11.80789095 | Q14: 0.1798883281 | R14: 9 | S14: 13.38074252 | T14: 15.45555514 | U14: 11.8 | V14: 11.86843946 | W14: 11.8836 | X14: 0.8403862247 | Y14: 0.09956223433 | Z14: 135.4777885 | AA14: 4.908807704 | AB14: 134308 | AC14: 11.925
A15: 2009 | B15: 649370 | C15: 6194450 | D15: 5159550 | E15: 13.38375794 | F15: 15.63916429 | G15: 15.45635992 | H15: -0.01487260595 | I15: -0.06643861893 | J15: -0.07534928094 | K15: 10.29184507 | L15: 3.675665813 | M15: 6.616179258 | N15: 22.80158304 | O15: 153106000000 | P15: 11.93888577 | Q15: 0.1309948221 | R15: 10 | S15: 13.37539129 | T15: 15.45561304 | U15: 11.916 | V15: 11.97573754 | W15: 11.991 | X15: 0.8329310915 | Y15: 0.1048309374 | Z15: 132.1510765 | AA15: 4.883945787 | AB15: 153106 | AC15: 12.041
A16: 2010 | B16: 649940 | C16: 6442580 | D16: 5392870 | E16: 13.38463533 | F16: 15.67843964 | G16: 15.50058827 | H16: 0.0008773888242 | I16: 0.03927535114 | J16: 0.04422834435 | K16: 10.12035515 | L16: 4.097292761 | M16: 6.023062386 | N16: 23.37584166 | O16: 178411000000 | P16: 12.09184516 | Q16: 0.1529593855 | R16: 11 | S16: 13.3700422 | T16: 15.45567091 | U16: 12.0402 | V16: =10.945*EXP(0.009*R16) -> 12.08400565 | W16: 12.0984 | X16: 0.8370668273 | Y16: 0.1008819448 | Z16: 131.8476709 | AA16: 4.881647248 | AB16: 178411 | AC16: 12.1652
A17: 2011 | B17: 628090 | C17: 6214430 | D17: 5172100 | E17: 13.35043875 | F17: 15.64238457 | G17: 15.45878935 | H17: -0.03419658263 | I17: -0.03605507385 | J17: -0.04179891514 | K17: 12.22571352 | L17: 4.789611326 | M17: 7.43610219 | N17: 24.15858976 | O17: 207229000000 | P17: 12.24157974 | Q17: 0.1497345845 | R17: 12 | S17: 13.36469525 | T17: 15.45572876 | U17: 12.1726 | V17: =10.945*EXP(0.009*R17) -> 12.19325257 | W17: 12.2058 | X17: 0.83227263 | Y17: 0.1010696073 | Z17: 128.3802846 | AA17: 4.854996833 | AB17: 207229 | AC17: 12.2976
A18: 2012 | B18: 618150 | C18: 5968740 | D18: 4950210 | E18: 13.33448643 | F18: 15.60204641 | G18: 15.41494056 | H18: -0.01595232185 | I18: -0.04033815731 | J18: -0.04384879568 | K18: 12.00739706 | L18: 5.486241256 | M18: 6.521155808 | N18: 29.60867118 | O18: 234311000000 | P18: 12.36440457 | Q18: 0.1228248308 | R18: 13 | S18: 13.35935045 | T18: 15.45578658 | U18: 12.3132 | V18: 12.30348716 | W18: 12.3132 | X18: 0.8293559445 | Y18: 0.1035645714 | Z18: 123.6389435 | AA18: 4.817365572 | AB18: 234311 | AC18: 12.4382
A19: 2013 | B19: 618410 | C19: 6108670 | D19: 5089500 | E19: 13.33490695 | F19: 15.62521963 | G19: 15.44269015 | H19: 0.0004205214528 | I19: 0.02317322369 | J19: 0.02774959399 | K19: 12.63791912 | L19: 6.320009218 | M19: 6.317909904 | N19: 27.02176802 | O19: 270946000000 | P19: 12.50967482 | Q19: 0.1452702463 | R19: 14 | S19: 13.35400777 | T19: 15.45584439 | U19: 12.462 | V19: 12.41471833 | W19: 12.4206 | X19: 0.8331600823 | Y19: 0.1012348023 | Z19: 122.8438818 | AA19: 4.810914296 | AB19: 270946 | AC19: 12.587
A20: 2014 | B20: 620810 | C20: 6129040 | D20: 5102580 | E20: 13.33878036 | F20: 15.62854869 | G20: 15.44525685 | H20: 0.003873409081 | I20: 0.003329057285 | J20: 0.002566700258 | K20: 12.95382709 | L20: 6.900028617 | M20: 6.053798474 | N20: 26.88796144 | O20: 298023000000 | P20: 12.60492594 | Q20: 0.0952511257 | R20: 15 | S20: 13.34866724 | T20: 15.45590217 | U20: 12.619 | V20: 12.5269551 | W20: 12.528 | X20: 0.8325251589 | Y20: 0.1012899247 | Z20: 121.6620595 | AA20: 4.801247197 | AB20: 298023 | AC20: 12.744
A21: 2015 | B21: 617170 | C21: 6003650 | D21: 4982790 | E21: 13.33289979 | F21: 15.60787818 | G21: 15.42150053 | H21: -0.00588056429 | I21: -0.02067051323 | J21: -0.02375631904 | K21: 13.22859321 | L21: 7.386954951 | M21: 5.84163826 | N21: 31.94216122 | O21: 317421000000 | P21: 12.66798425 | Q21: 0.06305830374 | R21: 16 | S21: 13.34332884 | T21: 15.45595992 | U21: 12.7842 | V21: 12.64020657 | W21: 12.6354 | X21: 0.8299601076 | Y21: 0.1027991305 | Z21: 116.2275742 | AA21: 4.755550116 | AB21: 317421 | AC21: 12.9092
A22: 2016 | B22: 609200 | C22: 5907270 | D22: 4888640 | E22: 13.3199019 | F22: 15.59169435 | G22: 15.4024247 | H22: -0.01299789168 | I22: -0.01618382184 | J22: -0.01907582893 | P22: =0.0041*17^2+0.0381*17+11.125 -> 12.9576 | R22: 17 | S22: 13.33799258 | T22: 15.45601766 | U22: 12.9576 | V22: 12.75448189 | W22: 12.7428 | X22: 0.8275633245 | Y22: 0.1031271636 | AB22: =EXP(P22) -> 424047.1793 | AC22: 13.0826
A23: 2017 | B23: 614500 | C23: 5842800 | D23: 4813720 | E23: 13.32856421 | F23: 15.58072069 | G23: 15.38698073 | H23: 0.008662307985 | I23: -0.01097366177 | J23: -0.01544397222 | P23: =0.0041*18^2+0.0381*18+11.125 -> 13.1392 | R23: 18 | S23: 13.33265845 | T23: 15.45607537 | U23: 13.1392 | V23: 12.86979034 | W23: 12.8502 | X23: 0.8238721161 | Y23: 0.1051721777 | AB23: =EXP(P23) -> 508489.5787 | AC23: 13.2642
A24: 2018 | B24: 622590 | C24: 6023620 | D24: 4981300 | E24: 13.34164348 | F24: 15.61119897 | G24: 15.42120146 | H24: 0.0130792672 | I24: 0.0304782735 | J24: 0.03422072717 | P24: =0.0041*19^2+0.0381*19+11.125 -> 13.329 | R24: 19 | S24: =13.429*EXP(-0.0004*R24) -> 13.32732645 | T24: 15.45613306 | U24: 13.329 | V24: 12.98614125 | W24: 12.9576 | X24: 0.8269611961 | Y24: 0.1033581136 | AB24: =EXP(P24) -> 614767.8526 | AC24: 13.454

Sheet EnergyPct
A1: Year | B1: TotRenPct | C1: RenXH2OPct | D1: OilPct | E1: NucPct | F1: NatGasPct | G1: H2OPct | H1: CoalPct
A2: 1996 | B2: 11.58145005 | C2: 1.970369551 | D2: 2.649535336 | E2: 19.58817324 | F2: 13.11238033 | G2: 9.611080497 | H2: 52.72203118
A3: 1997 | B3: 10.97782813 | C3: 1.904923997 | D3: 2.94968711 | E3: 18.14605334 | F3: 13.76951817 | G3: 9.072904129 | H3: 53.80954845
A4: 1998 | B4: 9.608584982 | C4: 1.825835904 | D4: 3.866443563 | E4: 18.77048887 | F4: 14.67862828 | G4: 7.782749078 | H4: 52.73512658
A5: 1999 | B5: 9.069200581 | C5: 1.894730483 | D5: 3.503734732 | E5: 19.92470644 | F5: 15.02290612 | G5: 7.174470098 | H5: 52.11671819
A6: 2000 | B6: 8.205996942 | C6: 1.91659722 | D6: 2.943005078 | E6: 19.81472397 | F6: 15.75529356 | G6: 6.289399722 | H6: 52.89515225
A7: 2001 | B7: 6.783992314 | C7: 1.880103604 | D7: 3.374907622 | E7: 20.64701468 | F7: 17.19049367 | G7: 4.90388871 | H7: 51.63342695
A8: 2002 | B8: 8.646361178 | C8: 2.014281247 | D8: 2.636052711 | E8: 19.9811047 | F8: 17.69402387 | G8: 6.63207993 | H8: 50.65729949
A9: 2003 | B9: 8.889376121 | C9: 2.018029181 | D9: 3.379207423 | E9: 19.42999258 | F9: 16.52897698 | G9: 6.87134694 | H9: 51.38116764
A10: 2004 | B10: 8.630185532 | C10: 2.094197798 | D10: 3.353093479 | E10: 19.60760159 | F10: 17.6359183 | G10: 6.535987734 | H10: 50.39668955
A11: 2005 | B11: 8.578465534 | C11: 2.196357036 | D11: 3.309762006 | E11: 18.99150762 | F11: 18.33801176 | G11: 6.382108498 | H11: 50.45708636
A12: 2006 | B12: 9.244631183 | C12: 2.417303722 | D12: 1.839082987 | E12: 19.09223158 | F12: 19.71396097 | G12: 6.827327462 | H12: 49.77287778
A13: 2007 | B13: 8.367763936 | C13: 2.594778112 | D13: 1.80706605 | E13: 19.34899275 | F13: 21.16591099 | G13: 5.772985824 | H13: 48.99390945
A14: 2008 | B14: 9.003541347 | C14: 3.092530935 | D14: 1.330330787 | E14: 19.29099374 | F14: 20.95740713 | G14: 5.911010412 | H14: 49.10443981
A15: 2009 | B15: 10.29184507 | C15: 3.675665813 | D15: 1.211049612 | E15: 19.93112298 | F15: 22.80158304 | G15: 6.616179258 | H15: 45.4377316
A16: 2010 | B16: 10.12035515 | C16: 4.097292761 | D16: 1.104317669 | E16: 19.26644609 | F16: 23.37584166 | G16: 6.023062386 | H16: 45.79760576
A17: 2011 | B17: 12.22571352 | C17: 4.789611326 | D17: 0.9135043746 | E17: 18.98484619 | F17: 24.15858976 | G17: 7.43610219 | H17: 43.34576409
A18: 2012 | B18: 12.00739706 | C18: 5.486241256 | D18: 0.7743127652 | E18: 18.75791991 | F18: 29.60867118 | G18: 6.521155808 | H18: 38.47985569
A19: 2013 | B19: 12.63791912 | C19: 6.320009218 | D19: 0.8597392092 | E19: 19.17383116 | F19: 27.02176802 | G19: 6.317909904 | H19: 39.94314124
A20: 2014 | B20: 12.95382709 | C20: 6.900028617 | D20: 0.9232590812 | E20: 19.2302385 | F20: 26.88796144 | G20: 6.053798474 | H20: 39.65073269
A21: 2015 | B21: 13.22859321 | C21: 7.386954951 | D21: 0.9038065202 | E21: 19.32377763 | F21: 31.94216122 | G21: 5.84163826 | H21: 34.23273373
A22: 2016
A23: 2017
A24: 2018

Sheet Data
A1: Data Source | B1: World Development Indicators
A2: Last Updated Date | B2: 2021-12-16
A4: Country Name | B4: Country Code | C4: Indicator Name | D4: Indicator Code | E4: 1960 | F4: 1961 | G4: 1962 | H4: 1963 | I4: 1964 | J4: 1965 | K4: 1966 | L4: 1967 | M4: 1968 | N4: 1969 | O4: 1970 | P4: 1971 | Q4: 1972 | R4: 1973 | S4: 1974 | T4: 1975 | U4: 1976 | V4: 1977 | W4: 1978 | X4: 1979 | Y4: 1980 | Z4: 1981 | AA4: 1982 | AB4: 1983 | AC4: 1984 | AD4: 1985 | AE4: 1986 | AF4: 1987 | AG4: 1988 | AH4: 1989 | AI4: 1990 | AJ4: 1991 | AK4: 1992 | AL4: 1993 | AM4: 1994 | AN4: 1995 | AO4: 1996 | AP4: 1997 | AQ4: 1998 | AR4: 1999 | AS4: 2000 | AT4: 2001 | AU4: 2002 | AV4: 2003 | AW4: 2004 | AX4: 2005 | AY4: 2006 | AZ4: 2007 | BA4: 2008 | BB4: 2009 | BC4: 2010 | BD4: 2011 | BE4: 2012 | BF4: 2013 | BG4: 2014 | BH4: 2015 | BI4: 2016 | BJ4: 2017 | BK4: 2018 | BL4: 2019 | BM4: 2020
A5: Aruba | B5: ABW | C5: Urban population (% of total population) | D5: SP.URB.TOTL.IN.ZS | E5: 50.776 | F5: 50.761 | G5: 50.746 | H5: 50.73 | I5: 50.715 | J5: 50.7 | K5: 50.685 | L5: 50.67 | M5: 50.654 | N5: 50.639 | O5: 50.624 | P5: 50.609 | Q5: 50.593 | R5: 50.578 | S5: 50.563 | T5: 50.548 | U5: 50.532 | V5: 50.517 | W5: 50.502 | X5: 50.487 | Y5: 50.472 | Z5: 50.456 | AA5: 50.441 | AB5: 50.426 | AC5: 50.411 | AD5: 50.395 | AE5: 50.38 | AF5: 50.365 | AG5: 50.35 | AH5: 50.335 | AI5: 50.319 | AJ5: 50.304 | AK5: 49.998 | AL5: 49.588 | AM5: 49.177 | AN5: 48.767 | AO5: 48.356 | AP5: 47.946 | AQ5: 47.536 | AR5: 47.127 | AS5: 46.717 | AT5: 46.339 | AU5: 45.972 | AV5: 45.606 | AW5: 45.24 | AX5: 44.875 | AY5: 44.511 | AZ5: 44.147 | BA5: 43.783 | BB5: 43.421 | BC5: 43.059 | BD5: 42.94 | BE5: 42.957 | BF5: 42.99 | BG5: 43.041 | BH5: 43.108 | BI5: 43.192 | BJ5: 43.293 | BK5: 43.411 | BL5: 43.546 | BM5: 43.697
A6: Aruba | B6: ABW | C6: Urban population | D6: SP.URB.TOTL | E6: 27525 | F6: 28139 | G6: 28537 | H6: 28763 | I6: 28922 | J6: 29080 | K6: 29246 | L6: 29411 | M6: 29570 | N6: 29742 | O6: 29904 | P6: 30083 | Q6: 30279 | R6: 30466 | S6: 30604 | T6: 30659 | U6: 30615 | V6: 30495 | W6: 30353 | X6: 30278 | Y6: 30332 | Z6: 30557 | AA6: 30941 | AB6: 31372 | AC6: 31671 | AD6: 31761 | AE6: 31561 | AF6: 31145 | AG6: 30750 | AH6: 30721 | AI6: 31274 | AJ6: 32508 | AK6: 34119 | AL6: 35949 | AM6: 37721 | AN6: 39172 | AO6: 40238 | AP6: 40970 | AQ6: 41489 | AR6: 41947 | AS6: 42450 | AT6: 43045 | AU6: 43670 | AV6: 44245 | AW6: 44672 | AX6: 44888 | AY6: 44880 | AZ6: 44688 | BA6: 44379 | BB6: 44051 | BC6: 43776 | BD6: 43820 | BE6: 44059 | BF6: 44351 | BG6: 44666 | BH6: 44978 | BI6: 45293 | BJ6: 45614 | BK6: 45949 | BL6: 46294 | BM6: 46654
A7: Aruba | B7: ABW | C7: Urban population growth (annual %) | D7: SP.URB.GROW | F7: 2.206183184 | G7: 1.404497644 | H7: 0.788834806 | I7: 0.5512712236 | J7: 0.5448101473 | K7: 0.5692159524 | L7: 0.5625941838 | M7: 0.5391579836 | N7: 0.5799854402 | O7: 0.5432062447 | P7: 0.5967977438 | Q7: 0.6494174774 | R7: 0.615690479 | S7: 0.4519411655 | T7: 0.1795537756 | U7: -0.1436172196 | V7: -0.3927349181 | W7: -0.466737634 | X7: -0.2473983218 | Y7: 0.1781884649 | Z7: 0.7390531102 | AA7: 1.24883733 | AB7: 1.383361011 | AC7: 0.9485660325 | AD7: 0.2837686354 | AE7: -0.6316940876 | AF7: -1.326846245 | AG7: -1.276372445 | AH7: -0.09435344195 | AI7: 1.784062159 | AJ7: 3.869913147 | AK7: 4.836820098 | AL7: 5.22468535 | AM7: 4.811570118 | AN7: 3.774523731 | AO7: 2.684961691 | AP7: 1.802826879 | AQ7: 1.25882403 | AR7: 1.097858479 | AS7: 1.191999611 | AT7: 1.391916735 | AU7: 1.441528739 | AV7: 1.308100322 | AW7: 0.9604536421 | AX7: 0.4823591309 | AY7: -0.01782372342 | AZ7: -0.4287252012 | BA7: -0.6938624625 | BB7: -0.7418330978 | BC7: -0.62623316 | BD7: 0.1004612167 | BE7: 0.5439310626 | BF7: 0.6605611622 | BG7: 0.7077329383 | BH7: 0.6960895538 | BI7: 0.6979013826 | BJ7: 0.7062191782 | BK7: 0.7317398835 | BL7: 0.7480277283 | BM7: 0.7746305464
A8: Aruba | B8: ABW | C8: Population, total | D8: SP.POP.TOTL | E8: 54208 | F8: 55434 | G8: 56234 | H8: 56699 | I8: 57029 | J8: 57357 | K8: 57702 | L8: 58044 | M8: 58377 | N8: 58734 | O8: 59070 | P8: 59442 | Q8: 59849 | R8: 60236 | S8: 60527 | T8: 60653 | U8: 60586 | V8: 60366 | W8: 60102 | X8: 59972 | Y8: 60097 | Z8: 60561 | AA8: 61341 | AB8: 62213 | AC8: 62826 | AD8: 63024 | AE8: 62645 | AF8: 61838 | AG8: 61072 | AH8: 61033 | AI8: 62152 | AJ8: 64623 | AK8: 68240 | AL8: 72495 | AM8: 76705 | AN8: 80324 | AO8: 83211 | AP8: 85450 | AQ8: 87280 | AR8: 89009 | AS8: 90866 | AT8: 92892 | AU8: 94992 | AV8: 97016 | AW8: 98744 | AX8: 100028 | AY8: 100830 | AZ8: 101226 | BA8: 101362 | BB8: 101452 | BC8: 101665 | BD8: 102050 | BE8: 102565 | BF8: 103165 | BG8: 103776 | BH8: 104339 | BI8: 104865 | BJ8: 105361 | BK8: 105846 | BL8: 106310 | BM8: 106766
A9: Aruba | B9: ABW | C9: Population growth (annual %) | D9: SP.POP.GROW | F9: 2.236462489 | G9: 1.432843226 | H9: 0.8235017716 | I9: 0.580333649 | J9: 0.5734983285 | K9: 0.599694129 | L9: 0.590950867 | M9: 0.5720633015 | N9: 0.6096798863 | O9: 0.5704405812 | P9: 0.62778659 | Q9: 0.6823676208 | R9: 0.6445456798 | S9: 0.481936625 | T9: 0.207955183 | U9: -0.1105255022 | V9: -0.3637810745 | W9: -0.438291368 | X9: -0.2165332225 | Y9: 0.2082136857 | Z9: 0.7691198052 | AA9: 1.279733959 | AB9: 1.411551999 | AC9: 0.9805019411 | AD9: 0.3146605695 | AE9: -0.6031736531 | AF9: -1.296580747 | AG9: -1.246456623 | AH9: -0.06387945019 | AI9: 1.816829615 | AJ9: 3.898738693 | AK9: 5.446051861 | AL9: 6.048669078 | AM9: 5.644930133 | AN9: 4.61015602 | AO9: 3.531109513 | AP9: 2.655185894 | AQ9: 2.118993196 | AR9: 1.961614669 | AS9: 2.06484056 | AT9: 2.20516342 | AU9: 2.235514952 | AV9: 2.108323583 | AW9: 1.765472909 | AX9: 1.291950435 | AY9: 0.798578361 | AZ9: 0.3919710447 | BA9: 0.1342626616 | BB9: 0.08875127546 | BC9: 0.209731414 | BD9: 0.3779794894 | BE9: 0.5033854678 | BF9: 0.5832904303 | BG9: 0.5905081888 | BH9: 0.5410483371 | BI9: 0.5028595136 | BJ9: 0.4718740026 | BK9: 0.4592658884 | BL9: 0.4374146758 | BM9: 0.4280169481
A10: Aruba | B10: ABW | C10: Poverty headcount ratio at $1.90 a day (2011 PPP) (% of population) | D10: SI.POV.DDAY
A11: Aruba | B11: ABW | C11: Prevalence of underweight, weight for age (% of children under 5) | D11: SH.STA.MALN.ZS
A12: Aruba | B12: ABW | C12: Community health workers (per 1,000 people) | D12: SH.MED.CMHW.P3
A13: Aruba | B13: ABW | C13: Mortality rate, under-5 (per 1,000 live births) | D13: SH.DYN.MORT
A14: Aruba | B14: ABW | C14: Primary completion rate, total (% of relevant age group) | D14: SE.PRM.CMPT.ZS | AR14: 101.6191177 | AS14: 97.14286041 | AT14: 94.40406799 | AU14: 94.75524139 | AV14: 90.21591949 | AW14: 90.55989838 | AX14: 88.19796753 | AY14: 93.18611908 | AZ14: 95.58824158 | BA14: 95.13303375 | BB14: 96.2425766 | BC14: 94.78610229 | BF14: 96.57064056 | BG14: 101.1805573
A15: Aruba | B15: ABW | C15: School enrollment, primary and secondary (gross), gender parity index (GPI) | D15: SE.ENR.PRSC.FM.ZS | AR15: 1.011919975 | AS15: 0.992659986 | AT15: 0.9994900227 | AU15: 0.9890000224 | AV15: 0.97706002 | AW15: 0.952910006 | AX15: 0.9633899927 | AY15: 0.9679800272 | AZ15: 0.9867600203 | BA15: 1.005609989 | BB15: 1.00443995 | BC15: 1.014600039 | BD15: 1.008710027 | BE15: 1.021559954
A16: Aruba | B16: ABW | C16: Agriculture, forestry, and fishing, value added (% of GDP) | D16: NV.AGR.TOTL.ZS | AN16: 0.5059970808 | AO16: 0.4858043909 | AP16: 0.4299498939 | AQ16: 0.4079811309 | AR16: 0.3832920965 | AS16: 0.4100218281 | AT16: 0.40514984 | AU16: 0.4022158273 | AV16: 0.401381979 | AW16: 0.3916520431 | AX16: 0.3866730585 | AY16: 0.3937557604 | AZ16: 0.4052339244 | BA16: 0.3807285307 | BB16: 0.4403979432
A17: Aruba | B17: ABW | C17: CPIA public sector management and institutions cluster average (1=low to 6=high) | D17: IQ.CPA.PUBS.XQ
A18: Aruba | B18: ABW | C18: Ease of doing business rank (1=most business-friendly regulations) | D18: IC.BUS.EASE.XQ
A19: Aruba | B19: ABW | C19: Terrestrial and marine protected areas (% of total territorial area) | D19: ER.PTD.TOTL.ZS | BI19: 0.5279831045 | BJ19: 0.1411634561 | BK19: 0.1411634561
A20: Aruba | B20: ABW | C20: Marine protected areas (% of territorial waters) | D20: ER.MRN.PTMR.ZS | BJ20: 0.0001051566837 | BK20: 0.0001051566837
A21: Aruba | B21: ABW | C21: Terrestrial protected areas (% of total land area) | D21: ER.LND.PTLD.ZS | BI21: 0.53 | BJ21: 18.91757626 | BK21: 18.91757626
A22: Aruba | B22: ABW | C22: Annual freshwater withdrawals, total (% of internal resources) | D22: ER.H2O.FWTL.ZS
A23: Aruba | B23: ABW | C23: Annual freshwater withdrawals, total (billion cubic meters) | D23: ER.H2O.FWTL.K3
A24: Aruba | B24: ABW | C24: Population in urban agglomerations of more than 1 million (% of total population) | D24: EN.URB.MCTY.TL.ZS
A25: Aruba | B25: ABW | C25: Population living in areas where elevation is below 5 meters (% of total population) | D25: EN.POP.EL5M.ZS | AI25: 7.070367726 | AS25: 7.070367418 | BC25: 7.069166545
A26: Aruba | B26: ABW | C26: Urban population living in areas where elevation is below 5 meters (% of total population) | D26: EN.POP.EL5M.UR.ZS | AI26: 4.717903784 | AS26: 4.717903593 | BC26: 4.71804376
A27: Aruba | B27: ABW | C27: Rural population living in areas where elevation is below 5 meters (% of total population) | D27: EN.POP.EL5M.RU.ZS | AI27: 2.352463942 | AS27: 2.352463825 | BC27: 2.351122785
A28: Aruba | B28: ABW | C28: Droughts, floods, extreme temperatures (% of population, average 1990-2009) | D28: EN.CLC.MDAT.ZS
A29: Aruba | B29: ABW | C29: GHG net emissions/removals by LUCF (Mt of CO2 equivalent) | D29: EN.CLC.GHGR.MT.CE
A30: Aruba | B30: ABW | C30: Disaster risk reduction progress score (1-5 scale; 5=best) | D30: EN.CLC.DRSK.XQ
A31: Aruba | B31: ABW | C31: SF6 gas emissions (thousand metric tons of CO2 equivalent) | D31: EN.ATM.SF6G.KT.CE
A32: Aruba | B32: ABW | C32: PFC gas emissions (thousand metric tons of CO2 equivalent) | D32: EN.ATM.PFCG.KT.CE
A33: Aruba | B33: ABW | C33: Nitrous oxide emissions (% change from 1990) | D33: EN.ATM.NOXE.ZG | AJ33: 0.3282625681 | AK33: 2.621905496 | AL33: 7.279196229 | AM33: 11.98053497 | AN33: 12.42756986 | AO33: -29.49853435 | AP33: 225.0114053 | AQ33: -44.7202689 | AR33: -50.81226632 | AS33: -53.75194676 | AT33: -56.24144603 | AU33: -54.86966508 | AV33: -57.64967148 | AW33: -57.60378813 | AX33: -56.28208557 | AY33: -51.23753939 | AZ33: -51.56055815 | BA33: -50.2302033 | BB33: -48.21290921 | BC33: -46.19561513 | BD33: -45.65757128 | BE33: -45.11952743
A34: Aruba | B34: ABW | C34: Nitrous oxide emissions (thousand metric tons of CO2 equivalent) | D34: EN.ATM.NOXE.KT.CE | O34: 1.8261976 | P34: 1.8269478 | Q34: 1.8448131 | R34: 1.8220901 | S34: 1.821157 | T34: 1.8296076 | U34: 2.6258457 | V34: 2.7775194 | W34: 5.303201 | X34: 6.067785 | Y34: 6.170271 | Z34: 7.047013 | AA34: 7.624574 | AB34: 7.290487 | AC34: 7.828492 | AD34: 8.650364 | AE34: 6.47466 | AF34: 8.943996 | AG34: 11.000443 | AH34: 11.871481
A35: Aruba | B35: ABW | C35: Methane emissions (% change from 1990) | D35: EN.ATM.METH.ZG | AJ35: 2.03732012 | AK35: 4.751989879 | AL35: 7.968082863 | AM35: 11.20130726 | AN35: 13.96605345 | AO35: 11.77586843 | AP35: 41.78417058 | AQ35: 14.30472827 | AR35: 15.66733435 | AS35: 18.94075167 | AT35: 21.34771493 | AU35: 24.5381108 | AV35: 27.29165568 | AW35: 30.48205155 | AX35: 32.98323757 | AY35: 36.23359338 | AZ35: 39.99393812 | BA35: 43.26933214 | BB35: 46.58030678 | BC35: 49.8385694 | BD35: 51.33695509 | BE35: 52.83534078
A36: Aruba | B36: ABW | C36: Methane emissions (kt of CO2 equivalent) | D36: EN.ATM.METH.KT.CE | O36: 10.2469 | P36: 10.4531 | Q36: 10.657 | R36: 10.8551 | S36: 11.0415 | T36: 11.2194 | U36: 11.5069 | V36: 11.6718 | W36: 12.2338 | X36: 12.4857 | Y36: 12.6755 | Z36: 12.937 | AA36: 13.182 | AB36: 13.3622 | AC36: 13.6488 | AD36: 13.9676 | AE36: 13.8472 | AF36: 14.3017 | AG36: 14.5499 | AH36: 14.8981
A37: Aruba | B37: ABW | C37: HFC gas emissions (thousand metric tons of CO2 equivalent) | D37: EN.ATM.HFCG.KT.CE
A38: Aruba | B38: ABW | C38: Total greenhouse gas emissions (% change from 1990) | D38: EN.ATM.GHGT.ZG
A39: Aruba | B39: ABW | C39: Total greenhouse gas emissions (kt of CO2 equivalent) | D39: EN.ATM.GHGT.KT.CE | O39: 42.3062976 | P39: 42.7869478 | Q39: 43.2866131 | R39: 43.7245901 | S39: 44.130957 | T39: 44.4819076 | U39: 131.6337457 | V39: 135.0553194 | W39: 358.990001 | X39: 409.505485 | Y39: 424.783771 | Z39: 519.001013 | AA39: 564.023574 | AB39: 530.385687 | AC39: 571.038292 | AD39: 642.147964 | AE39: 435.85886 | AF39: 616.928696
A40: Aruba | B40: ABW | C40: Other greenhouse gas emissions (% change from 1990) | D40: EN.ATM.GHGO.ZG | AJ40: -350 | AK40: 58.33333333 | AL40: -275 | AM40: 241.6666667 | AN40: 100 | AO40: -116.6666667 | AP40: 166.6666667 | AQ40: -200 | AR40: -83.33333333 | AS40: 16.66666667 | AT40: 16.66666667 | AU40: -295.8333333 | AV40: -83.33333333 | AW40: -137.5 | AX40: -204.1666667 | AY40: -166.6666667 | AZ40: -141.6666667 | BA40: -291.6666667 | BB40: 0 | BC40: -137.5 | BD40: -216.6666667 | BE40: -33.33333333
A41: Aruba | B41: ABW | C41: Other greenhouse gas emissions, HFC, PFC and SF6 (thousand metric tons of CO2 equivalent) | D41: EN.ATM.GHGO.KT.CE | O41: 19.66790076 | P41: 19.95736392 | Q41: 20.00577011 | R41: 19.7166851 | S41: 18.92618507 | T41: 15.42933383 | U41: 30.51326941 | V41: 36.40090408 | W41: 95.20858767 | X41: 121.0305677 | Y41: 114.6751521 | Z41: 191.5890417 | AA41: 204.1455194 | AB41: 239.2286048 | AC41: 246.7267804 | AD41: 219.7726918 | AE41: 127.8786016 | AF41: 143.9411145
A42: Aruba | B42: ABW | C42: CO2 emissions from solid fuel consumption (% of total) | D42: EN.ATM.CO2E.SF.ZS | E42: 0 | F42: 0 | G42: 0 | H42: 0 | I42: 0 | J42: 0 | K42: 0 | L42: 0 | M42: 0 | N42: 0 | O42: 0 | P42: 0 | Q42: 0 | R42: 0 | S42: 0 | T42: 0 | U42: 0 | V42: 0 | W42: 0 | X42: 0 | Y42: 0 | Z42: 0 | AA42: 0 | AB42: 0 | AC42: 0 | AD42: 0 | AE42: 0 | AF42: 0 | AG42: 0 | AH42: 0
A43: Aruba | B43: ABW | C43: CO2 emissions from solid fuel consumption (kt) | D43: EN.ATM.CO2E.SF.KT | E43: 0 | F43: 0 | G43: 0 | H43: 0 | I43: 0 | J43: 0 | K43: 0 | L43: 0 | M43: 0 | N43: 0 | O43: 0 | P43: 0 | Q43: 0 | R43: 0 | S43: 0 | T43: 0 | U43: 0 | V43: 0 | W43: 0 | X43: 0 | Y43: 0 | Z43: 0 | AA43: 0 | AB43: 0 | AC43: 0 | AD43: 0 | AE43: 0 | AF43: 0 | AG43: 0 | AH43: 0 | AI43: 0 | AJ43: 0 | AK43: 0 | AL43: 0 | AM43: 0 | AN43: 0 | AO43: 0 | AP43: 0 | AQ43: 0 | AR43: 0 | AS43: 0 | AT43: 0 | AU43: 0 | AV43: 0 | AW43: 0 | AX43: 0 | AY43: 0 | AZ43: 0 | BA43: 0 | BB43: 0 | BC43: 0 | BD43: 0 | BE43: 0 | BF43: 0 | BG43: 0 | BH43: 0 | BI43: 0
A44: Aruba | B44: ABW | C44: CO2 emissions (kg per 2017 PPP $ of GDP) | D44: EN.ATM.CO2E.PP.GD.KD
A45: Aruba | B45: ABW | C45: CO2 emissions (kg per PPP $ of GDP) | D45: EN.ATM.CO2E.PP.GD
A46: Aruba | B46: ABW | C46: CO2 emissions (metric tons per capita) | D46: EN.ATM.CO2E.PC | E46: 204.6316964 | F46: 208.8378793 | G46: 226.08189 | H46: 214.7852167 | I46: 207.6266987 | J46: 185.2136444 | K46: 172.1587293 | L46: 210.8190166 | M46: 194.917536 | N46: 253.5445738 | O46: 281.9623159 | P46: 243.8621009 | Q46: 234.8512256 | R46: 258.8499236 | S46: 233.4927883 | T46: 168.7401612 | U46: 360.8532334 | V46: 189.1634032 | W46: 161.8063292 | X46: 170.1059494 | Y46: 174.6945937 | Z46: 165.1212662 | AA46: 182.2709607 | AB46: 92.36315561 | AC46: 228.3922421 | AD46: 266.4835618 | AE46: 2.868273605 | AF46: 7.234613021 | AG46: 10.0273284 | AH46: 10.63455835
A47: Aruba | B47: ABW | C47: CO2 emissions from liquid fuel consumption (% of total) | D47: EN.ATM.CO2E.LF.ZS | E47: 100 | F47: 100 | G47: 100 | H47: 100 | I47: 100 | J47: 100 | K47: 100 | L47: 100 | M47: 100 | N47: 100 | O47: 100 | P47: 100 | Q47: 100 | R47: 100 | S47: 100 | T47: 100 | U47: 100 | V47: 100 | W47: 100 | X47: 100 | Y47: 100 | Z47: 100 | AA47: 100 | AB47: 100 | AC47: 100 | AD47: 100 | AE47: 100 | AF47: 100 | AG47: 100 | AH47: 100
A48: Aruba | B48: ABW | C48: CO2 emissions from liquid fuel consumption (kt) | D48: EN.ATM.CO2E.LF.KT | E48: 11092.675 | F48: 11576.719 | G48: 12713.489 | H48: 12178.107 | I48: 11840.743 | J48: 10623.299 | K48: 9933.903 | L48: 12236.779 | M48: 11378.701 | N48: 14891.687 | O48: 16655.514 | P48: 14495.651 | Q48: 14055.611 | R48: 15592.084 | S48: 14132.618 | T48: 10234.597 | U48: 21862.654 | V48: 11419.038 | W48: 9724.884 | X48: 10201.594 | Y48: 10498.621 | Z48: 9999.909 | AA48: 11180.683 | AB48: 5746.189 | AC48: 14348.971 | AD48: 16794.86 | AE48: 179.683 | AF48: 447.374 | AG48: 612.389 | AH48: 649.059 | AI48: 487.711 | AJ48: 531.715 | AK48: 539.049 | AL48: 649.059 | AM48: 660.06 | AN48: 707.731 | AO48: 726.066 | AP48: 759.069 | AQ48: 806.74 | AR48: 810.407 | AS48: 2379.883 | AT48: 2409.219 | AU48: 2438.555 | AV48: 2563.233 | AW48: 2618.238 | AX48: 2720.914 | AY48: 2717.247 | AZ48: 2823.59 | BA48: 2658.575 | BB48: 2629.239 | BC48: 2508.228 | BD48: 2500.894 | BE48: 1349.456 | BF48: 861.745 | BG48: 872.746 | BH48: 898.415 | BI48: 883.747
A49: Aruba | B49: ABW | C49: CO2 emissions (kt) | D49: EN.ATM.CO2E.KT | E49: 11092.675 | F49: 11576.719 | G49: 12713.489 | H49: 12178.107 | I49: 11840.743 | J49: 10623.299 | K49: 9933.903 | L49: 12236.779 | M49: 11378.701 | N49: 14891.687 | O49: 16655.514 | P49: 14495.651 | Q49: 14055.611 | R49: 15592.084 | S49: 14132.618 | T49: 10234.597 | U49: 21862.654 | V49: 11419.038 | W49: 9724.884 | X49: 10201.594 | Y49: 10498.621 | Z49: 9999.909 | AA49: 11180.683 | AB49: 5746.189 | AC49: 14348.971 | AD49: 16794.86 | AE49: 179.683 | AF49: 447.374 | AG49: 612.389 | AH49: 649.059
A50: Aruba | B50: ABW | C50: CO2 emissions (kg per 2015 US$ of GDP) | D50: EN.ATM.CO2E.KD.GD | AE50: 0.1664564095 | AF50: 0.3570366036 | AG50: 0.4119140322 | AH50: 0.3893517916
A51: Aruba | B51: ABW | C51: CO2 emissions from gaseous fuel consumption (% of total) | D51: EN.ATM.CO2E.GF.ZS | E51: 0 | F51: 0 | G51: 0 | H51: 0 | I51: 0 | J51: 0 | K51: 0 | L51: 0 | M51: 0 | N51: 0 | O51: 0 | P51: 0 | Q51: 0 | R51: 0 | S51: 0 | T51: 0 | U51: 0 | V51: 0 | W51: 0 | X51: 0 | Y51: 0 | Z51: 0 | AA51: 0 | AB51: 0 | AC51: 0 | AD51: 0 | AE51: 0 | AF51: 0 | AG51: 0 | AH51: 0
A52: Aruba | B52: ABW | C52: CO2 emissions from gaseous fuel consumption (kt) | D52: EN.ATM.CO2E.GF.KT | E52: 0 | F52: 0 | G52: 0 | H52: 0 | I52: 0 | J52: 0 | K52: 0 | L52: 0 | M52: 0 | N52: 0 | O52: 0 | P52: 0 | Q52: 0 | R52: 0 | S52: 0 | T52: 0 | U52: 0 | V52: 0 | W52: 0 | X52: 0 | Y52: 0 | Z52: 0 | AA52: 0 | AB52: 0 | AC52: 0 | AD52: 0 | AE52: 0 | AF52: 0 | AG52: 0 | AH52: 0 | AI52: 0 | AJ52: 0 | AK52: 0 | AL52: 0 | AM52: 0 | AN52: 0 | AO52: 0 | AP52: 0 | AQ52: 0 | AR52: 0 | AS52: 0 | AT52: 0 | AU52: 0 | AV52: 0 | AW52: 0 | AX52: 0 | AY52: 0 | AZ52: 0 | BA52: 0 | BB52: 0 | BC52: 0 | BD52: 0 | BE52: 0 | BF52: 0 | BG52: 0 | BH52: 0 | BI52: 0
A53: Aruba | B53: ABW | C53: CO2 intensity (kg per kg of oil equivalent energy use) | D53: EN.ATM.CO2E.EG.ZS
A54: Aruba | B54: ABW | C54: Energy use (kg of oil equivalent per capita) | D54: EG.USE.PCAP.KG.OE
A55: Aruba | B55: ABW | C55: Electric power consumption (kWh per capita) | D55: EG.USE.ELEC.KH.PC
A56: Aruba | B56: ABW | C56: Energy use (kg of oil equivalent) per $1,000 GDP (constant 2017 PPP) | D56: EG.USE.COMM.GD.PP.KD
A57: Aruba | B57: ABW | C57: Renewable energy consumption (% of total final energy consumption) | D57: EG.FEC.RNEW.ZS | AI57: 0.268747069 | AJ57: 0.2349547677 | AK57: 0.2387775845 | AL57: 0.1951343194 | AM57: 0.1832405399 | AN57: 0.1733717333 | AO57: 0.1674742846 | AP57: 0.1600958673 | AQ57: 0.1578756908 | AR57: 0.1609276381 | AS57: 0.1753000021 | AT57: 0.1805000007 | AU57: 0.181400001 | AV57: 0.1845999956 | AW57: 0.1870999932 | AX57: 0.1865999997 | AY57: 0.1898999959 | AZ57: 0.1899999976 | BA57: 0.1934999973 | BB57: 0.2998000085 | BC57: 5.464700222 | BD57: 5.661799908 | BE57: 6.855899811 | BF57: 6.889699936 | BG57: 6.927499771 | BH57: 6.728000164 | BI57: 6.994599819 | BJ57: 6.699299812 | BK57: 8.024100304
A58: Aruba | B58: ABW | C58: Electricity production from renewable sources, excluding hydroelectric (% of total) | D58: EG.ELC.RNWX.ZS
A59: Aruba | B59: ABW | C59: Electricity production from renewable sources, excluding hydroelectric (kWh) | D59: EG.ELC.RNWX.KH
A60: Aruba | B60: ABW | C60: Renewable electricity output (% of total electricity output) | D60: EG.ELC.RNEW.ZS | AI60: 0 | AJ60: 0 | AK60: 0 | AL60: 0 | AM60: 0 | AN60: 0 | AO60: 0 | AP60: 0 | AQ60: 0 | AR60: 0 | AS60: 0 | AT60: 0 | AU60: 0 | AV60: 0 | AW60: 0 | AX60: 0 | AY60: 0 | AZ60: 0 | BA60: 0 | BB60: 0 | BC60: 11.32737715 | BD60: 12.10102096 | BE60: 14.91525424 | BF60: 14.91218619 | BG60: 15.09927995 | BH60: 14.85616144
A61: Aruba | B61: ABW | C61: Electricity production from oil sources (% of total) | D61: EG.ELC.PETR.ZS
A62: Aruba | B62: ABW | C62: Electricity production from nuclear sources (% of total) | D62: EG.ELC.NUCL.ZS
A63: Aruba | B63: ABW | C63: Electricity production from natural gas sources (% of total) | D63: EG.ELC.NGAS.ZS
A64: Aruba | B64: ABW | C64: Electricity production from hydroelectric sources (% of total) | D64: EG.ELC.HYRO.ZS
A65: Aruba | B65: ABW | C65: Electricity production from coal sources (% of total) | D65: EG.ELC.COAL.ZS
A66: Aruba | B66: ABW | C66: Access to electricity (% of population) | D66: EG.ELC.ACCS.ZS | AI66: 100 | AJ66: 99.15365601 | AK66: 99.1971283 | AL66: 99.23991394 | AM66: 100 | AN66: 100 | AO66: 100 | AP66: 100 | AQ66: 100 | AR66: 100 | AS66: 91.660398 | AT66: 100 | AU66: 100 | AV66: 100 | AW66: 100 | AX66: 100 | AY66: 100 | AZ66: 100 | BA66: 100 | BB66: 100 | BC66: 93.35629215 | BD66: 100 | BE66: 100 | BF66: 100 | BG66: 100 | BH66: 100 | BI66: 100 | BJ66: 100 | BK66: 100 | BL66: 100
A67: Aruba | B67: ABW | C67: Foreign direct investment, net inflows (% of GDP) | D67: BX.KLT.DINV.WD.GD.ZS | AE67: 0 | AF67: 0.2231071191 | AG67: 2.056259425 | AH67: 0.1869684802 | AI67: 17.06170628 | AJ67: 21.18339665 | AK67: -3.858597892 | AL67: -1.655890738 | AM67: -5.875013791 | AN67: -0.4188437374 | AO67: 6.161619024 | AP67: 12.91308375 | AQ67: 6.814224316 | AR67: 27.13850724 | AS67: -6.828727173 | AT67: -13.90165842 | AU67: 17.12805755 | AV67: 7.904919845 | AW67: -4.743043369 | AX67: -8.915590376 | AY67: 9.086771661 | AZ67: -18.01110874 | BA67: 0.6878306878 | BB67: -0.4247708473 | BC67: 7.812573031 | BD67: 19.14548642 | BE67: -12.41569319 | BF67: 8.298528585 | BG67: 8.979994275 | BH67: -0.9712041444 | BI67: 0.9234122251 | BJ67: 5.253588366 | BK67: 4.244633596
A68: Aruba | B68: ABW | C68: Cereal yield (kg per hectare) | D68: AG.YLD.CREL.KG
A69: Aruba | B69: ABW | C69: Average precipitation in depth (mm per year) | D69: AG.LND.PRCP.MM
A70: Aruba | B70: ABW | C70: Agricultural irrigated land (% of total agricultural land) | D70: AG.LND.IRIG.AG.ZS
A71: Aruba | B71: ABW | C71: Forest area (% of land area) | D71: AG.LND.FRST.ZS | AI71: 2.333333333 | AJ71: 2.333333333 | AK71: 2.333333333 | AL71: 2.333333333 | AM71: 2.333333333 | AN71: 2.333333333 | AO71: 2.333333333 | AP71: 2.333333333 | AQ71: 2.333333333 | AR71: 2.333333333 | AS71: 2.333333333 | AT71: 2.333333333 | AU71: 2.333333333 | AV71: 2.333333333 | AW71: 2.333333333 | AX71: 2.333333333 | AY71: 2.333333333 | AZ71: 2.333333333 | BA71: 2.333333333 | BB71: 2.333333333 | BC71: 2.333333333 | BD71: 2.333333333 | BE71: 2.333333333 | BF71: 2.333333333 | BG71: 2.333333333 | BH71: 2.333333333 | BI71: 2.333333333 | BJ71: 2.333333333 | BK71: 2.333333333 | BL71: 2.333333333 | BM71: 2.333333333
A72: Aruba | B72: ABW | C72: Forest area (sq. km) | D72: AG.LND.FRST.K2 | AI72: 4.2 | AJ72: 4.2 | AK72: 4.2 | AL72: 4.2 | AM72: 4.2 | AN72: 4.2 | AO72: 4.2 | AP72: 4.2 | AQ72: 4.2 | AR72: 4.2 | AS72: 4.2 | AT72: 4.2 | AU72: 4.2 | AV72: 4.2 | AW72: 4.2 | AX72: 4.2 | AY72: 4.2 | AZ72: 4.2 | BA72: 4.2 | BB72: 4.2 | BC72: 4.2 | BD72: 4.2 | BE72: 4.2 | BF72: 4.2 | BG72: 4.2 | BH72: 4.2 | BI72: 4.2 | BJ72: 4.2 | BK72: 4.2 | BL72: 4.2 | BM72: 4.2
A73: Aruba | B73: ABW | C73: Land area where elevation is below 5 meters (% of total land area) | D73: AG.LND.EL5M.ZS | AI73: 7.07036754 | AS73: 7.07036754 | BC73: 7.07036754
A74: Aruba | B74: ABW | C74: Urban land area where elevation is below 5 meters (% of total land area) | D74: AG.LND.EL5M.UR.ZS | AI74: 4.717903532 | AS74: 4.717903532 | BC74: 4.717903532
A75: Aruba | B75: ABW | C75: Urban land area where elevation is below 5 meters (sq. km) | D75: AG.LND.EL5M.UR.K2 | AI75: 8.57979393 | AS75: 8.57979393 | BC75: 8.57979393
A76: Aruba | B76: ABW | C76: Rural land area where elevation is below 5 meters (% of total land area) | D76: AG.LND.EL5M.RU.ZS | AI76: 2.352464008 | AS76: 2.352464008 | BC76: 2.352464008
A77: Aruba | B77: ABW | C77: Rural land area where elevation is below 5 meters (sq. km) | D77: AG.LND.EL5M.RU.K2 | AI77: 4.278098583 | AS77: 4.278098583 | BC77: 4.278098583
A78: Aruba | B78: ABW | C78: Arable land (% of land area) | D78: AG.LND.ARBL.ZS | F78: 11.11111111 | G78: 11.11111111 | H78: 11.11111111 | I78: 11.11111111 | J78: 11.11111111 | K78: 11.11111111 | L78: 11.11111111 | M78: 11.11111111 | N78: 11.11111111 | O78: 11.11111111 | P78: 11.11111111 | Q78: 11.11111111 | R78: 11.11111111 | S78: 11.11111111 | T78: 11.11111111 | U78: 11.11111111 | V78: 11.11111111 | W78: 11.11111111 | X78: 11.11111111 | Y78: 11.11111111 | Z78: 11.11111111 | AA78: 11.11111111 | AB78: 11.11111111 | AC78: 11.11111111 | AD78: 11.11111111 | AE78: 11.11111111 | AF78: 11.11111111 | AG78: 11.11111111 | AH78: 11.11111111 | AI78: 11.11111111 | AJ78: 11.11111111 | AK78: 11.11111111 | AL78: 11.11111111 | AM78: 11.11111111 | AN78: 11.11111111 | AO78: 11.11111111 | AP78: 11.11111111 | AQ78: 11.11111111 | AR78: 11.11111111 | AS78: 11.11111111 | AT78: 11.11111111 | AU78: 11.11111111 | AV78: 11.11111111 | AW78: 11.11111111 | AX78: 11.11111111 | AY78: 11.11111111 | AZ78: 11.11111111 | BA78: 11.11111111 | BB78: 11.11111111 | BC78: 11.11111111 | BD78: 11.11111111 | BE78: 11.11111111 | BF78: 11.11111111 | BG78: 11.11111111 | BH78: 11.11111111 | BI78: 11.11111111 | BJ78: 11.11111111 | BK78: 11.11111111
A79: Aruba | B79: ABW | C79: Agricultural land (% of land area) | D79: AG.LND.AGRI.ZS | F79: 11.11111111 | G79: 11.11111111 | H79: 11.11111111 | I79: 11.11111111 | J79: 11.11111111 | K79: 11.11111111 | L79: 11.11111111 | M79: 11.11111111 | N79: 11.11111111 | O79: 11.11111111 | P79: 11.11111111 | Q79: 11.11111111 | R79: 11.11111111 | S79: 11.11111111 | T79: 11.11111111 | U79: 11.11111111 | V79: 11.11111111 | W79: 11.11111111 | X79: 11.11111111 | Y79: 11.11111111 | Z79: 11.11111111 | AA79: 11.11111111 | AB79: 11.11111111 | AC79: 11.11111111 | AD79: 11.11111111 | AE79: 11.11111111 | AF79: 11.11111111 | AG79: 11.11111111 | AH79: 11.11111111 | AI79: 11.11111111 | AJ79: 11.11111111 | AK79: 11.11111111 | AL79: 11.11111111 | AM79: 11.11111111 | AN79: 11.11111111 | AO79: 11.11111111 | AP79: 11.11111111 | AQ79: 11.11111111 | AR79: 11.11111111 | AS79: 11.11111111 | AT79: 11.11111111 | AU79: 11.11111111 | AV79: 11.11111111 | AW79: 11.11111111 | AX79: 11.11111111 | AY79: 11.11111111 | AZ79: 11.11111111 | BA79: 11.11111111 | BB79: 11.11111111 | BC79: 11.11111111 | BD79: 11.11111111 | BE79: 11.11111111 | BF79: 11.11111111 | BG79: 11.11111111 | BH79: 11.11111111 | BI79: 11.11111111 | BJ79: 11.11111111 | BK79: 11.11111111
A80: Aruba | B80: ABW | C80: Agricultural land (sq. km) | D80: AG.LND.AGRI.K2 | F80: 20 | G80: 20 | H80: 20 | I80: 20 | J80: 20 | K80: 20 | L80: 20 | M80: 20 | N80: 20 | O80: 20 | P80: 20 | Q80: 20 | R80: 20 | S80: 20 | T80: 20 | U80: 20 | V80: 20 | W80: 20 | X80: 20 | Y80: 20 | Z80: 20 | AA80: 20 | AB80: 20 | AC80: 20 | AD80: 20 | AE80: 20 | AF80: 20 | AG80: 20 | AH80: 20 | AI80: 20 | AJ80: 20 | AK80: 20 | AL80: 20 | AM80: 20 | AN80: 20 | AO80: 20 | AP80: 20 | AQ80: 20 | AR80: 20 | AS80: 20 | AT80: 20 | AU80: 20 | AV80: 20 | AW80: 20 | AX80: 20 | AY80: 20 | AZ80: 20 | BA80: 20 | BB80: 20 | BC80: 20 | BD80: 20 | BE80: 20 | BF80: 20 | BG80: 20 | BH80: 20 | BI80: 20 | BJ80: 20 | BK80: 20
A81: Africa Eastern and Southern | B81: AFE | C81: Urban population (% of total population) | D81: SP.URB.TOTL.IN.ZS | E81: 14.70468803 | F81: 14.94445944 | G81: 15.18560824 | H81: 15.44441389 | I81: 15.71907592 | J81: 16.00199217 | K81: 16.29373777 | L81: 16.59127846 | M81: 16.89762841 | N81: 17.21524892 | O81: 17.51915249 | P81: 17.83369904 | Q81: 18.16394129 | R81: 18.49316386 | S81: 18.81365388 | T81: 19.14767904 | U81: 19.49397651 | V81: 19.85235986 | W81: 20.21802055 | X81: 20.54967239 | Y81: 20.8449998 | Z81: 21.14342066 | AA81: 21.44512281 | AB81: 21.77597465 | AC81: 22.15034964 | AD81: 22.56397241 | AE81: 23.0119386 | AF81: 23.46524297 | AG81: 23.93198503 | AH81: 24.40612424 | AI81: 24.91922419 | AJ81: 25.40823554 | AK81: 25.92071883 | AL81: 26.41393046 | AM81: 26.81228768 | AN81: 27.16961718 | AO81: 27.50594153 | AP81: 27.81969699 | AQ81: 28.10573982 | AR81: 28.38454186 | AS81: 28.66928645 | AT81: 28.97707398 | AU81: 29.30419872 | AV81: 29.63127254 | AW81: 29.96182423 | AX81: 30.30970467 | AY81: 30.64624325 | AZ81: 30.91409378 | BA81: 31.33132106 | BB81: 31.7564714 | BC81: 32.1934098 | BD81: 32.64154811 | BE81: 33.07168716 | BF81: 33.50754797 | BG81: 33.95242436 | BH81: 34.40508391 | BI81: 34.86510094 | BJ81: 35.3323726 | BK81: 35.80777012 | BL81: 36.29132207 | BM81: 36.78330615
A82: Africa Eastern and Southern | B82: AFE | C82: Urban population | D82: SP.URB.TOTL | E82: 19239140 | F82: 20049454 | G82: 20897622 | H82: 21807831 | I82: 22780115 | J82: 23806156 | K82: 24889120 | L82: 26027808 | M82: 27231613 | N82: 28510477 | O82: 29827617 | P82: 31226835 | Q82: 32720733 | R82: 34281989 | S82: 35896602 | T82: 37607945 | U82: 39417943 | V82: 41331233 | W82: 43341045 | X82: 45361426 | Y82: 47381924 | Z82: 49487953 | AA82: 51682559 | AB82: 54036272 | AC82: 56600804 | AD82: 59379673 | AE82: 62373875 | AF82: 65511328 | AG82: 68810262 | AH82: 72248141 | AI82: 75915921 | AJ82: 79628062 | AK82: 83534720 | AL82: 87500260 | AM82: 91263650 | AN82: 94986520 | AO82: 98733565 | AP82: 102499055 | AQ82: 106267351 | AR82: 110125774 | AS82: 114136170 | AT82: 118377760 | AU82: 122850151 | AV82: 127487552 | AW82: 132320448 | AX82: 137425436 | AY82: 142683199 | AZ82: 147820966 | BA82: 153891037 | BB82: 160244637 | BC82: 166912605 | BD82: 173901249 | BE82: 181061819 | BF82: 188513993 | BG82: 196270604 | BH82: 204322110 | BI82: 212669776 | BJ82: 221319466 | BK82: 230276235 | BL82: 239539517 | BM82: 249112475
A83: Africa Eastern and Southern | B83: AFE | C83: Urban population growth (annual %) | D83: SP.URB.GROW | F83: 4.211799488 | G83: 4.230379541 | H83: 4.355562561 | I83: 4.458416795 | J83: 4.504108078 | K83: 4.54909226 | L83: 4.575043232 | M83: 4.625072538 | N83: 4.696247703 | O83: 4.61984554 | P83: 4.691015042 | Q83: 4.784019898 | R83: 4.771457901 | S83: 4.709799656 | T83: 4.76742339 | U83: 4.812807506 | V83: 4.853855514 | W83: 4.862695483 | X83: 4.661588109 | Y83: 4.454220641 | Z83: 4.444794179 | AA83: 4.434626746 | AB83: 4.554172714 | AC83: 4.745945464 | AD83: 4.909592804 | AE83: 5.042469668 | AF83: 5.030075492 | AG83: 5.035669556 | AH83: 4.996171937 | AI83: 5.076642733 | AJ83: 4.889805657 | AK83: 4.906132213 | AL83: 4.747175785 | AM83: 4.301004363 | AN83: 4.079247324 | AO83: 3.944817644 | AP83: 3.813789161 | AQ83: 3.676420236 | AR83: 3.630864008 | AS83: 3.641650682 | AT83: 3.716254015 | AU83: 3.778066927 | AV83: 3.774843549 | AW83: 3.790876775 | AX83: 3.858049211 | AY83: 3.825902361 | AZ83: 3.600821285 | BA83: 4.106366752 | BB83: 4.12863551 | BC83: 4.161117729 | BD83: 4.187007925 | BE83: 4.117606999 | BF83: 4.115817482 | BG83: 4.114607556 | BH83: 4.102247528 | BI83: 4.085542186 | BJ83: 4.067192886 | BK83: 4.04698654 | BL83: 4.022682584 | BM83: 3.99640031
A84: Africa Eastern and Southern | B84: AFE | C84: Population, total | D84: SP.POP.TOTL | E84: 130836765 | F84: 134159786 | G84: 137614644 | H84: 141202036 | I84: 144920186 | J84: 148769974 | K84: 152752671 | L84: 156876454 | M84: 161156430 | N84: 165611760 | O84: 170257189 | P84: 175100167 | Q84: 180141148 | R84: 185376550 | S84: 190800796 | T84: 196409937 | U84: 202205766 | V84: 208193045 | W84: 214368393 | X84: 220740384 | Y84: 227305945 | Z84: 234058404 | AA84: 240999134 | AB84: 248146290 | AC84: 255530063 | AD84: 263161451 | AE84: 271050065 | AF84: 279184536 | AG84: 287524258 | AH84: 296024639 | AI84: 304648010 | AJ84: 313394693 | AK84: 322270073 | AL84: 331265579 | AM84: 340379934 | AN84: 349605660 | AO84: 358953595 | AP84: 368440591 | AQ84: 378098393 | AR84: 387977990 | AS84: 398113044 | AT84: 408522129 | AU84: 419223717 | AV84: 430246635 | AW84: 441630149 | AX84: 453404076 | AY84: 465581372 | AZ84: 478166911 | BA84: 491173160 | BB84: 504604672 | BC84: 518468229 | BD84: 532760424 | BE84: 547482863 | BF84: 562601578 | BG84: 578075373 | BH84: 593871847 | BI84: 609978946 | BJ84: 626392880 | BK84: 643090131 | BL84: 660046272 | BM84: 677243299
A85: Africa Eastern and Southern | B85: AFE | C85: Population growth (annual %) | D85: SP.POP.GROW | F85: 2.539822045 | G85: 2.575181508 | H85: 2.606838848 | I85: 2.633212739 | J85: 2.656488448 | K85: 2.677083885 | L85: 2.699647065 | M85: 2.728246267 | N85: 2.764599588 | O85: 2.805011552 | P85: 2.8445072 | Q85: 2.878912731 | R85: 2.906277693 | S85: 2.926069128 | T85: 2.939789098 | U85: 2.950883794 | V85: 2.960983318 | W85: 2.966164408 | X85: 2.972448928 | Y85: 2.974336132 | Z85: 2.970647776 | AA85: 2.965383802 | AB85: 2.965635553 | AC85: 2.975572595 | AD85: 2.986493217 | AE85: 2.997632811 | AF85: 3.001095388 | AG85: 2.987171897 | AH85: 2.956404812 | AI85: 2.913058531 | AJ85: 2.871078331 | AK85: 2.832013496 | AL85: 2.791294245 | AM85: 2.751373997 | AN85: 2.710420057 | AO85: 2.673851161 | AP85: 2.642958904 | AQ85: 2.621264387 | AR85: 2.612969847 | AS85: 2.612275506 | AT85: 2.614605363 | AU85: 2.619585878 | AV85: 2.629364121 | AW85: 2.64581128 | AX85: 2.666015223 | AY85: 2.685749124 | AZ85: 2.703187833 | BA85: 2.7200228 | BB85: 2.734577761 | BC85: 2.74740956 | BD85: 2.756619249 | BE85: 2.763425798 | BF85: 2.761495568 | BG85: 2.750400213 | BH85: 2.73259764 | BI85: 2.712217978 | BJ85: 2.690901728 | BK85: 2.665619539 | BL85: 2.636666337 | BM85: 2.605427487
A86: Africa Eastern and Southern | B86: AFE | C86: Poverty headcount ratio at $1.90 a day (2011 PPP) (% of population) | D86: SI.POV.DDAY
A87: Africa Eastern and Southern | B87: AFE | C87: Prevalence of underweight, weight for age (% of children under 5) | D87: SH.STA.MALN.ZS
A88: Africa Eastern and Southern | B88: AFE | C88: Community health workers (per 1,000 people) | D88: SH.MED.CMHW.P3
A89: Africa Eastern and Southern | B89: AFE | C89: Mortality rate, under-5 (per 1,000 live births) | D89: SH.DYN.MORT | K89: 225.0155476 | L89: 223.5800309 | M89: 217.2663799 | N89: 215.9640017 | O89: 214.6803703 | P89: 213.2825946 | Q89: 211.8596476 | R89: 210.4980156 | S89: 209.1948822 | T89: 207.8382287 | U89: 206.4450718 | V89: 208.0446363 | W89: 206.0752048 | X89: 203.6647947 | Y89: 201.1441657 | Z89: 198.2945702 | AA89: 195.424247 | AB89: 192.5879196 | AC89: 189.993528 | AD89: 187.6372764 | AE89: 185.5189936 | AF89: 183.5605335 | AG89: 181.6635411 | AH89: 179.7603192 | AI89: 164.7827929 | AJ89: 163.1122511 | AK89: 161.4465804 | AL89: 159.8275272 | AM89: 159.5674135 | AN89: 156.5529567 | AO89: 152.7003456 | AP89: 149.9071016 | AQ89: 146.5940303 | AR89: 141.8681491 | AS89: 136.9178151 | AT89: 131.6704217 | AU89: 126.1390847 | AV89: 120.6359927 | AW89: 115.2636319 | AX89: 110.0600547 | AY89: 105.1961851 | AZ89: 100.2763803 | BA89: 95.3952283 | BB89: 90.5982173 | BC89: 86.2085875 | BD89: 82.1051874 | BE89: 78.35422845 | BF89: 74.99159745 | BG89: 71.99684099 | BH89: 69.28894686 | BI89: 66.6676139 | BJ89: 64.34702472 | BK89: 62.11538711 | BL89: 60.09865884
A90: Africa Eastern and Southern | B90: AFE | C90: Primary completion rate, total (% of relevant age group) | D90: SE.PRM.CMPT.ZS
A91: Africa Eastern and Southern | B91: AFE | C91: School enrollment, primary and secondary (gross), gender parity index (GPI) | D91: SE.ENR.PRSC.FM.ZS
A92: Africa Eastern and Southern | B92: AFE | C92: Agriculture, forestry, and fishing, value added (% of GDP) | D92: NV.AGR.TOTL.ZS | Z92: 19.90750596 | AA92: 18.91440911 | AB92: 18.15896378 | AC92: 17.4824293 | AD92: 18.3198346 | AE92: 18.34434125 | AF92: 18.05107198 | AG92: 18.875071 | AH92: 18.46574712 | AI92: 19.79755636 | AJ92: 20.48238398 | AK92: 20.37655149 | AL92: 20.92931761 | AM92: 20.9439629 | AN92: 18.97711222 | AO92: 18.6075752 | AP92: 19.45505261 | AQ92: 18.69399433 | AR92: 17.30966945 | AS92: 15.69634937 | AT92: 15.5490962 | AU92: 14.65637469 | AV92: 14.58177378 | AW92: 14.10192107 | AX92: 13.82894383 | AY92: 13.43546433 | AZ92: 13.60809531 | BA92: 13.89008494 | BB92: 14.0237815 | BC92: 13.24613168 | BD92: 12.74861802 | BE92: 13.32417984 | BF92: 12.76248027 | BG92: 12.79603645 | BH92: 12.80428744 | BI92: 12.38577419 | BJ92: 12.42169182 | BK92: 11.89069702 | BL92: 11.52656275 | BM92: 12.53649578
A93: Africa Eastern and Southern | B93: AFE | C93: CPIA public sector management and institutions cluster average (1=low to 6=high) | D93: IQ.CPA.PUBS.XQ | AX93: 2.972222222 | AY93: 2.961111111 | AZ93: 2.961111111 | BA93: 2.944444444 | BB93: 2.95 | BC93: 2.933333333 | BD93: 2.916666667 | BE93: 2.868421053 | BF93: 2.847368421 | BG93: 2.927777778 | BH93: 2.911111111 | BI93: 2.916666667 | BJ93: 2.836842105 | BK93: 2.877777778 | BL93: 2.789473684 | BM93: 2.768421053
A94: Africa Eastern and Southern | B94: AFE | C94: Ease of doing business rank (1=most business-friendly regulations) | D94: IC.BUS.EASE.XQ
A95: Africa Eastern and Southern | B95: AFE | C95: Terrestrial and marine protected areas (% of total territorial area) | D95: ER.PTD.TOTL.ZS | BI95: 14.39985207 | BJ95: 14.99749642 | BK95: 14.99749857
A96: Africa Eastern and Southern | B96: AFE | C96: Marine protected areas (% of territorial waters) | D96: ER.MRN.PTMR.ZS | BI96: 4.911005446 | BJ96: 4.92257077 | BK96: 4.922569178
A97: Africa Eastern and Southern | B97: AFE | C97: Terrestrial protected areas (% of total land area) | D97: ER.LND.PTLD.ZS | BI97: 16.4936605 | BJ97: 16.90734414 | BK97: 16.90734611
A98: Africa Eastern and Southern | B98: AFE | C98: Annual freshwater withdrawals, total (% of internal resources) | D98: ER.H2O.FWTL.ZS | AP98: 2.449429365 | AU98: 2.826257421 | AZ98: 3.024678079 | BE98: 4.48896609 | BJ98: 4.868366375
A99: Africa Eastern and Southern | B99: AFE | C99: Annual freshwater withdrawals, total (billion cubic meters) | D99: ER.H2O.FWTL.K3 | AK99: 39.20855492 | AP99: 44.58678369 | AU99: 55.27374216 | AZ99: 59.15345966 | BE99: 89.13168046 | BJ99: 96.663994
A100: Africa Eastern and Southern | B100: AFE | C100: Population in urban agglomerations of more than 1 million (% of total population) | D100: EN.URB.MCTY.TL.ZS | E100: 6.442063882 | F100: 6.571229275 | G100: 6.707771606 | H100: 6.84365504 | I100: 6.987701331 | J100: 7.139453531 | K100: 7.299256731 | L100: 7.468629267 | M100: 7.646984963 | N100: 7.82431904 | O100: 7.982769986 | P100: 8.102307101 | Q100: 8.220072938 | R100: 8.337829867 | S100: 8.450550915 | T100: 8.56288395 | U100: 8.671500757 | V100: 8.784768821 | W100: 8.902015558 | X100: 9.007555153 | Y100: 9.116084424 | Z100: 9.215846876 | AA100: 9.318928525 | AB100: 9.447960305 | AC100: 9.597653943 | AD100: 9.735827797 | AE100: 9.887258543 | AF100: 10.04282956 | AG100: 10.20260696 | AH100: 10.36164298 | AI100: 10.5285617 | AJ100: 10.71248489 | AK100: 10.90711687 | AL100: 11.08743452 | AM100: 11.22903324 | AN100: 11.3735554 | AO100: 11.52790636 | AP100: 11.6760517 | AQ100: 11.81214662 | AR100: 11.9423528 | AS100: 12.07137863 | AT100: 12.20459893 | AU100: 12.32461699 | AV100: 12.43276448 | AW100: 12.54305981 | AX100: 12.65466896 | AY100: 12.77828506 | AZ100: 12.81032565 | BA100: 12.96317645 | BB100: 13.11773705 | BC100: 13.27485807 | BD100: 13.43430391 | BE100: 13.5922845 | BF100: 13.75397585 | BG100: 13.91749916 | BH100: 14.05620983 | BI100: 14.20170475 | BJ100: 14.35404088 | BK100: 14.49578093 | BL100: 14.62338017 | BM100: 14.76120188
A101: Africa Eastern and Southern | B101: AFE | C101: Population living in areas where elevation is below 5 meters (% of total population) | D101: EN.POP.EL5M.ZS | AI101: 0.645670807 | AS101: 0.6848243403 | BC101: 0.7049827222
A102: Africa Eastern and Southern | B102: AFE | C102: Urban population living in areas where elevation is below 5 meters (% of total population) | D102: EN.POP.EL5M.UR.ZS | AI102: 0.305602105 | AS102: 0.3504656726 | BC102: 0.3675477234
A103: Africa Eastern and Southern | B103: AFE | C103: Rural population living in areas where elevation is below 5 meters (% of total population) | D103: EN.POP.EL5M.RU.ZS | AI103: 0.340068702 | AS103: 0.3343586677 | BC103: 0.3374349988
A104: Africa Eastern and Southern | B104: AFE | C104: Droughts, floods, extreme temperatures (% of population, average 1990-2009) | D104: EN.CLC.MDAT.ZS
A105: Africa Eastern and Southern | B105: AFE | C105: GHG net emissions/removals by LUCF (Mt of CO2 equivalent) | D105: EN.CLC.GHGR.MT.CE
A106: Africa Eastern and Southern | B106: AFE | C106: Disaster risk reduction progress score (1-5 scale; 5=best) | D106: EN.CLC.DRSK.XQ
A107: Africa Eastern and Southern | B107: AFE | C107: SF6 gas emissions (thousand metric tons of CO2 equivalent) | D107: EN.ATM.SF6G.KT.CE
A108: Africa Eastern and Southern | B108: AFE | C108: PFC gas emissions (thousand metric tons of CO2 equivalent) | D108: EN.ATM.PFCG.KT.CE
A109: Africa Eastern and Southern | B109: AFE | C109: Nitrous oxide emissions (% change from 1990) | D109: EN.ATM.NOXE.ZG
A110: Africa Eastern and Southern | B110: AFE | C110: Nitrous oxide emissions (thousand metric tons of CO2 equivalent) | D110: EN.ATM.NOXE.KT.CE | O110: 316355.1448 | P110: 204036.1407 | Q110: 215244.8763 | R110: 230103.8203 | S110: 200117.7594 | T110: 230850.3545 | U110: 212867.1892 | V110: 242567.1492 | W110: 245727.4069 | X110: 308081.4551 | Y110: 275309.9689 | Z110: 240382.1759 | AA110: 270046.0801 | AB110: 264398.0678 | AC110: 217867.8499 | AD110: 215743.0853 | AE110: 210116.1744 | AF110: 267243.991 | AG110: 205320.3594 | AH110: 229784.4551 | AI110: 209670 | AJ110: 209330 | AK110: 212110 | AL110: 211680 | AM110: 214300 | AN110: 214790 | AO110: 212410 | AP110: 210570 | AQ110: 219470 | AR110: 215020 | AS110: 211260 | AT110: 210450 | AU110: 224400 | AV110: 229140 | AW110: 231320 | AX110: 239810 | AY110: 233690 | AZ110: 249430 | BA110: 257080 | BB110: 256110 | BC110: 267280 | BD110: 272840 | BE110: 275740 | BF110: 274830 | BG110: 276360 | BH110: 279960 | BI110: 284380 | BJ110: 286140 | BK110: 286710
A111: Africa Eastern and Southern | B111: AFE | C111: Methane emissions (% change from 1990) | D111: EN.ATM.METH.ZG
A112: Africa Eastern and Southern | B112: AFE | C112: Methane emissions (kt of CO2 equivalent) | D112: EN.ATM.METH.KT.CE | O112: 384746.7182 | P112: 265076.7091 | Q112: 278192.0872 | R112: 296153.8053 | S112: 269903.4576 | T112: 303388.4675 | U112: 286699.8136 | V112: 319345.1963 | W112: 327883.6744 | X112: 396278.3059 | Y112: 359098.5521 | Z112: 327764.3155 | AA112: 361468.6268 | AB112: 359525.6917 | AC112: 313396.086 | AD112: 317176.2149 | AE112: 314774.5605 | AF112: 376226.647 | AG112: 313076.9568 | AH112: 341636.5722 | AI112: 330740 | AJ112: 331400 | AK112: 337860 | AL112: 338280 | AM112: 344760 | AN112: 350310 | AO112: 352330 | AP112: 357750 | AQ112: 374740 | AR112: 377590 | AS112: 377850 | AT112: 382600 | AU112: 405520 | AV112: 417940 | AW112: 426540 | AX112: 443630 | AY112: 444700 | AZ112: 472630 | BA112: 491160 | BB112: 496350 | BC112: 515480 | BD112: 523850 | BE112: 534240 | BF112: 538060 | BG112: 543720 | BH112: 554570 | BI112: 563050 | BJ112: 564380 | BK112: 570040
A113: Africa Eastern and Southern | B113: AFE | C113: HFC gas emissions (thousand metric tons of CO2 equivalent) | D113: EN.ATM.HFCG.KT.CE
A114: Africa Eastern and Southern | B114: AFE | C114: Total greenhouse gas emissions (% change from 1990) | D114: EN.ATM.GHGT.ZG
A115: Africa Eastern and Southern | B115: AFE | C115: Total greenhouse gas emissions (kt of CO2 equivalent) | D115: EN.ATM.GHGT.KT.CE | O115: 2512439.361 | P115: 1654419.449 | Q115: 1738184.787 | R115: 1853504.142 | S115: 1678932.253 | T115: 1908922.17 | U115: 1770472.899 | V115: 1969867.575 | W115: 2018168.247 | X115: 2508419.488 | Y115: 2213255.337 | Z115: 2001074.47 | AA115: 2197200.83 | AB115: 2191273.179 | AC115: 1543268.531 | AD115: 1559561.233 | AE115: 1479619.566 | AF115: 1928433.869 | AG115: 1463300.209 | AH115: 1614576.372 | AI115: 838050 | AJ115: 842590 | AK115: 848740 | AL115: 855350 | AM115: 870920 | AN115: 895540 | AO115: 905810 | AP115: 926000 | AQ115: 960820 | AR115: 945540 | AS115: 948360 | AT115: 991070 | AU115: 1040470 | AV115: 1083510 | AW115: 1126950 | AX115: 1154760 | AY115: 1159200 | AZ115: 1227540 | BA115: 1288080 | BB115: 1276100 | BC115: 1335490 | BD115: 1342560 | BE115: 1381860 | BF115: 1406900 | BG115: 1436410 | BH115: 1436770 | BI115: 1457530 | BJ115: 1471620 | BK115: 1478910
A116: Africa Eastern and Southern | B116: AFE | C116: Other greenhouse gas emissions (% change from 1990) | D116: EN.ATM.GHGO.ZG
A117: Africa Eastern and Southern | B117: AFE | C117: Other greenhouse gas emissions, HFC, PFC and SF6 (thousand metric tons of CO2 equivalent) | D117: EN.ATM.GHGO.KT.CE | O117: 1587419.453 | P117: 962644.8691 | Q117: 1013296.704 | R117: 1074440.171 | S117: 949134.9734 | T117: 1101878.99 | U117: 984931.8485 | V117: 1119055.278 | W117: 1176444.985 | X117: 1529059.238 | Y117: 1293217.179 | Z117: 1138988.142 | AA117: 1279080.966 | AB117: 1289548.543 | AC117: 1032199.443 | AD117: 1043607.774 | AE117: 969010.5281 | AF117: 1294200.334 | AG117: 954367.2447 | AH117: 1053647.877 | AI117: -23342.39655 | AJ117: -24323.73606 | AK117: -29755.71562 | AL117: -22821.26338 | AM117: -23583.99622 | AN117: -21069.70663 | AO117: -24252.47034 | AP117: -26831.09998 | AQ117: -23891.5332 | AR117: -22184.44696 | AS117: -20582.66296 | AT117: 29919.73966 | AU117: 27150.51747 | AV117: 22082.33366 | AW117: 28499.03649 | AX117: 16324.45955 | AY117: 15362.02719 | AZ117: 18215.2631 | BA117: 24455.62422 | BB117: 27924.61692 | BC117: 42800.27079 | BD117: 48331.31989 | BE117: 72440.63354 | BF117: 70001.98666 | BG117: 73024.7117 | BH117: 68559.00421 | BI117: 73149.43151
A118: Africa Eastern and Southern | B118: AFE | C118: CO2 emissions from solid fuel consumption (% of total) | D118: EN.ATM.CO2E.SF.ZS | E118: 82.89841409 | F118: 82.13513949 | G118: 81.54009096 | H118: 81.20831581 | I118: 79.03553564 | J118: 79.52740701 | K118: 77.76031621 | L118: 76.74853055 | M118: 76.49283569 | N118: 74.04156474 | O118: 73.00560417 | P118: 70.16218501 | Q118: 70.4330865 | R118: 68.88671842 | S118: 69.02946015 | T118: 68.6251945 | U118: 70.79557528 | V118: 71.19941336 | W118: 71.01599304 | X118: 73.36151628 | Y118: 75.42964986 | Z118: 76.42146778 | AA118: 75.52487449 | AB118: 75.2511176 | AC118: 77.61427162 | AD118: 78.32451481 | AE118: 78.72109827 | AF118: 79.64055612 | AG118: 79.09073167 | AH118: 77.13280234 | AI118: 93.7717913 | AJ118: 98.80136462 | AK118: 94.38918094 | AL118: 102.2804557 | AM118: 103.5271956 | AN118: 102.9804956 | AO118: 100.9875485 | AP118: 98.71380099 | AQ118: 94.45561538 | AR118: 101.542166 | AS118: 100.2262782 | AT118: 90.28344167 | AU118: 84.58330636 | AV118: 86.77752635 | AW118: 86.41347187 | AX118: 84.86799163 | AY118: 84.53311183 | AZ118: 82.57952677 | BA118: 82.21462144 | BB118: 83.32358025 | BC118: 78.4813453 | BD118: 78.59277294 | BE118: 74.4807087 | BF118: 71.66384724 | BG118: 72.9796372 | BH118: 70.24611323 | BI118: 71.73671033
A119: Africa Eastern and Southern | B119: AFE | C119: CO2 emissions from solid fuel consumption (kt) | D119: EN.ATM.CO2E.SF.KT | E119: 140720.1947 | F119: 145544.2338 | G119: 149619.6782 | H119: 154506.7818 | I119: 163954.3594 | J119: 178043.7227 | K119: 176465.867 | L119: 182048.1435 | M119: 191261.872 | N119: 194639.243 | O119: 200671.2165 | P119: 215345.7755 | Q119: 220512.9499 | R119: 221064.1782 | S119: 224544.9931 | T119: 228847.4704 | U119: 244911.4937 | V119: 251900.1625 | W119: 255840.4097 | X119: 283259.4104 | Y119: 304592.5064 | Z119: 339324.3216 | AA119: 357749.5874 | AB119: 372115.7817 | AC119: 408220.4386 | AD119: 421646.1823 | AE119: 435758.3469 | AF119: 444287.2614 | AG119: 459977.6535 | AH119: 445422.288 | AI119: 418057.3362 | AJ119: 435486.5157 | AK119: 410465.8163 | AL119: 453757.9976 | AM119: 469410.783 | AN119: 494134.5169 | AO119: 499976.6396 | AP119: 512411.3981 | AQ119: 502280.2508 | AR119: 519043.0873 | AS119: 521084.4379 | AT119: 519955.7546 | AU119: 501826.6173 | AV119: 546909.1428 | AW119: 585160.1644 | AX119: 576519.527 | AY119: 584328.5031 | AZ119: 599001.3854 | BA119: 636223.9822 | BB119: 623172.0431 | BC119: 618970.7983 | BD119: 573566.3938 | BE119: 569101.8156 | BF119: 568310.3676 | BG119: 600029.1665 | BH119: 562704.2779 | BI119: 580440.8296
A120: Africa Eastern and Southern | B120: AFE | C120: CO2 emissions (kg per 2017 PPP $ of GDP) | D120: EN.ATM.CO2E.PP.GD.KD | AI120: 0.3228617269 | AJ120: 0.3165812079 | AK120: 0.3188120327 | AL120: 0.3268335852 | AM120: 0.3271463412 | AN120: 0.3315794238 | AO120: 0.3241677847 | AP120: 0.3281164214 | AQ120: 0.3298584908 | AR120: 0.308798655 | AS120: 0.304025199 | AT120: 0.3249001559 | AU120: 0.3226813295 | AV120: 0.3327515179 | AW120: 0.3385600558 | AX120: 0.3197628189 | AY120: 0.305115371 | AZ120: 0.2999600124 | BA120: 0.3063487185 | BB120: 0.2935018906 | BC120: 0.2940068954 | BD120: 0.278142598 | BE120: 0.2833480276 | BF120: 0.2822627761 | BG120: 0.280948881 | BH120: 0.2652513058 | BI120: 0.2611921283 | BJ120: 0.2579467404 | BK120: 0.250835021
A121: Africa Eastern and Southern | B121: AFE | C121: CO2 emissions (kg per PPP $ of GDP) | D121: EN.ATM.CO2E.PP.GD | AI121: 0.5489389203 | AJ121: 0.5206215732 | AK121: 0.5115731066 | AL121: 0.5107906152 | AM121: 0.5004709521 | AN121: 0.496534796 | AO121: 0.4768251462 | AP121: 0.4736861636 | AQ121: 0.4710123642 | AR121: 0.434054644 | AS121: 0.4173162878 | AT121: 0.4362815973 | AU121: 0.425748663 | AV121: 0.4299626255 | AW121: 0.4258345867 | AX121: 0.3899841126 | AY121: 0.3611174063 | AZ121: 0.3457414024 | BA121: 0.3459622563 | BB121: 0.3289191816 | BC121: 0.3262474097 | BD121: 0.3027676963 | BE121: 0.3157943559 | BF121: 0.3068312055 | BG121: 0.2975436568 | BH121: 0.2799396664 | BI121: 0.2681683253 | BJ121: 0.2596318006 | BK121: 0.2465539104
A122: Africa Eastern and Southern | B122: AFE | C122: CO2 emissions (metric tons per capita) | D122: EN.ATM.CO2E.PC | E122: 0.9060595568 | F122: 0.9224739173 | G122: 0.9308158935 | H122: 0.9405695293 | I122: 0.996033447 | J122: 1.047279743 | K122: 1.033908319 | L122: 1.052204052 | M122: 1.079726652 | N122: 1.104631605 | O122: 1.123261243 | P122: 1.219593048 | Q122: 1.209262779 | R122: 1.204522542 | S122: 1.186045209 | T122: 1.181139367 | U122: 1.190203366 | V122: 1.182217743 | W122: 1.169157603 | X122: 1.216900549 | Y122: 1.235910896 | Z122: 1.319763789 | AA122: 1.367396551 | AB122: 1.386366901 | AC122: 1.431963637 | AD122: 1.423144569 | AE122: 1.4207769 | AF122: 1.390141636 | AG122: 1.407205363 | AH122: 1.357143612 | AI122: 1.017504843 | AJ122: 0.9713237983 | AK122: 0.931920141 | AL122: 0.9254646317 | AM122: 0.9186118141 | AN122: 0.9464749483 | AO122: 0.9511323224 | AP122: 0.9715626275 | AQ122: 0.9696800778 | AR122: 0.908374394 | AS122: 0.9003991498 | AT122: 0.9719807866 | AU122: 0.975749135 | AV122: 1.009962896 | AW122: 1.057181535 | AX122: 1.032998428 | AY122: 1.023645551 | AZ122: 1.045967785 | BA122: 1.086448849 | BB122: 1.021953566 | BC122: 1.048875556 | BD122: 1.00533811 | BE122: 1.021646329 | BF122: 1.031833091 | BG122: 1.041144792 | BH122: 0.9873931674 | BI122: 0.9710164553 | BJ122: 0.9599780168 | BK122: 0.9335412011
A123: Africa Eastern and Southern | B123: AFE | C123: CO2 emissions from liquid fuel consumption (% of total) | D123: EN.ATM.CO2E.LF.ZS | E123: 15.34395097 | F123: 16.28769553 | G123: 16.85564762 | H123: 17.118308 | I123: 19.11994581 | J123: 18.53443074 | K123: 20.24192204 | L123: 21.30815146 | M123: 21.3740788 | N123: 23.63146751 | O123: 23.66728935 | P123: 26.74027506 | Q123: 26.2993458 | R123: 27.5516562 | S123: 27.28179054 | T123: 27.96777749 | U123: 26.37335167 | V123: 25.67028736 | W123: 25.82290635 | X123: 23.71986898 | Y123: 21.67523289 | Z123: 20.8141106 | AA123: 21.87243268 | AB123: 22.22950891 | AC123: 19.92354489 | AD123: 19.50482425 | AE123: 19.14446961 | AF123: 18.17759047 | AG123: 18.52085908 | AH123: 20.47958219 | AI123: 23.65214396 | AJ123: 24.42257525 | AK123: 22.60244735 | AL123: 18.79504846 | AM123: 20.76069299 | AN123: 23.43693261 | AO123: 22.43125625 | AP123: 24.3648403 | AQ123: 23.87795059 | AR123: 21.41099484 | AS123: 21.72279155 | AT123: 18.13057971 | AU123: 16.90501018 | AV123: 20.71325879 | AW123: 22.91067528 | AX123: 17.37506276 | AY123: 23.74717856 | AZ123: 24.69233936 | BA123: 24.59621673 | BB123: 29.03447811 | BC123: 22.59206677 | BD123: 26.38552105 | BE123: 24.13415586 | BF123: 24.41233326 | BG123: 27.54060343 | BH123: 27.89501511 | BI123: 28.1939461
A124: Africa Eastern and Southern | B124: AFE | C124: CO2 emissions from liquid fuel consumption (kt) | D124: EN.ATM.CO2E.LF.KT | E124: 19142.36641 | F124: 21213.28734 | G124: 22679.31452 | H124: 23873.84504 | I124: 28742.467 | J124: 30074.04334 | K124: 33293.32497 | L124: 36630.09863 | M124: 38733.20597 | N124: 45022.94599 | O124: 47137.80254 | P124: 59470.54932 | Q124: 59670.28577 | R124: 64076.2369 | S124: 64303.38816 | T124: 67577.4994 | U124: 66108.84902 | V124: 65807.28615 | W124: 67409.09416 | X124: 66363.41509 | Y124: 63422.19793 | Z124: 66966.54085 | AA124: 75073.49093 | AB124: 79651.76371 | AC124: 75931.18275 | AD124: 76083.92239 | AE124: 76788.87458 | AF124: 73479.51572 | AG124: 78049.9557 | AH124: 85694.77047 | AI124: 74768.01165 | AJ124: 75042.83792 | AK124: 68519.82853 | AL124: 58127.4287 | AM124: 64913.91798 | AN124: 77551.16919 | AO124: 76583.08277 | AP124: 87217.13977 | AQ124: 87544.79979 | AR124: 75458.61315 | AS124: 77867.65898 | AT124: 71992.11908 | AU124: 69151.15778 | AV124: 90005.97334 | AW124: 106966.1028 | AX124: 81378.83396 | AY124: 113176.7495 | AZ124: 123498.0401 | BA124: 131253.9017 | BB124: 149725.7353 | BC124: 122857.6137 | BD124: 141322.0005 | BE124: 133986.8842 | BF124: 140662.6365 | BG124: 164523.567 | BH124: 162356.0671 | BI124: 165751.0797
A125: Africa Eastern and Southern | B125: AFE | C125: CO2 emissions (kt) | D125: EN.ATM.CO2E.KT | E125: 118545.9013 | F125: 123758.9033 | G125: 128093.8978 | H125: 132810.3325 | I125: 144345.3524 | J125: 155803.7801 | K125: 157932.2573 | L125: 165066.0405 | M125: 174004.8927 | N125: 182939.9843 | O125: 191243.3018 | P125: 213550.9464 | Q125: 217837.9853 | R125: 223290.2332 | S125: 226298.37 | T125: 231987.5087 | U125: 240665.9833 | V125: 246129.5118 | W125: 250630.4364 | X125: 268619.0944 | Y125: 280929.8942 | Z125: 308901.8061 | AA125: 329541.3846 | AB125: 344021.803 | AC125: 365909.7583 | AD125: 374516.7897 | AE125: 385101.671 | AF125: 388106.0476 | AG125: 404605.6778 | AH125: 401747.9479 | AI125: 309980.8254 | AJ125: 304407.7236 | AK125: 300329.9719 | AL125: 306574.5771 | AM125: 312677.0287 | AN125: 330892.999 | AO125: 341412.3664 | AP125: 357963.1087 | AQ125: 366634.4792 | AR125: 352429.2715 | AS125: 358460.6463 | AT125: 397075.6603 | AU125: 409057.1792 | AV125: 434533.1377 | AW125: 466883.2388 | AX125: 468365.6979 | AY125: 476590.2999 | AZ125: 500147.1845 | BA125: 533634.5146 | BB125: 515682.5438 | BC125: 543808.6518 | BD125: 535604.3575 | BE125: 559333.8573 | BF125: 580510.925 | BG125: 601860.164 | BH125: 586385.004 | BI125: 592299.594 | BJ125: 601323.3947 | BK125: 600351.1333
A126: Africa Eastern and Southern | B126: AFE | C126: CO2 emissions (kg per 2015 US$ of GDP) | D126: EN.ATM.CO2E.KD.GD | Y126: 0.902818107 | Z126: 0.955508003 | AA126: 1.016672017 | AB126: 1.058838487 | AC126: 1.0890454 | AD126: 1.11548011 | AE126: 1.122052547 | AF126: 1.08890262 | AG126: 1.088956735 | AH126: 1.05442402 | AI126: 0.8126288624 | AJ126: 0.7995095058 | AK126: 0.8091461884 | AL126: 0.8373082084 | AM126: 0.8376938535 | AN126: 0.8487639921 | AO126: 0.8291581475 | AP126: 0.8412811752 | AQ126: 0.8466160106 | AR126: 0.7930450171 | AS126: 0.7820319634 | AT126: 0.8372186537 | AU126: 0.8290890427 | AV126: 0.8554832719 | AW126: 0.8700173556 | AX126: 0.8189717518 | AY126: 0.7787351585 | AZ126: 0.7611169409 | BA126: 0.7732358253 | BB126: 0.7362108578 | BC126: 0.7378736511 | BD126: 0.6959758728 | BE126: 0.7047729408 | BF126: 0.6976480541 | BG126: 0.6924776812 | BH126: 0.6548567446 | BI126: 0.646623831 | BJ126: 0.6366656183 | BK126: 0.6191161964
A127: Africa Eastern and Southern | B127: AFE | C127: CO2 emissions from gaseous fuel consumption (% of total) | D127: EN.ATM.CO2E.GF.ZS | E127: 0 | F127: 0 | G127: 0 | H127: 0 | I127: 0 | J127: 0 | K127: 0 | L127: 0 | M127: 0 | N127: 0 | O127: 0.04522662472 | P127: 0.04050222762 | Q127: 0.05178395733 | R127: 0.05725544348 | S127: 0.05981755645 | T127: 0.05510892116 | U127: 0.0468720705 | V127: 0.05652565807 | W127: 0.055510547 | X127: 0.05319297853 | Y127: 0.05487739587 | Z127: 0.05842899052 | AA127: 0.05476951164 | AB127: 0.06011520259 | AC127: 0.06165734956 | AD127: 0.06024035903 | AE127: 0.06541946571 | AF127: 0.07847696556 | AG127: 0.07620605373 | AH127: 0.08142788952 | AI127: 1.468297277 | AJ127: 1.530009354 | AK127: 1.553266405 | AL127: 1.651549618 | AM127: 1.590930701 | AN127: 1.526978949 | AO127: 1.363237568 | AP127: 1.198270835 | AQ127: 1.036891271 | AR127: 1.304775418 | AS127: 1.215304648 | AT127: 1.317479415 | AU127: 1.312568634 | AV127: 0.8628739339 | AW127: 1.753709793 | AX127: 1.818117155 | AY127: 1.825023329 | AZ127: 2.157452951 | BA127: 2.019274665 | BB127: 1.924223719 | BC127: 2.225246 | BD127: 2.288529451 | BE127: 2.303328565 | BF127: 2.161085504 | BG127: 2.138728524 | BH127: 2.565044301 | BI127: 2.495538875
A128: Africa Eastern and Southern | B128: AFE | C128: CO2 emissions from gaseous fuel consumption (kt) | D128: EN.ATM.CO2E.GF.KT
A129: Africa Eastern and Southern | B129: AFE | C129: CO2 intensity (kg per kg of oil equivalent energy use) | D129: EN.ATM.CO2E.EG.ZS | P129: 1.927600743 | Q129: 1.923532659 | R129: 1.894357228 | S129: 1.869925314 | T129: 1.859025818 | U129: 1.880921761 | V129: 1.891957342 | W129: 1.862318262 | X129: 1.948745663 | Y129: 1.953774284 | Z129: 2.041452207 | AA129: 2.069952474 | AB129: 2.114694449 | AC129: 2.134804724 | AD129: 2.151121803 | AE129: 2.131906559 | AF129: 2.078187101 | AG129: 2.09091855 | AH129: 2.102180176 | AI129: 1.608197641 | AJ129: 1.524883887 | AK129: 1.53500153 | AL129: 1.504330681 | AM129: 1.484183324 | AN129: 1.5071524 | AO129: 1.522036996 | AP129: 1.558120175 | AQ129: 1.579455061 | AR129: 1.476512325 | AS129: 1.493291746 | AT129: 1.605759735 | AU129: 1.643916665 | AV129: 1.671814133 | AW129: 1.706934396 | AX129: 1.687585961 | AY129: 1.686365336 | AZ129: 1.693584315 | BA129: 1.710665673 | BB129: 1.638067352 | BC129: 1.706468713 | BD129: 1.646045789 | BE129: 1.685579433 | BF129: 1.707869047 | BG129: 1.750831612
A130: Africa Eastern and Southern | B130: AFE | C130: Energy use (kg of oil equivalent per capita) | D130: EG.USE.PCAP.KG.OE | P130: 787.5350425 | Q130: 780.5364372 | R130: 789.9315508 | S130: 786.9288782 | T130: 785.7922624 | U130: 785.4310545 | V130: 776.9036127 | W130: 782.8026878 | X130: 780.8923556 | Y130: 789.3843205 | Z130: 810.4668535 | AA130: 827.1870288 | AB130: 820.8754718 | AC130: 840.0919701 | AD130: 827.6259654 | AE130: 834.186776 | AF130: 837.8744062 | AG130: 844.1569301 | AH130: 810.5153685 | AI130: 788.2223282 | AJ130: 789.6660921 | AK130: 743.4296098 | AL130: 749.9114463 | AM130: 750.6749256 | AN130: 760.2081283 | AO130: 757.074853 | AP130: 755.5890473 | AQ130: 744.8620703 | AR130: 746.6611885 | AS130: 733.4215418 | AT130: 738.8224925 | AU130: 726.210303 | AV130: 739.6078351 | AW130: 756.9453596 | AX130: 748.0306638 | AY130: 742.2464095 | AZ130: 755.7643599 | BA130: 780.1723698 | BB130: 766.243658 | BC130: 755.3710183 | BD130: 749.4021877 | BE130: 728.7212216 | BF130: 725.6681961 | BG130: 740.7663428
A131: Africa Eastern and Southern | B131: AFE | C131: Electric power consumption (kWh per capita) | D131: EG.USE.ELEC.KH.PC | P131: 486.2075028 | Q131: 519.6135937 | R131: 543.3057648 | S131: 569.5910978 | T131: 589.995686 | U131: 611.695099 | V131: 617.0097901 | W131: 636.2384726 | X131: 671.806786 | Y131: 705.1474294 | Z131: 728.9399855 | AA131: 738.7570348 | AB131: 741.1176879 | AC131: 776.8300961 | AD131: 793.7825617 | AE131: 803.7633631 | AF131: 797.3120917 | AG131: 805.6252687 | AH131: 804.3083388 | AI131: 791.1228178 | AJ131: 769.859816 | AK131: 733.3516811 | AL131: 728.1864123 | AM131: 730.0752309 | AN131: 741.6428918 | AO131: 819.860432 | AP131: 829.8259762 | AQ131: 791.4469962 | AR131: 769.7954737 | AS131: 780.702624 | AT131: 743.916044 | AU131: 769.0808541 | AV131: 774.3341662 | AW131: 777.6720907 | AX131: 780.8510523 | AY131: 789.4878405 | AZ131: 796.9019357 | BA131: 760.5768971 | BB131: 723.9149031 | BC131: 740.4176551 | BD131: 740.7416057 | BE131: 703.9084009 | BF131: 698.3699142 | BG131: 686.7280572
A132: Africa Eastern and Southern | B132: AFE | C132: Energy use (kg of oil equivalent) per $1,000 GDP (constant 2017 PPP) | D132: EG.USE.COMM.GD.PP.KD | AI132: 213.1343901 | AJ132: 219.7662058 | AK132: 219.7929577 | AL132: 230.6144627 | AM132: 232.4807735 | AN132: 232.623121 | AO132: 225.3198143 | AP132: 222.7635941 | AQ132: 221.577633 | AR132: 221.8688696 | AS132: 216.1281588 | AT132: 215.2734449 | AU132: 208.7418137 | AV132: 212.1676011 | AW132: 211.0552776 | AX132: 201.2829785 | AY132: 192.3298673 | AZ132: 188.2880731 | BA132: 191.4566323 | BB132: 191.7815111 | BC132: 184.2984785 | BD132: 180.7011401 | BE132: 180.1348969 | BF132: 176.7913221 | BG132: 176.371706
A133: Africa Eastern and Southern | B133: AFE | C133: Renewable energy consumption (% of total final energy consumption) | D133: EG.FEC.RNEW.ZS | AI133: 61.62596452 | AJ133: 62.87631857 | AK133: 64.6365408 | AL133: 65.29167597 | AM133: 65.37976393 | AN133: 64.98250979 | AO133: 64.21866816 | AP133: 63.385625 | AQ133: 64.10636535 | AR133: 65.16892741 | AS133: 65.13244465 | AT133: 65.56814485 | AU133: 64.57885431 | AV133: 64.10314478 | AW133: 63.21618045 | AX133: 62.50059645 | AY133: 62.20141964 | AZ133: 61.41850851 | BA133: 61.89890528 | BB133: 61.25255409 | BC133: 62.56452862 | BD133: 62.29384156 | BE133: 61.10955435 | BF133: 60.46883801 | BG133: 60.80393366 | BH133: 61.0972641
A134: Africa Eastern and Southern | B134: AFE | C134: Electricity production from renewable sources, excluding hydroelectric (% of total) | D134: EG.ELC.RNWX.ZS | P134: 0.1708343096 | Q134: 0.1535786491 | R134: 0.147275195 | S134: 0.1374829789 | T134: 0.125290345 | U134: 0.1297994246 | V134: 0.1290011102 | W134: 0.1297377051 | X134: 0.1268261513 | Y134: 0.1234614697 | Z134: 0.1163825763 | AA134: 0.1229883451 | AB134: 0.1172895157 | AC134: 0.1086795286 | AD134: 0.1222008497 | AE134: 0.3211531324 | AF134: 0.31212734 | AG134: 0.2827549008 | AH134: 0.2694310688 | AI134: 0.3133955063 | AJ134: 0.3105504028 | AK134: 0.3097267304 | AL134: 0.2920235309 | AM134: 0.2335613326 | AN134: 0.2855906054 | AO134: 0.3126884253 | AP134: 0.3335423073 | AQ134: 0.409233058 | AR134: 0.3833091282 | AS134: 0.4679718033 | AT134: 0.4901197727 | AU134: 0.4095006988 | AV134: 0.5217282413 | AW134: 0.5821672255 | AX134: 0.5609818693 | AY134: 0.5709477047 | AZ134: 0.5492793798 | BA134: 0.6177729996 | BB134: 0.7048384079 | BC134: 0.7354235452 | BD134: 0.7380176445 | BE134: 0.8216240334 | BF134: 0.970530293 | BG134: 1.994394647 | BH134: 2.817530942
A135: Africa Eastern and Southern | B135: AFE | C135: Electricity production from renewable sources, excluding hydroelectric (kWh) | D135: EG.ELC.RNWX.KH | P135: 126000000 | Q135: 127000000 | R135: 132000000 | S135: 136000000 | T135: 133000000 | U135: 146000000 | V135: 149000000 | W135: 155000000 | X135: 161000000 | Y135: 167000000 | Z135: 177000000 | AA135: 195000000 | AB135: 189000000 | AC135: 192000000 | AD135: 227000000 | AE135: 617000000 | AF135: 615000000 | AG135: 583000000 | AH135: 574000000 | AI135: 685000000 | AJ135: 686000000 | AK135: 677000000 | AL135: 662000000 | AM135: 546000000 | AN135: 690000000 | AO135: 800000000 | AP135: 885000000 | AQ135: 1090000000 | AR135: 1022000000 | AS135: 1301000000 | AT135: 1390000000 | AU135: 1220000000 | AV135: 1624000000 | AW135: 1902000000 | AX135: 1866000000 | AY135: 1972000000 | AZ135: 1972000000 | BA135: 2188000000 | BB135: 2463000000 | BC135: 2692000000 | BD135: 2762000000 | BE135: 3058000000 | BF135: 3669000000 | BG135: 7687000000 | BH135: 10926000000
A136: Africa Eastern and Southern | B136: AFE | C136: Renewable electricity output (% of total electricity output) | D136: EG.ELC.RNEW.ZS | AI136: 14.36525822 | AJ136: 15.352872 | AK136: 14.10556432 | AL136: 13.4830698 | AM136: 13.23234589 | AN136: 13.29388121 | AO136: 12.73839324 | AP136: 12.51660289 | AQ136: 14.87559235 | AR136: 15.43567173 | AS136: 15.98373752 | AT136: 17.5841681 | AU136: 18.03563739 | AV136: 16.93033505 | AW136: 16.94477679 | AX136: 17.69127316 | AY136: 18.47292394 | AZ136: 18.17346896 | BA136: 18.28864249 | BB136: 19.75533847 | BC136: 21.16299933 | BD136: 21.32377935 | BE136: 21.79582504 | BF136: 22.73260394 | BG136: 24.96658943 | BH136: 25.67587875
A137: Africa Eastern and Southern | B137: AFE | C137: Electricity production from oil sources (% of total) | D137: EG.ELC.PETR.ZS | P137: 2.492011596 | Q137: 2.304889018 | R137: 2.171193405 | S137: 1.810529523 | T137: 1.587325048 | U137: 1.538923315 | V137: 1.36360234 | W137: 1.246318986 | X137: 1.336007159 | Y137: 1.236093278 | Z137: 1.124374042 | AA137: 1.024902876 | AB137: 1.040711734 | AC137: 0.907360856 | AD137: 0.8484076613 | AE137: 0.8890268237 | AF137: 0.9561754611 | AG137: 0.8739696935 | AH137: 0.7045575511 | AI137: 0.857834415 | AJ137: 0.8628412065 | AK137: 0.866045348 | AL137: 0.8941566422 | AM137: 1.134868526 | AN137: 1.349312136 | AO137: 1.189779458 | AP137: 1.486807234 | AQ137: 1.284391093 | AR137: 1.767647672 | AS137: 2.016127561 | AT137: 1.780298368 | AU137: 1.599737976 | AV137: 1.681160029 | AW137: 2.027790678 | AX137: 2.081585457 | AY137: 2.248758023 | AZ137: 2.559497069 | BA137: 2.715038923 | BB137: 2.811627023 | BC137: 1.941277753 | BD137: 2.255736769 | BE137: 2.802871784 | BF137: 3.121885668 | BG137: 3.192276797 | BH137: 3.329668637
A138: Africa Eastern and Southern | B138: AFE | C138: Electricity production from nuclear sources (% of total) | D138: EG.ELC.NUCL.ZS | P138: 0 | Q138: 0 | R138: 0 | S138: 0 | T138: 0 | U138: 0 | V138: 0 | W138: 0 | X138: 0 | Y138: 0 | Z138: 0 | AA138: 0 | AB138: 0 | AC138: 2.221703905 | AD138: 2.861222538 | AE138: 4.582027593 | AF138: 3.12990131 | AG138: 5.089103215 | AH138: 5.209782984 | AI138: 3.865516252 | AJ138: 4.139464844 | AK138: 4.249249441 | AL138: 3.200348515 | AM138: 4.148066377 | AN138: 4.677477438 | AO138: 4.60238276 | AP138: 4.76645148 | AQ138: 5.106402589 | AR138: 4.814617689 | AS138: 4.679718033 | AT138: 3.779563916 | AU138: 4.024854819 | AV138: 4.068130985 | AW138: 4.090780741 | AX138: 3.395052653 | AY138: 2.902800044 | AZ138: 3.15222857 | BA138: 3.671627097 | BB138: 3.664701848 | BC138: 3.305308125 | BD138: 3.607789369 | BE138: 3.21180304 | BF138: 3.731343776 | BG138: 3.578857781
A139: Africa Eastern and Southern | B139: AFE | C139: Electricity production from natural gas sources (% of total) | D139: EG.ELC.NGAS.ZS | P139: 0 | Q139: 0 | R139: 0 | S139: 0 | T139: 0 | U139: 0 | V139: 0 | W139: 0 | X139: 0 | Y139: 0 | Z139: 0 | AA139: 0 | AB139: 0 | AC139: 0 | AD139: 0.001614989203 | AE139: 0.000520507508 | AF139: 0 | AG139: 0 | AH139: 0.000469392106 | AI139: 0 | AJ139: 0 | AK139: 0.0004574988632 | AL139: 0.0004411231585 | AM139: 0.0004277680084 | AN139: 0.0004138994281 | AO139: 0.0003908605317 | AP139: 0.000753767926 | AQ139: 0.0007508863449 | AR139: 0.0007501157107 | AS139: 0.0007194032334 | AT139: 0.000705208306 | AU139: 0.001342625242 | AV139: 0.0009637836969 | AW139: 0.1123319515 | AX139: 0.3475321763 | AY139: 0.3905722381 | AZ139: 0.3420461858 | BA139: 0.4190014312 | BB139: 0.5946626925 | BC139: 0.6690387303 | BD139: 0.7161069107 | BE139: 0.7955620546 | BF139: 0.8626054198 | BG139: 1.090210265 | BH139: 1.372405242
A140: Africa Eastern and Southern | B140: AFE | C140: Electricity production from hydroelectric sources (% of total) | D140: EG.ELC.HYRO.ZS | P140: 12.14550592 | Q140: 16.10520039 | R140: 15.4862099 | S140: 18.60164922 | T140: 18.4892752 | U140: 19.34367042 | V140: 20.83238063 | W140: 19.51589892 | X140: 18.8490444 | Y140: 16.42407192 | Z140: 15.5281973 | AA140: 14.7977054 | AB140: 14.33972931 | AC140: 12.87286375 | AD140: 12.91722197 | AE140: 12.61918402 | AF140: 11.00566076 | AG140: 12.40193065 | AH140: 12.25770546 | AI140: 11.9387675 | AJ140: 12.89372678 | AK140: 11.7101409 | AL140: 11.12733167 | AM140: 10.95299985 | AN140: 10.96585145 | AO140: 10.43832136 | AP140: 10.17888207 | AQ140: 12.29088314 | AR140: 12.68408161 | AS140: 13.0819881 | AT140: 14.54245308 | AU140: 15.05787775 | AV140: 13.92410433 | AW140: 13.89090179 | AX140: 14.62551284 | AY140: 15.54413812 | AZ140: 15.23916032 | BA140: 15.21647179 | BB140: 16.49602322 | BC140: 17.79167675 | BD140: 17.90320718 | BE140: 18.0558464 | BF140: 18.69163575 | BG140: 19.68864735 | BH140: 19.53498435
A141: Africa Eastern and Southern | B141: AFE | C141: Electricity production from coal sources (% of total) | D141: EG.ELC.COAL.ZS | P141: 75.87077088 | Q141: 72.11545465 | R141: 72.87444421 | S141: 70.12946098 | T141: 70.47723211 | U141: 69.66672954 | V141: 68.35413862 | W141: 69.78716709 | X141: 70.36724499 | Y141: 72.89549603 | Z141: 74.26260415 | AA141: 75.08596145 | AB141: 75.53382752 | AC141: 74.92095004 | AD141: 74.28089006 | AE141: 72.61964599 | AF141: 75.6276932 | AG141: 72.38379961 | AH141: 72.58961162 | AI141: 74.0560444 | AJ141: 73.4537715 | AK141: 74.59152965 | AL141: 76.21284809 | AM141: 75.25722571 | AN141: 74.44850404 | AO141: 75.18358671 | AP141: 74.96071271 | AQ141: 72.63548881 | AR141: 72.07674335 | AS141: 71.48062467 | AT141: 71.13400922 | AU141: 70.6338357 | AV141: 71.5310622 | AW141: 71.02317719 | AX141: 70.71648457 | AY141: 70.06993344 | AZ141: 69.88493805 | BA141: 69.08723733 | BB141: 67.45529638 | BC141: 67.28442467 | BD141: 66.5062917 | BE141: 66.15900494 | BF141: 64.46871135 | BG141: 62.30232541 | BH141: 61.20432261
A142: Africa Eastern and Southern | B142: AFE | C142: Access to electricity (% of population) | D142: EG.ELC.ACCS.ZS | AS142: 20.08600661 | AT142: 23.10317848 | AU142: 24.22343015 | AV142: 25.02318413 | AW142: 26.17633577 | AX142: 23.62149844 | AY142: 27.29943305 | AZ142: 28.73795234 | BA142: 28.8137354 | BB142: 27.48306125 | BC142: 28.23337289 | BD142: 28.38183599 | BE142: 32.22402744 | BF142: 32.0464781 | BG142: 31.3235788 | BH142: 33.31216313 | BI142: 38.38043319 | BJ142: 39.75420135 | BK142: 42.16824107 | BL142: 43.64066111
A143: Africa Eastern and Southern | B143: AFE | C143: Foreign direct investment, net inflows (% of GDP) | D143: BX.KLT.DINV.WD.GD.ZS | O143: 1.200538887 | P143: 0.905606067 | Q143: 0.487449669 | R143: 0.2925773748 | S143: 1.318411753 | T143: 0.4265091279 | U143: 0.5771825036 | V143: 0.07045552624 | W143: 0.1689107166 | X143: -0.02282511541 | Y143: 0.3330364712 | Z143: 0.2297016137 | AA143: 0.3795489971 | AB143: 0.05377736079 | AC143: 0.4359956809 | AD143: 0.0722545156 | AE143: 0.2918753039 | AF143: 0.1567693931 | AG143: 0.281758628 | AH143: 0.20438387 | AI143: 0.03747288633 | AJ143: 0.2731099162 | AK143: 0.172735848 | AL143: 0.2389694388 | AM143: 0.510635487 | AN143: 1.015230854 | AO143: 0.7974472534 | AP143: 2.093067085 | AQ143: 1.589554011 | AR143: 2.447424847 | AS143: 1.558123192 | AT143: 4.837768645 | AU143: 2.503636891 | AV143: 2.488972156 | AW143: 1.866596075 | AX143: 2.064944926 | AY143: 1.271598631 | AZ143: 2.4796845 | BA143: 3.243914584 | BB143: 2.636683631 | BC143: 1.667844331 | BD143: 1.887097985 | BE143: 2.595874674 | BF143: 2.237111361 | BG143: 2.816425302 | BH143: 3.138428396 | BI143: 1.940428676 | BJ143: 1.00629246 | BK143: 1.520328791 | BL143: 1.456457389
A144: Africa Eastern and Southern | B144: AFE | C144: Cereal yield (kg per hectare) | D144: AG.YLD.CREL.KG | F144: 924.9946225 | G144: 941.783828 | H144: 938.845615 | I144: 887.7626171 | J144: 883.7677059 | K144: 901.4274937 | L144: 1136.132897 | M144: 914.781971 | N144: 952.2831518 | O144: 974.1335744 | P144: 1104.523731 | Q144: 1163.382695 | R144: 980.2131114 | S144: 1240.161362 | T144: 1217.270792 | U144: 1212.416463 | V144: 1306.317068 | W144: 1286.294959 | X144: 1250.558882 | Y144: 1349.931415 | Z144: 1561.446543 | AA144: 1301.114058 | AB144: 1111.579855 | AC144: 1080.329645 | AD144: 1280.685536 | AE144: 1262.148846 | AF144: 1235.795634 | AG144: 1325.212725 | AH144: 1463.806204 | AI144: 1357.14527 | AJ144: 1355.465715 | AK144: 983.7606843 | AL144: 1427.680721 | AM144: 1374.703425 | AN144: 1186.383692 | AO144: 1445.1823 | AP144: 1341.024131 | AQ144: 1318.214373 | AR144: 1376.841687 | AS144: 1459.730401 | AT144: 1442.785375 | AU144: 1453.330971 | AV144: 1296.012209 | AW144: 1393.986064 | AX144: 1397.303402 | AY144: 1458.672473 | AZ144: 1482.146197 | BA144: 1552.73996 | BB144: 1646.198331 | BC144: 1818.83843 | BD144: 1775.109257 | BE144: 1663.9937 | BF144: 1545.1673 | BG144: 1667.404299 | BH144: 1658.181339 | BI144: 1498.7147 | BJ144: 1728.81867 | BK144: 1622.882922
A145: Africa Eastern and Southern | B145: AFE | C145: Average precipitation in depth (mm per year) | D145: AG.LND.PRCP.MM
A146: Africa Eastern and Southern | B146: AFE | C146: Agricultural irrigated land (% of total agricultural land) | D146: AG.LND.IRIG.AG.ZS
A147: Africa Eastern and Southern | B147: AFE | C147: Forest area (% of land area) | D147: AG.LND.FRST.ZS | AI147: 40.56591202 | AJ147: 40.40394637 | AK147: 40.23580666 | AL147: 40.26968999 | AM147: 40.1032704 | AN147: 39.93685081 | AO147: 39.77043121 | AP147: 39.60401162 | AQ147: 39.43759203 | AR147: 39.27117244 | AS147: 33.98063147 | AT147: 38.9039801 | AU147: 38.70320734 | AV147: 38.50243459 | AW147: 37.89995079 | AX147: 37.70112026 | AY147: 37.50246453 | AZ147: 37.30388017 | BA147: 37.10525939 | BB147: 36.9065957 | BC147: 31.91087788 | BD147: 32.18313483 | BE147: 31.97249225 | BF147: 31.76184168 | BG147: 31.55127013 | BH147: 31.34052558 | BI147: 31.11943142 | BJ147: 30.90354287 | BK147: 30.69022431 | BL147: 30.46979826 | BM147: 30.2517858
A148: Africa Eastern and Southern | B148: AFE | C148: Forest area (sq. km) | D148: AG.LND.FRST.K2 | AI148: 4988232.4 | AJ148: 4968316.114 | AK148: 4947640.628 | AL148: 4911134.742 | AM148: 4890838.856 | AN148: 4870542.97 | AO148: 4850247.084 | AP148: 4829951.198 | AQ148: 4809655.312 | AR148: 4789359.426 | AS148: 5058895.14 | AT148: 4744578.076 | AU148: 4720092.612 | AV148: 4695607.148 | AW148: 4671121.684 | AX148: 4646636.22 | AY148: 4622150.756 | AZ148: 4597665.292 | BA148: 4573179.828 | BB148: 4548694.364 | BC148: 4796590.6 | BD148: 4765400.98 | BE148: 4734211.36 | BF148: 4703021.74 | BG148: 4671832.12 | BH148: 4640642.5 | BI148: 4607876.1 | BJ148: 4575901.2 | BK148: 4544314.78 | BL148: 4511676.2 | BM148: 4479395
A149: Africa Eastern and Southern | B149: AFE | C149: Land area where elevation is below 5 meters (% of total land area) | D149: AG.LND.EL5M.ZS | AI149: 0.2056536105 | AS149: 0.2072891912 | BC149: 0.2052006888
A150: Africa Eastern and Southern | B150: AFE | C150: Urban land area where elevation is below 5 meters (% of total land area) | D150: AG.LND.EL5M.UR.ZS | AI150: 0.005619514032 | AS150: 0.005664206505 | BC150: 0.005607137882
A151: Africa Eastern and Southern | B151: AFE | C151: Urban land area where elevation is below 5 meters (sq. km) | D151: AG.LND.EL5M.UR.K2 | AI151: 717.7734341 | AS151: 717.7734341 | BC151: 717.7734341
A152: Africa Eastern and Southern | B152: AFE | C152: Rural land area where elevation is below 5 meters (% of total land area) | D152: AG.LND.EL5M.RU.ZS | AI152: 0.2000340965 | AS152: 0.2016249847 | BC152: 0.1995935509
A153: Africa Eastern and Southern | B153: AFE | C153: Rural land area where elevation is below 5 meters (sq. km) | D153: AG.LND.EL5M.RU.K2 | AI153: 25791.94243 | AS153: 25791.94243 | BC153: 25791.94243
A154: Africa Eastern and Southern | B154: AFE | C154: Arable land (% of land area) | D154: AG.LND.ARBL.ZS | F154: 4.735556095 | G154: 4.789181944 | H154: 4.9149649 | I154: 4.96908273 | J154: 5.025414471 | K154: 5.054441307 | L154: 5.074776491 | M154: 5.119054716 | N154: 5.18702999 | O154: 5.280178254 | P154: 5.337165969 | Q154: 5.39300573 | R154: 5.401205401 | S154: 5.42342651 | T154: 5.471640576 | U154: 5.492467741 | V154: 5.483694093 | W154: 5.570528611 | X154: 5.5383859 | Y154: 5.523380501 | Z154: 5.519772646 | AA154: 5.518788686 | AB154: 5.546011594 | AC154: 5.547323541 | AD154: 5.715252807 | AE154: 5.747969495 | AF154: 5.748789462 | AG154: 5.777160324 | AH154: 5.839477825 | AI154: 5.814058845 | AJ154: 5.827014325 | AK154: 5.857189115 | AL154: 5.877196313 | AM154: 5.897039517 | AN154: 5.910404981 | AO154: 5.924508415 | AP154: 5.953289261 | AQ154: 5.940661768 | AR154: 6.021674519 | AS154: 6.032334091 | AT154: 6.046716315 | AU154: 6.124416399 | AV154: 6.282424062 | AW154: 6.435511751 | AX154: 6.528305474 | AY154: 6.562550907 | AZ154: 6.629740712 | BA154: 6.84299718 | BB154: 7.000948984 | BC154: 7.072272441 | BD154: 7.716099367 | BE154: 8.144944192 | BF154: 8.189016222 | BG154: 8.246971987 | BH154: 8.249165286 | BI154: 8.253303447 | BJ154: 8.23118076 | BK154: 8.247616272
A155: Africa Eastern and Southern | B155: AFE | C155: Agricultural land (% of land area) | D155: AG.LND.AGRI.ZS | F155: 43.67267864 | G155: 43.64594771 | H155: 43.6811243 | I155: 43.65103151 | J155: 43.62225066 | K155: 43.64709566 | L155: 43.65513134 | M155: 43.68940597 | N155: 43.74426177 | O155: 43.82560251 | P155: 43.95163145 | Q155: 43.99836958 | R155: 44.00050149 | S155: 44.01427694 | T155: 44.04830557 | U155: 44.06962472 | V155: 44.07298659 | W155: 44.162363 | X155: 44.12808838 | Y155: 44.11693682 | Z155: 44.2072152 | AA155: 44.21049507 | AB155: 44.24558966 | AC155: 44.24526168 | AD155: 44.42221058 | AE155: 44.48485607 | AF155: 44.51330893 | AG155: 44.56070303 | AH155: 44.65098141 | AI155: 43.57026393 | AJ155: 42.69926509 | AK155: 42.83910367 | AL155: 41.46971078 | AM155: 41.59208407 | AN155: 41.68707046 | AO155: 41.7979642 | AP155: 41.96002472 | AQ155: 42.10699702 | AR155: 42.3440837 | AS155: 42.51680297 | AT155: 42.64234379 | AU155: 42.76429315 | AV155: 42.99738086 | AW155: 42.83393089 | AX155: 42.95943892 | AY155: 43.0774189 | AZ155: 43.2027337 | BA155: 43.45888343 | BB155: 43.65218131 | BC155: 43.79919048 | BD155: 43.1717512 | BE155: 43.62191273 | BF155: 43.74768189 | BG155: 43.87793516 | BH155: 43.93715049 | BI155: 44.00568681 | BJ155: 44.04262853 | BK155: 44.11797966
A156: Africa Eastern and Southern | B156: AFE | C156: Agricultural land (sq. km) | D156: AG.LND.AGRI.K2 | F156: 5326150 | G156: 5322890 | H156: 5327180 | I156: 5323510 | J156: 5320000 | K156: 5323030 | L156: 5324010 | M156: 5328190 | N156: 5334880 | O156: 5344800 | P156: 5360170 | Q156: 5365870 | R156: 5366130 | S156: 5367810 | T156: 5371960 | U156: 5374560 | V156: 5374970 | W156: 5385870 | X156: 5381690 | Y156: 5380330 | Z156: 5391340 | AA156: 5391740 | AB156: 5396020 | AC156: 5395980 | AD156: 5417560 | AE156: 5425200 | AF156: 5428670 | AG156: 5434450 | AH156: 5445460 | AI156: 5313659.9 | AJ156: 5207436.27 | AK156: 5224490.44 | AL156: 5057484.61 | AM156: 5072408.78 | AN156: 5083992.95 | AO156: 5097517.12 | AP156: 5117281.39 | AQ156: 5135205.56 | AR156: 5164119.73 | AS156: 5185183.9 | AT156: 5200494.37 | AU156: 5215366.84 | AV156: 5243793.31 | AW156: 5279228.58 | AX156: 5294720.25 | AY156: 5309259.72 | AZ156: 5324692.99 | BA156: 5356256.56 | BB156: 5380079.83 | BC156: 5398501.8 | BD156: 6392500.5 | BE156: 6459157.24 | BF156: 6477782.4 | BG156: 6497055.3 | BH156: 6505845.2 | BI156: 6515953 | BJ156: 6521411.4 | BK156: 6532568.32
A157: Afghanistan | B157: AFG | C157: Urban population (% of total population) | D157: SP.URB.TOTL.IN.ZS | E157: 8.401 | F157: 8.684 | G157: 8.976 | H157: 9.276 | I157: 9.586 | J157: 9.904 | K157: 10.233 | L157: 10.57 | M157: 10.918 | N157: 11.275 | O157: 11.643 | P157: 12.021 | Q157: 12.41 | R157: 12.809 | S157: 13.219 | T157: 13.641 | U157: 14.074 | V157: 14.517 | W157: 14.973 | X157: 15.442 | Y157: 15.995 | Z157: 16.562 | AA157: 17.147 | AB157: 17.747 | AC157: 18.365 | AD157: 18.997 | AE157: 19.647 | AF157: 20.314 | AG157: 20.998 | AH157: 21.088 | AI157: 21.177 | AJ157: 21.266 | AK157: 21.355 | AL157: 21.444 | AM157: 21.534 | AN157: 21.624 | AO157: 21.714 | AP157: 21.805 | AQ157: 21.895 | AR157: 21.986 | AS157: 22.078 | AT157: 22.169 | AU157: 22.261 | AV157: 22.353 | AW157: 22.5 | AX157: 22.703 | AY157: 22.907 | AZ157: 23.113 | BA157: 23.32 | BB157: 23.528 | BC157: 23.737 | BD157: 23.948 | BE157: 24.16 | BF157: 24.373 | BG157: 24.587 | BH157: 24.803 | BI157: 25.02 | BJ157: 25.25 | BK157: 25.495 | BL157: 25.754 | BM157: 26.026
A158: Afghanistan | B158: AFG | C158: Urban population | D158: SP.URB.TOTL | E158: 755835 | F158: 796271 | G158: 839385 | H158: 885227 | I158: 934134 | J158: 986074 | K158: 1041191 | L158: 1099273 | M158: 1161355 | N158: 1228273 | O158: 1300949 | P158: 1379464 | Q158: 1463291 | R158: 1551037 | S158: 1640869 | T158: 1730929 | U158: 1821611 | V158: 1912077 | W158: 1997578 | X158: 2070936 | Y158: 2136372 | Z158: 2181493 | AA158: 2208965 | AB158: 2225071 | AC158: 2241321 | AD158: 2267901 | AE158: 2305807 | AF158: 2357346 | AG158: 2439549 | AH158: 2502908 | AI158: 2628555 | AJ158: 2828169 | AK158: 3093388 | AL158: 3391712 | AM158: 3677087 | AN158: 3916250 | AO158: 4093837 | AP158: 4220821 | AQ158: 4321585 | AR158: 4434762 | AS158: 4587799 | AT158: 4790054 | AU158: 5031158 | AV158: 5293385 | AW158: 5563505 | AX158: 5824290 | AY158: 6055021 | AZ158: 6263748 | BA158: 6464836 | BB158: 6680730 | BC158: 6927765 | BD158: 7212518 | BE158: 7528589 | BF158: 7865068 | BG158: 8204880 | BH158: 8535606 | BI158: 8852834 | BJ158: 9164768 | BK158: 9476982 | BL158: 9797274 | BM158: 10131490
A159: Afghanistan | B159: AFG | C159: Urban population growth (annual %) | D159: SP.URB.GROW | F159: 5.211648177 | G159: 5.272990067 | H159: 5.317462846 | I159: 5.37757876 | J159: 5.411150561 | K159: 5.438912671 | L159: 5.428380199 | M159: 5.493837465 | N159: 5.602169086 | O159: 5.748488043 | P159: 5.860101978 | Q159: 5.899299069 | R159: 5.823573087 | S159: 5.630224006 | T159: 5.343227905 | U159: 5.10630158 | V159: 4.846881139 | W159: 4.374536092 | X159: 3.606523228 | Y159: 3.110838425 | Z159: 2.090044154 | AA159: 1.251457526 | AB159: 0.7264745182 | AC159: 0.7276598965 | AD159: 1.178930993 | AE159: 1.657598952 | AF159: 2.210568632 | AG159: 3.42767762 | AH159: 2.564006973 | AI159: 4.898100966 | AJ159: 7.319524026 | AK159: 8.963742459 | AL159: 9.206787828 | AM159: 8.078605397 | AN159: 6.301370065 | AO159: 4.43481088 | AP159: 3.05469868 | AQ159: 2.359257422 | AR159: 2.585171717 | AS159: 3.392643808 | AT159: 4.314129648 | AU159: 4.910849146 | AV159: 5.080775151 | AW159: 4.977037752 | AX159: 4.580879828 | AY159: 3.88507416 | AZ159: 3.389088279 | BA159: 3.159891655 | BB159: 3.284961848 | BC159: 3.630998735 | BD159: 4.028087714 | BE159: 4.288951296 | BF159: 4.372354192 | BG159: 4.229791683 | BH159: 3.951725628 | BI159: 3.649127826 | BJ159: 3.462893353 | BK159: 3.349934387 | BL159: 3.323827257 | BM159: 3.354421159
A160: Afghanistan | B160: AFG | C160: Population, total | D160: SP.POP.TOTL | E160: 8996967 | F160: 9169406 | G160: 9351442 | H160: 9543200 | I160: 9744772 | J160: 9956318 | K160: 10174840 | L160: 10399936 | M160: 10637064 | N160: 10893772 | O160: 11173654 | P160: 11475450 | Q160: 11791222 | R160: 12108963 | S160: 12412960 | T160: 12689164 | U160: 12943093 | V160: 13171294 | W160: 13341199 | X160: 13411060 | Y160: 13356500 | Z160: 13171679 | AA160: 12882518 | AB160: 12537732 | AC160: 12204306 | AD160: 11938204 | AE160: 11736177 | AF160: 11604538 | AG160: 11618008 | AH160: 11868873 | AI160: 12412311 | AJ160: 13299016 | AK160: 14485543 | AL160: 15816601 | AM160: 17075728 | AN160: 18110662 | AO160: 18853444 | AP160: 19357126 | AQ160: 19737770 | AR160: 20170847 | AS160: 20779957 | AT160: 21606992 | AU160: 22600774 | AV160: 23680871 | AW160: 24726689 | AX160: 25654274 | AY160: 26433058 | AZ160: 27100542 | BA160: 27722281 | BB160: 28394806 | BC160: 29185511 | BD160: 30117411 | BE160: 31161378 | BF160: 32269592 | BG160: 33370804 | BH160: 34413603 | BI160: 35383028 | BJ160: 36296111 | BK160: 37171922 | BL160: 38041757 | BM160: 38928341
A161: Afghanistan | B161: AFG | C161: Population growth (annual %) | D161: SP.POP.GROW | F161: 1.898498719 | G161: 1.965804828 | H161: 2.029830298 | I161: 2.090207709 | J161: 2.147638846 | K161: 2.171068186 | L161: 2.188164589 | M161: 2.25448537 | N161: 2.384674381 | O161: 2.536743603 | P161: 2.665128505 | Q161: 2.714538547 | R161: 2.659056585 | S161: 2.479516591 | T161: 2.200731281 | U161: 1.981388587 | V161: 1.747747775 | W161: 1.281715197 | X161: 0.522282315 | Y161: -0.4076581919 | Z161: -1.39341634 | AA161: -2.219779588 | AB161: -2.712854086 | AC161: -2.695381732 | AD161: -2.20451624 | AE161: -1.706755536 | AF161: -1.127989402 | AG161: 0.1160079649 | AH161: 2.136295072 | AI161: 4.47695438 | AJ161: 6.900124486 | AK161: 8.546107005 | AL161: 8.790896707 | AM161: 7.659795534 | AN161: 5.884278564 | AO161: 4.019477716 | AP161: 2.636501764 | AQ161: 1.947343862 | AR161: 2.170428511 | AS161: 2.975057223 | AT161: 3.902804964 | AU161: 4.496718747 | AV161: 4.668343795 | AW161: 4.321559517 | AX161: 3.682699881 | AY161: 2.990523836 | AZ161: 2.493830391 | BA161: 2.268273041 | BB161: 2.396978302 | BC161: 2.746614638 | BD161: 3.143105557 | BE161: 3.407600033 | BF161: 3.494591927 | BG161: 3.355602331 | BH161: 3.077053629 | BI161: 2.778034788 | BJ161: 2.54783304 | BK161: 2.384309079 | BL161: 2.313073349 | BM161: 2.303812093
A162: Afghanistan | B162: AFG | C162: Poverty headcount ratio at $1.90 a day (2011 PPP) (% of population) | D162: SI.POV.DDAY
A163: Afghanistan | B163: AFG | C163: Prevalence of underweight, weight for age (% of children under 5) | D163: SH.STA.MALN.ZS | AP163: 44.9 | AW163: 32.9 | BF163: 24.6 | BK163: 19.1
A164: Afghanistan | B164: AFG | C164: Community health workers (per 1,000 people) | D164: SH.MED.CMHW.P3
A165: Afghanistan | B165: AFG | C165: Mortality rate, under-5 (per 1,000 live births) | D165: SH.DYN.MORT | G165: 344.6 | H165: 338.7 | I165: 333.1 | J165: 327.6 | K165: 322 | L165: 316.8 | M165: 311.4 | N165: 305.8 | O165: 300.3 | P165: 294.8 | Q165: 289.3 | R165: 283.6 | S165: 277.8 | T165: 272 | U165: 266.2 | V165: 260.1 | W165: 254 | X165: 247.8 | Y165: 241.5 | Z165: 235.1 | AA165: 228.6 | AB165: 222.2 | AC165: 215.8 | AD165: 209.3 | AE165: 202.9 | AF165: 196.4 | AG165: 190.1 | AH165: 183.8 | AI165: 177.7 | AJ165: 171.7 | AK165: 165.9 | AL165: 160.4 | AM165: 155.2 | AN165: 150.3 | AO165: 145.6 | AP165: 141.2 | AQ165: 136.9 | AR165: 132.8 | AS165: 128.7 | AT165: 124.6 | AU165: 120.4 | AV165: 116.3 | AW165: 112.1 | AX165: 107.9 | AY165: 103.7 | AZ165: 99.5 | BA165: 95.4 | BB165: 91.4 | BC165: 87.6 | BD165: 83.9 | BE165: 80.3 | BF165: 76.8 | BG165: 73.6 | BH165: 70.4 | BI165: 67.6 | BJ165: 64.9 | BK165: 62.5 | BL165: 60.3
A166: Afghanistan | B166: AFG | C166: Primary completion rate, total (% of relevant age group) | D166: SE.PRM.CMPT.ZS | S166: 16.65699959 | V166: 17.88076019 | W166: 19.65283966 | Y166: 26.37323952 | Z166: 32.70611954 | AC166: 17.89102936 | AD166: 18.57060051 | AL166: 27.57517052 | BI166: 80.49504089 | BJ166: 84.41494751 | BK166: 85.62532806 | BL166: 84.33058929
A167: Afghanistan | B167: AFG | C167: School enrollment, primary and secondary (gross), gender parity index (GPI) | D167: SE.ENR.PRSC.FM.ZS | O167: 0.1671999991 | P167: 0.1612000018 | Q167: 0.1608400047 | R167: 0.1687400043 | S167: 0.1669500023 | T167: 0.1738999933 | U167: 0.1806299984 | V167: 0.1922799945 | W167: 0.1988299936 | Z167: 0.2422299981 | AA167: 0.4835799932 | AC167: 0.4699499905 | AD167: 0.4760299921 | AE167: 0.5309399962 | AG167: 0.4996599853 | AJ167: 0.5370600224 | AL167: 0.361770004 | AM167: 0.4320000112 | AN167: 0.4740400016 | AT167: 0 | AV167: 0.544260025 | AW167: 0.4058200121 | AX167: 0.5476899743 | AY167: 0.5732300282 | AZ167: 0.5672000051 | BA167: 0.5860199928 | BB167: 0.6096100211 | BC167: 0.6258100271 | BD167: 0.6634500027 | BE167: 0.6692500114 | BF167: 0.6553300023 | BG167: 0.6540200114 | BH167: 0.6423299909 | BI167: 0.6456699967 | BJ167: 0.6416900158 | BK167: 0.6360200047
A168: Afghanistan | B168: AFG | C168: Agriculture, forestry, and fishing, value added (% of GDP) | D168: NV.AGR.TOTL.ZS | AU168: 38.62789186 | AV168: 37.41885544 | AW168: 29.72106714 | AX168: 31.11485491 | AY168: 28.63596858 | AZ168: 30.10501136 | BA168: 24.89227001 | BB168: 29.29750105 | BC168: 26.21006854 | BD168: 23.74366399 | BE168: 24.39087363 | BF168: 22.81066274 | BG168: 22.13704137 | BH168: 20.63432272 | BI168: 25.74031404 | BJ168: 26.42019908 | BK168: 22.04289675 | BL168: 25.77397074 | BM168: 26.82060011
A169: Afghanistan | B169: AFG | C169: CPIA public sector management and institutions cluster average (1=low to 6=high) | D169: IQ.CPA.PUBS.XQ | AY169: 2.3 | AZ169: 2.2 | BA169: 2.2 | BB169: 2.4 | BC169: 2.4 | BD169: 2.5 | BE169: 2.5 | BF169: 2.5 | BG169: 2.5 | BH169: 2.5 | BI169: 2.6 | BJ169: 2.6 | BK169: 2.6 | BL169: 2.6 | BM169: 2.6
A170: Afghanistan | B170: AFG | C170: Ease of doing business rank (1=most business-friendly regulations) | D170: IC.BUS.EASE.XQ | BL170: 173
A171: Afghanistan | B171: AFG | C171: Terrestrial and marine protected areas (% of total territorial area) | D171: ER.PTD.TOTL.ZS | BI171: 0.1047070403 | BJ171: 0.1047070348 | BK171: 0.1047070348
A172: Afghanistan | B172: AFG | C172: Marine protected areas (% of territorial waters) | D172: ER.MRN.PTMR.ZS
A173: Afghanistan | B173: AFG | C173: Terrestrial protected areas (% of total land area) | D173: ER.LND.PTLD.ZS | BI173: 0.1 | BJ173: 0.1047070348 | BK173: 0.1047070348
A174: Afghanistan | B174: AFG | C174: Annual freshwater withdrawals, total (% of internal resources) | D174: ER.H2O.FWTL.ZS | V174: 28.14107458 | AA174: 41.75993284 | AF174: 55.37879109 | AK174: 49.75676942 | AP174: 44.13474775 | AU174: 43.01590668 | AZ174: 43.01590668 | BE174: 43.01590668 | BJ174: 43.01590668
A175: Afghanistan | B175: AFG | C175: Annual freshwater withdrawals, total (billion cubic meters) | D175: ER.H2O.FWTL.K3 | V175: 13.26851667 | AA175: 19.68980833 | AF175: 26.1111 | AK175: 23.46031678 | AP175: 20.80953357 | AU175: 20.282 | AZ175: 20.282 | BE175: 20.282 | BJ175: 20.282
A176: Afghanistan | B176: AFG | C176: Population in urban agglomerations of more than 1 million (% of total population) | D176: EN.URB.MCTY.TL.ZS | E176: 3.171646623 | F176: 3.275664749 | G176: 3.381050751 | H176: 3.487603739 | I176: 3.595589512 | J176: 3.704270997 | K176: 3.815607911 | L176: 3.923937609 | M176: 4.027079277 | N176: 4.126991092 | O176: 4.223246934 | P176: 4.31619675 | Q176: 4.482215669 | R176: 4.73336156 | S176: 5.008120545 | T176: 5.313620346 | U176: 5.65077451 | V176: 6.022020312 | W176: 6.448363449 | X176: 6.952381094 | Y176: 7.320959832 | Z176: 7.784421409 | AA176: 8.346450593 | AB176: 8.993293205 | AC176: 9.689203139 | AD176: 10.38649532 | AE176: 11.07940857 | AF176: 11.70684262 | AG176: 12.21761941 | AH176: 12.49416014 | AI176: 12.48212359 | AJ176: 12.17155465 | AK176: 11.67566173 | AL176: 11.17123711 | AM176: 10.81084801 | AN176: 10.64949476 | AO176: 10.68866251 | AP176: 10.8760567 | AQ176: 11.14393875 | AR176: 11.39297224 | AS176: 11.55492766 | AT176: 11.60956139 | AU176: 11.59608074 | AV176: 11.5627546 | AW176: 11.46154667 | AX176: 11.32434307 | AY176: 11.26688028 | AZ176: 11.26552377 | BA176: 11.2899945 | BB176: 11.29918972 | BC176: 11.26930757 | BD176: 11.19502935 | BE176: 11.09224374 | BF176: 10.98009544 | BG176: 10.88457144 | BH176: 10.8199743 | BI176: 10.78833897 | BJ176: 10.78158759 | BK176: 10.79247395 | BL176: 10.81451101 | BM176: 10.84436658
A177: Afghanistan | B177: AFG | C177: Population living in areas where elevation is below 5 meters (% of total population) | D177: EN.POP.EL5M.ZS
A178: Afghanistan | B178: AFG | C178: Urban population living in areas where elevation is below 5 meters (% of total population) | D178: EN.POP.EL5M.UR.ZS
A179: Afghanistan | B179: AFG | C179: Rural population living in areas where elevation is below 5 meters (% of total population) | D179: EN.POP.EL5M.RU.ZS
A180: Afghanistan | B180: AFG | C180: Droughts, floods, extreme temperatures (% of population, average 1990-2009) | D180: EN.CLC.MDAT.ZS | BB180: 1.059290169
A181: Afghanistan | B181: AFG | C181: GHG net emissions/removals by LUCF (Mt of CO2 equivalent) | D181: EN.CLC.GHGR.MT.CE
A182: Afghanistan | B182: AFG | C182: Disaster risk reduction progress score (1-5 scale; 5=best) | D182: EN.CLC.DRSK.XQ
A183: Afghanistan | B183: AFG | C183: SF6 gas emissions (thousand metric tons of CO2 equivalent) | D183: EN.ATM.SF6G.KT.CE
A184: Afghanistan | B184: AFG | C184: PFC gas emissions (thousand metric tons of CO2 equivalent) | D184: EN.ATM.PFCG.KT.CE
A185: Afghanistan | B185: AFG | C185: Nitrous oxide emissions (% change from 1990) | D185: EN.ATM.NOXE.ZG | AJ185: 0.2800855033 | AK185: -1.061910966 | AL185: 0.6715058403 | AM185: -5.595280396 | AN185: -0.4750060631 | AO185: 7.299707281 | AP185: 15.63932928 | AQ185: 21.27939178 | AR185: 31.01526765 | AS185: 20.68154515 | AT185: 11.30550526 | AU185: 22.79544057 | AV185: 21.42828943 | AW185: 21.98439959 | AX185: 24.14454352 | AY185: 24.66794132 | AZ185: 26.27761516 | BA185: 27.25560199 | BB185: 21.57605906 | BC185: 22.13668127 | BD185: 23.35804809 | BE185: 24.5794149
A186: Afghanistan | B186: AFG | C186: Nitrous oxide emissions (thousand metric tons of CO2 equivalent) | D186: EN.ATM.NOXE.KT.CE | O186: 3042.2563 | P186: 3006.1382 | Q186: 2530.158 | R186: 2674.4041 | S186: 2937.3182 | T186: 3153.723 | U186: 3265.633 | V186: 3268.981 | W186: 3272.918 | X186: 3214.545 | Y186: 3275.026 | Z186: 3256.705 | AA186: 3327.323 | AB186: 3188.66 | AC186: 3062.1521 | AD186: 2862.5369 | AE186: 2516.9024 | AF186: 2677.1073 | AG186: 2772.0448 | AH186: 2771.307 | AI186: 3250 | AJ186: 3290 | AK186: 3200 | AL186: 3200 | AM186: 2990 | AN186: 3060 | AO186: 3290 | AP186: 3590 | AQ186: 3880 | AR186: 4150 | AS186: 3620 | AT186: 3220 | AU186: 3700 | AV186: 3840 | AW186: 3810 | AX186: 3970 | AY186: 4060 | AZ186: 4250 | BA186: 4790 | BB186: 5320 | BC186: 5990 | BD186: 6610 | BE186: 7160 | BF186: 7720 | BG186: 8550 | BH186: 8590 | BI186: 9120 | BJ186: 9450 | BK186: 8960
A187: Afghanistan | B187: AFG | C187: Methane emissions (% change from 1990) | D187: EN.ATM.METH.ZG | AJ187: 0.9767186971 | AK187: -3.173352492 | AL187: -2.001814468 | AM187: 0.5158910165 | AN187: 3.385870748 | AO187: 12.90186403 | AP187: 20.79322669 | AQ187: 27.17231415 | AR187: 35.11362713 | AS187: 23.02958474 | AT187: 13.62057166 | AU187: 30.17798568 | AV187: 35.69965835 | AW187: 37.93890067 | AX187: 40.26336007 | AY187: 42.50784653 | AZ187: 44.86508172 | BA187: 47.15545429 | BB187: 50.73326009 | BC187: 76.90145498 | BD187: 78.67046953 | BE187: 80.43948408
A188: Afghanistan | B188: AFG | C188: Methane emissions (kt of CO2 equivalent) | D188: EN.ATM.METH.KT.CE | O188: 10202 | P188: 10201.5 | Q188: 9170.59 | R188: 9403.54 | S188: 9987.93 | T188: 10476.6 | U188: 10535.6 | V188: 10455.9 | W188: 10380.1 | X188: 10176.2 | Y188: 10376.6 | Z188: 10304.8 | AA188: 10259.8 | AB188: 9858.04 | AC188: 9054.65 | AD188: 8308.71 | AE188: 7415.09 | AF188: 7485.19 | AG188: 7920.27 | AH188: 7465.04 | AI188: 8970 | AJ188: 9070 | AK188: 8990 | AL188: 8890 | AM188: 8960 | AN188: 9140 | AO188: 9930 | AP188: 10600 | AQ188: 11100 | AR188: 11870 | AS188: 10590 | AT188: 9360 | AU188: 11190 | AV188: 11480 | AW188: 11460 | AX188: 11670 | AY188: 14890 | AZ188: 18100 | BA188: 22170 | BB188: 25430 | BC188: 30010 | BD188: 39480 | BE188: 48780 | BF188: 58130 | BG188: 67770 | BH188: 76590 | BI188: 78150 | BJ188: 79610 | BK188: 81510
A189: Afghanistan | B189: AFG | C189: HFC gas emissions (thousand metric tons of CO2 equivalent) | D189: EN.ATM.HFCG.KT.CE
A190: Afghanistan | B190: AFG | C190: Total greenhouse gas emissions (% change from 1990) | D190: EN.ATM.GHGT.ZG | AJ190: -1.763668654 | AK190: -9.239797856 | AL190: -9.07678961 | AM190: -9.876490025 | AN190: -7.122892119 | AO190: -0.1762904766 | AP190: 6.507283096 | AQ190: 10.1001663 | AR190: 18.23392793 | AS190: 8.005549003 | AT190: 0.4580573469 | AU190: 10.49425182 | AV190: 17.41590538 | AW190: 16.97281848 | AX190: 17.89786755 | AY190: 18.52761688 | AZ190: 21.90782954 | BA190: 22.03668154 | BB190: 24.15716007 | BC190: 42.01234411 | BD190: 43.5287644
A191: Afghanistan | B191: AFG | C191: Total greenhouse gas emissions (kt of CO2 equivalent) | D191: EN.ATM.GHGT.KT.CE | O191: 14306.6163 | P191: 14391.7782 | Q191: 13040.848 | R191: 13535.7541 | S191: 14945.9682 | T191: 14574.164 | U191: 14746.851 | V191: 15247.281 | W191: 15112.318 | X191: 14923.075 | Y191: 15691.266 | Z191: 15810.335 | AA191: 15615.333 | AB191: 15322.53 | AC191: 14278.7921 | AD191: 13545.7369 | AE191: 12269.4624 | AF191: 12400.5073 | AG191: 12959.2948 | AH191: 12348.957 | AI191: 15180 | AJ191: 15100 | AK191: 13630 | AL191: 13460 | AM191: 13270 | AN191: 13480 | AO191: 14440 | AP191: 15340 | AQ191: 16100 | AR191: 16910 | AS191: 15080 | AT191: 13490 | AU191: 16090 | AV191: 16780 | AW191: 16520 | AX191: 17400 | AY191: 21040 | AZ191: 24880 | BA191: 31540 | BB191: 36960 | BC191: 44910 | BD191: 58650 | BE191: 66750 | BF191: 74800 | BG191: 84620 | BH191: 93730 | BI191: 95370 | BJ191: 97300 | BK191: 98920
A192: Afghanistan | B192: AFG | C192: Other greenhouse gas emissions (% change from 1990) | D192: EN.ATM.GHGO.ZG | AJ192: 0 | AK192: 6.217248938e-13 | AL192: -6.217248938e-13 | AM192: 0 | AN192: 0 | AO192: 0 | AP192: -6.217248938e-13 | AQ192: -96.25 | AR192: -21.95 | AS192: -20.95625 | AT192: 52.198125 | AU192: -97.9786875 | AV192: 243.501875 | AW192: 67.05125 | AX192: -38.3960625 | AY192: -74.9985 | AZ192: 27.85125 | BA192: -94.36275 | BB192: -1.2075 | BC192: 118.125 | BD192: 118.125 | BE192: 118.125
A193: Afghanistan | B193: AFG | C193: Other greenhouse gas emissions, HFC, PFC and SF6 (thousand metric tons of CO2 equivalent) | D193: EN.ATM.GHGO.KT.CE | O193: -679.915897 | P193: -584.266024 | Q193: -365.0309814 | R193: -295.7562842 | S193: -67.27859047 | T193: -887.2323948 | U193: -824.0528984 | V193: -357.9534546 | W193: -2135.118274 | X193: -1357.840067 | Y193: -328.3212045 | Z193: -321.667406 | AA193: -450.7822333 | AB193: -419.1037006 | AC193: -454.1072595 | AD193: -170.0989893 | AE193: -18.96353271 | AF193: -119.1234045 | AG193: 97.03265808 | AH193: 84.75115906 | AI193: 935.0644073 | AJ193: 765.9382629 | AK193: -263.0768204 | AL193: -325.7089996 | AM193: -650.3169022 | AN193: -1003.030754 | AO193: -1066.260746 | AP193: -1008.483524 | AQ193: -992.5396156 | AR193: -1274.8111 | AS193: -1556.072842 | AT193: -1452.085331 | AU193: -1189.82819 | AV193: -1123.433636 | AW193: -1604.836014 | AX193: -1272.787895 | AY193: -1163.728977 | AZ193: -381.2660675 | BA193: 613.0169792 | BB193: 1144.771751 | BC193: 2581.595875 | BD193: 5607.860027 | BE193: 3299.161961 | BF193: 714.056015 | BG193: -416.5378494 | BH193: -691.2025146 | BI193: -1800.003578
A194: Afghanistan | B194: AFG | C194: CO2 emissions from solid fuel consumption (% of total) | D194: EN.ATM.CO2E.SF.ZS | E194: 30.97345133 | F194: 35.82089552 | G194: 43.08510638 | H194: 37.30569948 | I194: 35.80786026 | J194: 37.81818182 | K194: 39.26174497 | L194: 31.14285714 | M194: 27.24550898 | N194: 38.52140078 | O194: 26.09649123 | P194: 18.95551257 | Q194: 12.44019139 | R194: 19.01565996 | S194: 15.86998088 | T194: 18.79310345 | U194: 21.40221402 | V194: 18.86503067 | W194: 26.65534805 | X194: 15.71194763 | Y194: 17.91666667 | Z194: 16.8207024 | AA194: 18.32460733 | AB194: 15.26162791 | AC194: 13.86010363 | AD194: 11.38975967 | AE194: 13.53558926 | AF194: 14.20187793 | AG194: 12.78772379 | AH194: 12.15323646 | AI194: 9.41527027 | AJ194: 9.100583942 | AK194: 1.538601399 | AL194: 1.348161765 | AM194: 1.128307692 | AN194: 1.17344 | AO194: 0.6215254237 | AP194: 0.3333636364 | AQ194: 0.3492380952 | AR194: 0.447195122 | AS194: 0.4762337662 | AT194: 8.601604938 | AU194: 5.000454545 | AV194: 6.790740741 | AW194: 8.112831858 | AX194: 6.484329268 | AY194: 8.316907216 | AZ194: 31.69779661 | BA194: 24.558041 | BB194: 25.60788333 | BC194: 26.51913495 | BD194: 35.11466558 | BE194: 35.09090909 | BF194: 46.32226792 | BG194: 56.06143406 | BH194: 49.75003755 | BI194: 65.35100135
A195: Afghanistan | B195: AFG | C195: CO2 emissions from solid fuel consumption (kt) | D195: EN.ATM.CO2E.SF.KT | E195: 128.345 | F195: 176.016 | G195: 297.027 | H195: 264.024 | I195: 300.694 | J195: 381.368 | K195: 429.039 | L195: 399.703 | M195: 333.697 | N195: 363.033 | O195: 436.373 | P195: 359.366 | Q195: 190.684 | R195: 311.695 | S195: 304.361 | T195: 399.703 | U195: 425.372 | V195: 451.041 | W195: 575.719 | X195: 352.032 | Y195: 315.362 | Z195: 333.697 | AA195: 385.035 | AB195: 385.035 | AC195: 392.369 | AD195: 399.703 | AE195: 425.372 | AF195: 443.707 | AG195: 366.7 | AH195: 337.364 | AI195: 278.692 | AJ195: 249.356 | AK195: 22.002 | AL195: 18.335 | AM195: 14.668 | AN195: 14.668 | AO195: 7.334 | AP195: 3.667 | AQ195: 3.667 | AR195: 3.667 | AS195: 3.667 | AT195: 69.673 | AU195: 55.005 | AV195: 91.675 | AW195: 91.675 | AX195: 106.343 | AY195: 161.348 | AZ195: 748.068 | BA195: 1078.098 | BB195: 1536.473 | BC195: 2299.209 | BD195: 4305.058 | BE195: 3667 | BF195: 3942.025 | BG195: 4378.398 | BH195: 3975.028 | BI195: 4829.439
A196: Afghanistan | B196: AFG | C196: CO2 emissions (kg per 2017 PPP $ of GDP) | D196: EN.ATM.CO2E.PP.GD.KD | AU196: 0.04090731779 | AV196: 0.04613009713 | AW196: 0.03807418592 | AX196: 0.04967927017 | AY196: 0.05577865411 | AZ196: 0.0596122632 | BA196: 0.1067009195 | BB196: 0.1201351487 | BC196: 0.1517939698 | BD196: 0.2137362535 | BE196: 0.1615766698 | BF196: 0.1246019795 | BG196: 0.1113197433 | BH196: 0.1122561808 | BI196: 0.1015314991 | BJ196: 0.09877941449 | BK196: 0.09841215414
A197: Afghanistan | B197: AFG | C197: CO2 emissions (kg per PPP $ of GDP) | D197: EN.ATM.CO2E.PP.GD | AU197: 0.05549613189 | AV197: 0.06144050709 | AW197: 0.04938141603 | AX197: 0.06248654564 | AY197: 0.06809757387 | AZ197: 0.07087397686 | BA197: 0.1244379543 | BB197: 0.1390453609 | BC197: 0.1736639084 | BD197: 0.2395271262 | BE197: 0.1751386761 | BF197: 0.1308428814 | BG197: 0.1130927794 | BH197: 0.1112322326 | BI197: 0.1054239012 | BJ197: 0.09877941449 | BK197: 0.09610469848
A198: Afghanistan | B198: AFG | C198: CO2 emissions (metric tons per capita) | D198: EN.ATM.CO2E.PC | E198: 0.04605674334 | F198: 0.05358885843 | G198: 0.07372082295 | H198: 0.07416076369 | I198: 0.08617369396 | J198: 0.1012849328 | K198: 0.1073988387 | L198: 0.1234094133 | M198: 0.1151424867 | N198: 0.0865098884 | O198: 0.1496513137 | P198: 0.1652082489 | Q198: 0.129995517 | R198: 0.1353665875 | S198: 0.1545031161 | T198: 0.1676123029 | U198: 0.153557886 | V198: 0.1815223318 | W198: 0.1618942196 | X198: 0.1670663616 | Y198: 0.131783027 | Z198: 0.1506145876 | AA198: 0.1631040609 | AB198: 0.2012242725 | AC198: 0.23196108 | AD198: 0.2939570307 | AE198: 0.2677719499 | AF198: 0.2692295031 | AG198: 0.2468232076 | AH198: 0.2338822734 | AI198: 0.2384729161 | AJ198: 0.2060302807 | AK198: 0.09871911602 | AL198: 0.08598560462 | AM198: 0.07613145396 | AN198: 0.06902011644 | AO198: 0.06258803431 | AP198: 0.05682661775 | AQ198: 0.05319749901 | AR198: 0.04065273015 | AS198: 0.03705493712 | AT198: 0.03748786504 | AU198: 0.0486708995 | AV198: 0.05700803826 | AW198: 0.04569960822 | AX198: 0.06392696983 | AY198: 0.07339294606 | AZ198: 0.08708312919 | BA198: 0.1583563777 | BB198: 0.2113062509 | BC198: 0.2970652116 | BD198: 0.4070735031 | BE198: 0.3353510233 | BF198: 0.2637157606 | BG198: 0.2340369144 | BH198: 0.2321756312 | BI198: 0.2088571956 | BJ198: 0.2033275686 | BK198: 0.200151071
A199: Afghanistan | B199: AFG | C199: CO2 emissions from liquid fuel consumption (% of total) | D199: EN.ATM.CO2E.LF.ZS | E199: 65.48672566 | F199: 59.70149254 | G199: 52.65957447 | H199: 55.44041451 | I199: 56.76855895 | J199: 53.81818182 | K199: 52.68456376 | L199: 43.42857143 | M199: 40.71856287 | N199: 56.0311284 | O199: 40.13157895 | P199: 39.45841393 | Q199: 40.90909091 | R199: 42.95302013 | S199: 40.15296367 | T199: 41.20689655 | U199: 44.46494465 | V199: 40.79754601 | W199: 43.29371817 | X199: 52.04582651 | Y199: 52.5 | Z199: 51.20147874 | AA199: 47.29493892 | AB199: 48.40116279 | AC199: 40.02590674 | AD199: 44.09613375 | AE199: 36.28938156 | AF199: 64.55399061 | AG199: 63.55498721 | AH199: 67.23910172 | AI199: 62.56199324 | AJ199: 62.76726277 | AK199: 64.87769231 | AL199: 65.79029412 | AM199: 66.006 | AN199: 66.006 | AO199: 66.19245763 | AP199: 66.006 | AQ199: 65.6567619 | AR199: 60.37134146 | AS199: 64.76779221 | AT199: 60.66395062 | AU199: 40.00363636 | AV199: 45.90540741 | AW199: 49.65053097 | AX199: 52.54542683 | AY199: 58.59639175 | AZ199: 50.80970339 | BA199: 64.06808656 | BB199: 82.44638333 | BC199: 67.71472895 | BD199: 62.06382545 | BE199: 64.70763636 | BF199: 56.23307873 | BG199: 48.31425096 | BH199: 59.34206508 | BI199: 47.04081191
A200: Afghanistan | B200: AFG | C200: CO2 emissions from liquid fuel consumption (kt) | D200: EN.ATM.CO2E.LF.KT | E200: 271.358 | F200: 293.36 | G200: 363.033 | H200: 392.369 | I200: 476.71 | J200: 542.716 | K200: 575.719 | L200: 557.384 | M200: 498.712 | N200: 528.048 | O200: 671.061 | P200: 748.068 | Q200: 627.057 | R200: 704.064 | S200: 770.07 | T200: 876.413 | U200: 883.747 | V200: 975.422 | W200: 935.085 | X200: 1166.106 | Y200: 924.084 | Z200: 1015.759 | AA200: 993.757 | AB200: 1221.111 | AC200: 1133.103 | AD200: 1547.474 | AE200: 1140.437 | AF200: 2016.85 | AG200: 1822.499 | AH200: 1866.503 | AI200: 1851.835 | AJ200: 1719.823 | AK200: 927.751 | AL200: 894.748 | AM200: 858.078 | AN200: 825.075 | AO200: 781.071 | AP200: 726.066 | AQ200: 689.396 | AR200: 495.045 | AS200: 498.712 | AT200: 491.378 | AU200: 440.04 | AV200: 619.723 | AW200: 561.051 | AX200: 861.745 | AY200: 1136.77 | AZ200: 1199.109 | BA200: 2812.589 | BB200: 4946.783 | BC200: 5870.867 | BD200: 7609.025 | BE200: 6761.948 | BF200: 4785.435 | BG200: 3773.343 | BH200: 4741.431 | BI200: 3476.316
A201: Afghanistan | B201: AFG | C201: CO2 emissions (kt) | D201: EN.ATM.CO2E.KT | E201: 414.371 | F201: 491.378 | G201: 689.396 | H201: 707.731 | I201: 839.743 | J201: 1008.425 | K201: 1092.766 | L201: 1283.45 | M201: 1224.778 | N201: 942.419 | O201: 1672.152 | P201: 1895.839 | Q201: 1532.806 | R201: 1639.149 | S201: 1917.841 | T201: 2126.86 | U201: 1987.514 | V201: 2390.884 | W201: 2159.863 | X201: 2240.537 | Y201: 1760.16 | Z201: 1983.847 | AA201: 2101.191 | AB201: 2522.896 | AC201: 2830.924 | AD201: 3509.319 | AE201: 3142.619 | AF201: 3124.284 | AG201: 2867.594 | AH201: 2775.919 | AI201: 2960 | AJ201: 2740 | AK201: 1430 | AL201: 1360 | AM201: 1300 | AN201: 1250 | AO201: 1180 | AP201: 1100 | AQ201: 1050 | AR201: 820 | AS201: 770 | AT201: 810 | AU201: 1100 | AV201: 1350 | AW201: 1130 | AX201: 1640 | AY201: 1940 | AZ201: 2360 | BA201: 4390 | BB201: 6000 | BC201: 8670 | BD201: 12260 | BE201: 10450 | BF201: 8510 | BG201: 7810 | BH201: 7990 | BI201: 7390 | BJ201: 7380 | BK201: 7440
... 924 more rows

Sheet Metadata - Countries
A1: Country Code | B1: Region | C1: IncomeGroup | D1: SpecialNotes | E1: TableName
A2: ABW | B2: Latin America & Caribbean | C2: High income | E2: Aruba
A3: AFE | D3: 26 countries, stretching from the Red Sea in the North to the Cape of Good Hope in the South (https://www.worldbank.org/en/region/afr/eastern-and-southern-africa) | E3: Africa Eastern and Southern
A4: AFG | B4: South Asia | C4: Low income | D4: Fiscal year end: March 20; reporting period for national accounts data: FY. | E4: Afghanistan
A5: AFW | D5: 22 countries, stretching from the westernmost point of Africa, across the equator, and partly along the Atlantic Ocean till the Republic of Congo in the South (https://www.worldbank.org/en/region/afr/western-and-central-africa) | E5: Africa Western and Central
A6: AGO | B6: Sub-Saharan Africa | C6: Lower middle income | E6: Angola
A7: ALB | B7: Europe & Central Asia | C7: Upper middle income | E7: Albania
A8: AND | B8: Europe & Central Asia | C8: High income | E8: Andorra
A9: ARB | D9: Arab World aggregate. Arab World is composed of members of the League of Arab States. | E9: Arab World
A10: ARE | B10: Middle East & North Africa | C10: High income | E10: United Arab Emirates
A11: ARG | B11: Latin America & Caribbean | C11: Upper middle income | E11: Argentina
A12: ARM | B12: Europe & Central Asia | C12: Upper middle income | E12: Armenia
A13: ASM | B13: East Asia & Pacific | C13: Upper middle income | E13: American Samoa
A14: ATG | B14: Latin America & Caribbean | C14: High income | E14: Antigua and Barbuda
A15: AUS | B15: East Asia & Pacific | C15: High income | D15: Fiscal year end: June 30; reporting period for national accounts data: FY. | E15: Australia
A16: AUT | B16: Europe & Central Asia | C16: High income | D16: A simple multiplier is used to convert the national currencies of EMU members to euros. The following irrevocable euro conversion rate was adopted by the EU Council on January 1, 1999: 1 euro = 13.7603 Austrian schilling. Please note that historical data before 1999 are not actual euros and are not comparable or suitable for aggregation across countries. | E16: Austria
A17: AZE | B17: Europe & Central Asia | C17: Upper middle income | E17: Azerbaijan
A18: BDI | B18: Sub-Saharan Africa | C18: Low income | E18: Burundi
A19: BEL | B19: Europe & Central Asia | C19: High income | D19: A simple multiplier is used to convert the national currencies of EMU members to euros. The following irrevocable euro conversion rate was adopted by the EU Council on January 1, 1999: 1 euro = 40.3399 Belgian franc. Please note that historical data before 1999 are not actual euros and are not comparable or suitable for aggregation across countries. | E19: Belgium
A20: BEN | B20: Sub-Saharan Africa | C20: Lower middle income | E20: Benin
A21: BFA | B21: Sub-Saharan Africa | C21: Low income | E21: Burkina Faso
A22: BGD | B22: South Asia | C22: Lower middle income | D22: Fiscal year end: June 30; reporting period for national accounts data: FY. | E22: Bangladesh
A23: BGR | B23: Europe & Central Asia | C23: Upper middle income | E23: Bulgaria
A24: BHR | B24: Middle East & North Africa | C24: High income | E24: Bahrain
A25: BHS | B25: Latin America & Caribbean | C25: High income | E25: Bahamas, The
A26: BIH | B26: Europe & Central Asia | C26: Upper middle income | E26: Bosnia and Herzegovina
A27: BLR | B27: Europe & Central Asia | C27: Upper middle income | D27: Data before 2015 were adjusted to reflect the new denomination effective from July 1, 2016 (BYN), a decrease of 10,000 times (1 BYN = 10,000 BYR) | E27: Belarus
A28: BLZ | B28: Latin America & Caribbean | C28: Lower middle income | E28: Belize
A29: BMU | B29: North America | C29: High income | E29: Bermuda
A30: BOL | B30: Latin America & Caribbean | C30: Lower middle income | E30: Bolivia
A31: BRA | B31: Latin America & Caribbean | C31: Upper middle income | E31: Brazil
A32: BRB | B32: Latin America & Caribbean | C32: High income | E32: Barbados
A33: BRN | B33: East Asia & Pacific | C33: High income | E33: Brunei Darussalam
A34: BTN | B34: South Asia | C34: Lower middle income | E34: Bhutan
A35: BWA | B35: Sub-Saharan Africa | C35: Upper middle income | E35: Botswana
A36: CAF | B36: Sub-Saharan Africa | C36: Low income | E36: Central African Republic
A37: CAN | B37: North America | C37: High income | D37: Fiscal year end: March 31; reporting period for national accounts data: CY. | E37: Canada
A38: CEB | D38: Central Europe and the Baltics aggregate. | E38: Central Europe and the Baltics
A39: CHE | B39: Europe & Central Asia | C39: High income | E39: Switzerland
A40: CHI | B40: Europe & Central Asia | C40: High income | E40: Channel Islands
A41: CHL | B41: Latin America & Caribbean | C41: High income | E41: Chile
A42: CHN | B42: East Asia & Pacific | C42: Upper middle income | D42: On 1 July 1997 China resumed its exercise of sovereignty over Hong Kong; and on 20 December 1999 China resumed its exercise of sovereignty over Macao. Unless otherwise noted, data for China do not include data for Hong Kong SAR, China; Macao SAR, China; or Taiwan, China. | E42: China
A43: CIV | B43: Sub-Saharan Africa | C43: Lower middle income | E43: Côte d'Ivoire
A44: CMR | B44: Sub-Saharan Africa | C44: Lower middle income | E44: Cameroon
A45: COD | B45: Sub-Saharan Africa | C45: Low income | E45: Congo, Dem. Rep.
A46: COG | B46: Sub-Saharan Africa | C46: Lower middle income | E46: Congo, Rep.
A47: COL | B47: Latin America & Caribbean | C47: Upper middle income | E47: Colombia
A48: COM | B48: Sub-Saharan Africa | C48: Lower middle income | E48: Comoros
A49: CPV | B49: Sub-Saharan Africa | C49: Lower middle income | E49: Cabo Verde
A50: CRI | B50: Latin America & Caribbean | C50: Upper middle income | E50: Costa Rica
A51: CSS | E51: Caribbean small states
A52: CUB | B52: Latin America & Caribbean | C52: Upper middle income | E52: Cuba
A53: CUW | B53: Latin America & Caribbean | C53: High income | E53: Curaçao
A54: CYM | B54: Latin America & Caribbean | C54: High income | E54: Cayman Islands
A55: CYP | B55: Europe & Central Asia | C55: High income | D55: A simple multiplier is used to convert the national currencies of EMU members to euros. The following irrevocable euro conversion rate entered into force on January 1, 2008: 1 euro = 0.585274 Cyprus pounds. Please note that historical data are not actual euros and are not comparable or suitable for aggregation across countries. | E55: Cyprus
A56: CZE | B56: Europe & Central Asia | C56: High income | E56: Czech Republic
A57: DEU | B57: Europe & Central Asia | C57: High income | E57: Germany
A58: DJI | B58: Middle East & North Africa | C58: Lower middle income | E58: Djibouti
A59: DMA | B59: Latin America & Caribbean | C59: Upper middle income | E59: Dominica
A60: DNK | B60: Europe & Central Asia | C60: High income | E60: Denmark
A61: DOM | B61: Latin America & Caribbean | C61: Upper middle income | E61: Dominican Republic
A62: DZA | B62: Middle East & North Africa | C62: Lower middle income | E62: Algeria
A63: EAP | E63: East Asia & Pacific (excluding high income)
A64: EAR | D64: Early-dividend countries are mostly lower-middle-income countries further along the fertility transition. Fertility rates have fallen below four births per woman and the working-age share of the population is likely rising considerably. | E64: Early-demographic dividend
A65: EAS | D65: East Asia and Pacific regional aggregate (includes all income levels). | E65: East Asia & Pacific
A66: ECA | E66: Europe & Central Asia (excluding high income)
A67: ECS | D67: Europe and Central Asia regional aggregate (includes all income levels). | E67: Europe & Central Asia
A68: ECU | B68: Latin America & Caribbean | C68: Upper middle income | E68: Ecuador
A69: EGY | B69: Middle East & North Africa | C69: Lower middle income | D69: Fiscal year end: June 30; reporting period for national accounts data: FY for years 1980 and after. The data from 1973 to 1979 are calendar year data. | E69: Egypt, Arab Rep.
A70: EMU | D70: Euro area aggregate. | E70: Euro area
A71: ERI | B71: Sub-Saharan Africa | C71: Low income | E71: Eritrea
A72: ESP | B72: Europe & Central Asia | C72: High income | D72: A simple multiplier is used to convert the national currencies of EMU members to euros. The following irrevocable euro conversion rate was adopted by the EU Council on January 1, 1999: 1 euro = 166.386 Spanish peseta. Please note that historical data before 1999 are not actual euros and are not comparable or suitable for aggregation across countries. | E72: Spain
A73: EST | B73: Europe & Central Asia | C73: High income | D73: The following irrevocable euro conversion rate entered into force on January 1, 2011: 1 euro = 15.6466 Estonian kroon. Please note that historical data are not actual euros and are not comparable or suitable for aggregation across countries. | E73: Estonia
A74: ETH | B74: Sub-Saharan Africa | C74: Low income | D74: Fiscal year end: July 7; reporting period for national accounts data: FY. | E74: Ethiopia
A75: EUU | D75: European Union aggregate. | E75: European Union
A76: FCS | D76: Fragile and conflict-affected situations aggregate. Countries are distinguished based on the nature and severity of issues they face. The classification uses the following categories: - Countries with high levels of institutional and social fragility, identified based on publicly available indicators that measure the quality of policy and institutions and manifestations of fragility. - Countries affected by violent conflict, identified based on a threshold number of conflict-related deaths relative to the population. This category includes two sub-categories based on the intensity of violence: countries in high-intensity conflict and countries in medium-intensity conflict. For more information, please visit https://www.worldbank.org/en/topic/fragilityconflictviolence/brief/harmonized-list-of-fragile-situations. | E76: Fragile and conflict affected situations
A77: FIN | B77: Europe & Central Asia | C77: High income | D77: A simple multiplier is used to convert the national currencies of EMU members to euros. The following irrevocable euro conversion rate was adopted by the EU Council on January 1, 1999: 1 euro = 5.94573 Finnish markka. Please note that historical data before 1999 are not actual euros and are not comparable or suitable for aggregation across countries. | E77: Finland
A78: FJI | B78: East Asia & Pacific | C78: Upper middle income | E78: Fiji
A79: FRA | B79: Europe & Central Asia | C79: High income | D79: The following irrevocable euro conversion rate was adopted by the EU Council on January 1, 1999: 1 euro = 6.55957 French franc. Please note that historical data before 1999 are not actual euros and are not comparable or suitable for aggregation across countries. | E79: France
A80: FRO | B80: Europe & Central Asia | C80: High income | E80: Faroe Islands
A81: FSM | B81: East Asia & Pacific | C81: Lower middle income | D81: Fiscal year ends on September 30; reporting period for national accounts data: FY. Based on the Pacific and Virgin Islands Training Initiative, national accounts data have been revised. | E81: Micronesia, Fed. Sts.
A82: GAB | B82: Sub-Saharan Africa | C82: Upper middle income | E82: Gabon
A83: GBR | B83: Europe & Central Asia | C83: High income | E83: United Kingdom
A84: GEO | B84: Europe & Central Asia | C84: Upper middle income | D84: Includes self-governed areas only, which mostly exclude Abkhazia and South Ossetia, but small areas in Abkhazia and South Ossetia are included before 2008 or 2009 because of the changes in self-governed areas. | E84: Georgia
A85: GHA | B85: Sub-Saharan Africa | C85: Lower middle income | E85: Ghana
A86: GIB | B86: Europe & Central Asia | C86: High income | E86: Gibraltar
A87: GIN | B87: Sub-Saharan Africa | C87: Low income | E87: Guinea
A88: GMB | B88: Sub-Saharan Africa | C88: Low income | E88: Gambia, The
A89: GNB | B89: Sub-Saharan Africa | C89: Low income | E89: Guinea-Bissau
A90: GNQ | B90: Sub-Saharan Africa | C90: Upper middle income | E90: Equatorial Guinea
A91: GRC | B91: Europe & Central Asia | C91: High income | D91: A simple multiplier is used to convert the national currencies of EMU members to euros. The following irrevocable euro conversion rate was adopted by the EU Council on January 1, 1999: 1 euro = 340.75 Greek drachma. Please note that historical data before 1999 are not actual euros and are not comparable or suitable for aggregation across countries. | E91: Greece
A92: GRD | B92: Latin America & Caribbean | C92: Upper middle income | E92: Grenada
A93: GRL | B93: Europe & Central Asia | C93: High income | E93: Greenland
A94: GTM | B94: Latin America & Caribbean | C94: Upper middle income | E94: Guatemala
A95: GUM | B95: East Asia & Pacific | C95: High income | E95: Guam
A96: GUY | B96: Latin America & Caribbean | C96: Upper middle income | E96: Guyana
A97: HIC | D97: High income group aggregate. High-income economies are those in which 2020 GNI per capita was $12,696 or more. | E97: High income
A98: HKG | B98: East Asia & Pacific | C98: High income | D98: On 1 July 1997 China resumed its exercise of sovereignty over Hong Kong. Unless otherwise noted, data for China do not include data for Hong Kong SAR, China; Macao SAR, China; or Taiwan, China. Agriculture value added includes mining and quarrying. | E98: Hong Kong SAR, China
A99: HND | B99: Latin America & Caribbean | C99: Lower middle income | E99: Honduras
A100: HPC | D100: Heavily indebted poor countries aggregate. | E100: Heavily indebted poor countries (HIPC)
A101: HRV | B101: Europe & Central Asia | C101: High income | E101: Croatia
A102: HTI | B102: Latin America & Caribbean | C102: Lower middle income | D102: Fiscal year end: September 30; reporting period for national accounts data: FY. | E102: Haiti
A103: HUN | B103: Europe & Central Asia | C103: High income | E103: Hungary
A104: IBD | D104: IBRD only group aggregate. | E104: IBRD only
A105: IBT | D105: IDA and IBRD total group aggregate (includes IDA only, IDA blend, and IBRD only). | E105: IDA & IBRD total
A106: IDA | D106: IDA total group aggregate (includes IDA only and IDA blend). | E106: IDA total
A107: IDB | D107: IDA blend group aggregate. | E107: IDA blend
A108: IDN | B108: East Asia & Pacific | C108: Lower middle income | D108: Fiscal year end: March 31; reporting period for national accounts data: CY. Data for Indonesia include Timor-Leste through 1999 unless otherwise noted. | E108: Indonesia
A109: IDX | D109: IDA only group aggregate. | E109: IDA only
A110: IMN | B110: Europe & Central Asia | C110: High income | D110: Fiscal year end: March 31; reporting period for national account data: FY. Classification for years after 2012 was adjusted and figures were re-estimated by the World Bank, based on the detailed data published by the Cabinet Office, and are not consistent with data for 2011 and before. | E110: Isle of Man
A111: IND | B111: South Asia | C111: Lower middle income | D111: Fiscal year end: March 31; reporting period for national accounts data: FY. | E111: India
A112: IRL | B112: Europe & Central Asia | C112: High income | D112: A simple multiplier is used to convert the national currencies of EMU members to euros. The following irrevocable euro conversion rate was adopted by the EU Council on January 1, 1999: 1 euro = 0.787564 Irish pound. Please note that historical data before 1999 are not actual euros and are not comparable or suitable for aggregation across countries. | E112: Ireland
A113: IRN | B113: Middle East & North Africa | C113: Lower middle income | D113: Fiscal year end: March 20; reporting period for national accounts data: FY. | E113: Iran, Islamic Rep.
A114: IRQ | B114: Middle East & North Africa | C114: Upper middle income | E114: Iraq
A115: ISL | B115: Europe & Central Asia | C115: High income | E115: Iceland
A116: ISR | B116: Middle East & North Africa | C116: High income | E116: Israel
A117: ITA | B117: Europe & Central Asia | C117: High income | D117: A simple multiplier is used to convert the national currencies of EMU members to euros. The following irrevocable euro conversion rate was adopted by the EU Council on January 1, 1999: 1 euro = 1936.27 Italian lira. Please note that historical data before 1999 are not actual euros and are not comparable or suitable for aggregation across countries. | E117: Italy
A118: JAM | B118: Latin America & Caribbean | C118: Upper middle income | E118: Jamaica
A119: JOR | B119: Middle East & North Africa | C119: Upper middle income | E119: Jordan
A120: JPN | B120: East Asia & Pacific | C120: High income | D120: Fiscal year end: March 31; reporting period for national accounts data: CY. | E120: Japan
A121: KAZ | B121: Europe & Central Asia | C121: Upper middle income | E121: Kazakhstan
A122: KEN | B122: Sub-Saharan Africa | C122: Lower middle income | D122: Fiscal year end: June 30; reporting period for national accounts data: CY. | E122: Kenya
A123: KGZ | B123: Europe & Central Asia | C123: Lower middle income | E123: Kyrgyz Republic
A124: KHM | B124: East Asia & Pacific | C124: Lower middle income | E124: Cambodia
A125: KIR | B125: East Asia & Pacific | C125: Lower middle income | E125: Kiribati
A126: KNA | B126: Latin America & Caribbean | C126: High income | E126: St. Kitts and Nevis
A127: KOR | B127: East Asia & Pacific | C127: High income | E127: Korea, Rep.
A128: KWT | B128: Middle East & North Africa | C128: High income | E128: Kuwait
A129: LAC | E129: Latin America & Caribbean (excluding high income)
A130: LAO | B130: East Asia & Pacific | C130: Lower middle income | E130: Lao PDR
A131: LBN | B131: Middle East & North Africa | C131: Upper middle income | E131: Lebanon
A132: LBR | B132: Sub-Saharan Africa | C132: Low income | E132: Liberia
A133: LBY | B133: Middle East & North Africa | C133: Upper middle income | E133: Libya
A134: LCA | B134: Latin America & Caribbean | C134: Upper middle income | E134: St. Lucia
A135: LCN | E135: Latin America & Caribbean
A136: LDC | E136: Least developed countries: UN classification
A137: LIC | D137: Low income group aggregate. Low-income economies are those in which 2020 GNI per capita was $1,045 or less. | E137: Low income
A138: LIE | B138: Europe & Central Asia | C138: High income | E138: Liechtenstein
A139: LKA | B139: South Asia | C139: Lower middle income | E139: Sri Lanka
A140: LMC | D140: Lower middle income group aggregate. Lower-middle-income economies are those in which 2020 GNI per capita was between $1,046 and $4,095. | E140: Lower middle income
A141: LMY | E141: Low & middle income
A142: LSO | B142: Sub-Saharan Africa | C142: Lower middle income | D142: Fiscal year end: March 31; reporting period for national accounts data: CY. | E142: Lesotho
A143: LTE | E143: Late-demographic dividend
A144: LTU | B144: Europe & Central Asia | C144: High income | D144: A simple multiplier is used to convert the national currencies of EMU members to euros. The following irrevocable euro conversion rate entered into force on January 1, 2015: 1 euro = 3.45280 Lithuanian litas. Please note that historical data are not actual euros and are not comparable or suitable for aggregation across countries. Based on data from EUROSTAT, the new reference year is 2010. | E144: Lithuania
A145: LUX | B145: Europe & Central Asia | C145: High income | D145: A simple multiplier is used to convert the national currencies of EMU members to euros. The following irrevocable euro conversion rate was adopted by the EU Council on January 1, 1999: 1 euro = 40.3399 Luxembourg franc. Please note that historical data before 1999 are not actual euros and are not comparable or suitable for aggregation across countries. | E145: Luxembourg
A146: LVA | B146: Europe & Central Asia | C146: High income | D146: A simple multiplier is used to convert the national currencies of EMU members to euros. The following irrevocable euro conversion rate entered into force on January 1, 2014: 1 euro = 0.702804 Latvian lats. Please note that historical data are not actual euros and are not comparable or suitable for aggregation across countries. Based on data from EUROSTAT, the new reference year is 2010. | E146: Latvia
A147: MAC | B147: East Asia & Pacific | C147: High income | D147: On 20 December 1999 China resumed its exercise of sovereignty over Macao. Unless otherwise noted, data for China do not include data for Hong Kong SAR, China; Macao SAR, China; or Taiwan, China. | E147: Macao SAR, China
A148: MAF | B148: Latin America & Caribbean | C148: High income | E148: St. Martin (French part)
A149: MAR | B149: Middle East & North Africa | C149: Lower middle income | E149: Morocco
A150: MCO | B150: Europe & Central Asia | C150: High income | E150: Monaco
A151: MDA | B151: Europe & Central Asia | C151: Upper middle income | D151: Excluding Transnistria. For 1950-94, World Bank estimates using UN World Population Prospects' growth rates of whole Moldova. | E151: Moldova
A152: MDG | B152: Sub-Saharan Africa | C152: Low income | E152: Madagascar
A153: MDV | B153: South Asia | C153: Upper middle income | E153: Maldives
A154: MEA | D154: Middle East and North Africa regional aggregate (includes all income levels). | E154: Middle East & North Africa
A155: MEX | B155: Latin America & Caribbean | C155: Upper middle income | E155: Mexico
A156: MHL | B156: East Asia & Pacific | C156: Upper middle income | D156: Fiscal year ends on September 30; reporting period for national accounts data: FY. | E156: Marshall Islands
A157: MIC | D157: Middle income group aggregate. Middle-income economies are those in which 2020 GNI per capita was between $1,046 and $12,695. | E157: Middle income
A158: MKD | B158: Europe & Central Asia | C158: Upper middle income | E158: North Macedonia
A159: MLI | B159: Sub-Saharan Africa | C159: Low income | E159: Mali
A160: MLT | B160: Middle East & North Africa | C160: High income | D160: A simple multiplier is used to convert the national currencies of EMU members to euros. The following irrevocable euro conversion rate entered into force on January 1, 2008: 1 euro = 0.4293 Maltese lira. Please note that historical data are not actual euros and are not comparable or suitable for aggregation across countries. National accounts data source from 1995 to 2015 is Eurostat; prior to 1995 is UN. The new reference year is 2010. | E160: Malta
A161: MMR | B161: East Asia & Pacific | C161: Lower middle income | D161: Fiscal year end: September 30; reporting period for national accounts data: FY. | E161: Myanmar
A162: MNA | E162: Middle East & North Africa (excluding high income)
A163: MNE | B163: Europe & Central Asia | C163: Upper middle income | D163: Montenegro declared independence from Serbia and Montenegro on June 3, 2006. Where available, data for each country are shown separately. However, for Serbia, some indicators continue to include data for Montenegro through 2005. | E163: Montenegro
A164: MNG | B164: East Asia & Pacific | C164: Lower middle income | E164: Mongolia
A165: MNP | B165: East Asia & Pacific | C165: High income | E165: Northern Mariana Islands
A166: MOZ | B166: Sub-Saharan Africa | C166: Low income | E166: Mozambique
A167: MRT | B167: Sub-Saharan Africa | C167: Lower middle income | D167: National account data were adjusted to reflect the new banknote (1 new ouguiya = 10 old ouguiya) | E167: Mauritania
A168: MUS | B168: Sub-Saharan Africa | C168: Upper middle income | E168: Mauritius
A169: MWI | B169: Sub-Saharan Africa | C169: Low income | E169: Malawi
A170: MYS | B170: East Asia & Pacific | C170: Upper middle income | E170: Malaysia
A171: NAC | D171: North America regional aggregate. There are no economies in North America classified as low or middle income. | E171: North America
A172: NAM | B172: Sub-Saharan Africa | C172: Upper middle income | D172: Fiscal year end: March 31; reporting period for national accounts data: CY. | E172: Namibia
A173: NCL | B173: East Asia & Pacific | C173: High income | E173: New Caledonia
A174: NER | B174: Sub-Saharan Africa | C174: Low income | E174: Niger
A175: NGA | B175: Sub-Saharan Africa | C175: Lower middle income | E175: Nigeria
A176: NIC | B176: Latin America & Caribbean | C176: Lower middle income | E176: Nicaragua
A177: NLD | B177: Europe & Central Asia | C177: High income | D177: A simple multiplier is used to convert the national currencies of EMU members to euros. The following irrevocable euro conversion rate was adopted by the EU Council on January 1, 1999: 1 euro = 2.20371 Netherlands guilder. Please note that historical data before 1999 are not actual euros and are not comparable or suitable for aggregation across countries. | E177: Netherlands
A178: NOR | B178: Europe & Central Asia | C178: High income | E178: Norway
A179: NPL | B179: South Asia | C179: Lower middle income | D179: Fiscal year end: July 14; reporting period for national accounts data: FY. | E179: Nepal
A180: NRU | B180: East Asia & Pacific | C180: High income | D180: Fiscal year end: June 30; reporting period for national accounts data: FY. | E180: Nauru
A181: NZL | B181: East Asia & Pacific | C181: High income | D181: Fiscal year end: March 31; reporting period for national accounts data: CY. | E181: New Zealand
A182: OED | E182: OECD members
A183: OMN | B183: Middle East & North Africa | C183: High income | E183: Oman
A184: OSS | E184: Other small states
A185: PAK | B185: South Asia | C185: Lower middle income | D185: Fiscal year end: June 30; reporting period for national accounts data: FY. | E185: Pakistan
A186: PAN | B186: Latin America & Caribbean | C186: Upper middle income | E186: Panama
A187: PER | B187: Latin America & Caribbean | C187: Upper middle income | E187: Peru
A188: PHL | B188: East Asia & Pacific | C188: Lower middle income | E188: Philippines
A189: PLW | B189: East Asia & Pacific | C189: High income | D189: Fiscal year ends on September 30; reporting period for national accounts data: FY. | E189: Palau
A190: PNG | B190: East Asia & Pacific | C190: Lower middle income | E190: Papua New Guinea
A191: POL | B191: Europe & Central Asia | C191: High income | E191: Poland
A192: PRE | D192: Pre-dividend countries are mostly low-income countries, lagging in key human development indicators and with current fertility levels above four births per woman. They face very rapid population growth. | E192: Pre-demographic dividend
A193: PRI | B193: Latin America & Caribbean | C193: High income | D193: Fiscal year end: June 30; reporting period for national accounts data: FY. | E193: Puerto Rico
A194: PRK | B194: East Asia & Pacific | C194: Low income | E194: Korea, Dem. People's Rep.
A195: PRT | B195: Europe & Central Asia | C195: High income | D195: A simple multiplier is used to convert the national currencies of EMU members to euros. The following irrevocable euro conversion rate was adopted by the EU Council on January 1, 1999: 1 euro = 200.482 Portuguese escudo. Please note that historical data before 1999 are not actual euros and are not comparable or suitable for aggregation across countries. | E195: Portugal
A196: PRY | B196: Latin America & Caribbean | C196: Upper middle income | E196: Paraguay
A197: PSE | B197: Middle East & North Africa | C197: Lower middle income | E197: West Bank and Gaza
A198: PSS | D198: Pacific island small states aggregate. | E198: Pacific island small states
A199: PST | D199: Post-dividend countries are mostly high-income countries where fertility has transitioned below replacement levels. | E199: Post-demographic dividend
A200: PYF | B200: East Asia & Pacific | C200: High income | E200: French Polynesia
... 66 more rows

Sheet Metadata - Indicators
A1: INDICATOR_CODE | B1: INDICATOR_NAME | C1: SOURCE_NOTE | D1: SOURCE_ORGANIZATION
A2: SP.URB.TOTL.IN.ZS | B2: Urban population (% of total population) | C2: Urban population refers to people living in urban areas as defined by national statistical offices. The data are collected and smoothed by United Nations Population Division. | D2: United Nations Population Division. World Urbanization Prospects: 2018 Revision.
A3: SP.URB.TOTL | B3: Urban population | C3: Urban population refers to people living in urban areas as defined by national statistical offices. It is calculated using World Bank population estimates and urban ratios from the United Nations World Urbanization Prospects. Aggregation of urban and rural population may not add up to total population because of different country coverages. | D3: World Bank staff estimates based on the United Nations Population Division's World Urbanization Prospects: 2018 Revision.
A4: SP.URB.GROW | B4: Urban population growth (annual %) | C4: Urban population refers to people living in urban areas as defined by national statistical offices. It is calculated using World Bank population estimates and urban ratios from the United Nations World Urbanization Prospects. | D4: World Bank staff estimates based on the United Nations Population Division's World Urbanization Prospects: 2018 Revision.
A5: SP.POP.TOTL | B5: Population, total | C5: Total population is based on the de facto definition of population, which counts all residents regardless of legal status or citizenship. The values shown are midyear estimates. | D5: (1) United Nations Population Division. World Population Prospects: 2019 Revision. (2) Census reports and other statistical publications from national statistical offices, (3) Eurostat: Demographic Statistics, (4) United Nations Statistical Division. Population and Vital Statistics Reprot (various years), (5) U.S. Census Bureau: International Database, and (6) Secretariat of the Pacific Community: Statistics and Demography Programme.
A6: SP.POP.GROW | B6: Population growth (annual %) | C6: Annual population growth rate for year t is the exponential rate of growth of midyear population from year t-1 to t, expressed as a percentage . Population is based on the de facto definition of population, which counts all residents regardless of legal status or citizenship. | D6: Derived from total population. Population source: (1) United Nations Population Division. World Population Prospects: 2019 Revision, (2) Census reports and other statistical publications from national statistical offices, (3) Eurostat: Demographic Statistics, (4) United Nations Statistical Division. Population and Vital Statistics Reprot (various years), (5) U.S. Census Bureau: International Database, and (6) Secretariat of the Pacific Community: Statistics and Demography Programme.
A7: SI.POV.DDAY | B7: Poverty headcount ratio at $1.90 a day (2011 PPP) (% of population) | C7: Poverty headcount ratio at $1.90 a day is the percentage of the population living on less than $1.90 a day at 2011 international prices. As a result of revisions in PPP exchange rates, poverty rates for individual countries cannot be compared with poverty rates reported in earlier editions. | D7: World Bank, Development Research Group. Data are based on primary household survey data obtained from government statistical agencies and World Bank country departments. Data for high-income economies are from the Luxembourg Income Study database. For more information and methodology, please see PovcalNet (http://iresearch.worldbank.org/PovcalNet/index.htm).
A8: SH.STA.MALN.ZS | B8: Prevalence of underweight, weight for age (% of children under 5) | C8: Prevalence of underweight children is the percentage of children under age 5 whose weight for age is more than two standard deviations below the median for the international reference population ages 0-59 months. The data are based on the WHO's child growth standards released in 2006. | D8: UNICEF, WHO, World Bank: Joint child malnutrition estimates (JME). Aggregation is based on UNICEF, WHO, and the World Bank harmonized dataset (adjusted, comparable data) and methodology.
A9: SH.MED.CMHW.P3 | B9: Community health workers (per 1,000 people) | C9: Community health workers include various types of community health aides, many with country-specific occupational titles such as community health officers, community health-education workers, family health workers, lady health visitors and health extension package workers. | D9: World Health Organization's Global Health Workforce Statistics, OECD, supplemented by country data.
A10: SH.DYN.MORT | B10: Mortality rate, under-5 (per 1,000 live births) | C10: Under-five mortality rate is the probability per 1,000 that a newborn baby will die before reaching age five, if subject to age-specific mortality rates of the specified year. | D10: Estimates developed by the UN Inter-agency Group for Child Mortality Estimation (UNICEF, WHO, World Bank, UN DESA Population Division) at www.childmortality.org.
A11: SE.PRM.CMPT.ZS | B11: Primary completion rate, total (% of relevant age group) | C11: Primary completion rate, or gross intake ratio to the last grade of primary education, is the number of new entrants (enrollments minus repeaters) in the last grade of primary education, regardless of age, divided by the population at the entrance age for the last grade of primary education. Data limitations preclude adjusting for students who drop out during the final year of primary education. | D11: UNESCO Institute for Statistics (http://uis.unesco.org/). Data as of September 2021.
A12: SE.ENR.PRSC.FM.ZS | B12: School enrollment, primary and secondary (gross), gender parity index (GPI) | C12: Gender parity index for gross enrollment ratio in primary and secondary education is the ratio of girls to boys enrolled at primary and secondary levels in public and private schools. | D12: UNESCO Institute for Statistics (http://uis.unesco.org/). Data as of September 2021.
A13: NV.AGR.TOTL.ZS | B13: Agriculture, forestry, and fishing, value added (% of GDP) | C13: Agriculture, forestry, and fishing corresponds to ISIC divisions 1-3 and includes forestry, hunting, and fishing, as well as cultivation of crops and livestock production. Value added is the net output of a sector after adding up all outputs and subtracting intermediate inputs. It is calculated without making deductions for depreciation of fabricated assets or depletion and degradation of natural resources. The origin of value added is determined by the International Standard Industrial Classification (ISIC), revision 4. Note: For VAB countries, gross value added at factor cost is used as the denominator. | D13: World Bank national accounts data, and OECD National Accounts data files.
A14: IQ.CPA.PUBS.XQ | B14: CPIA public sector management and institutions cluster average (1=low to 6=high) | C14: The public sector management and institutions cluster includes property rights and rule-based governance, quality of budgetary and financial management, efficiency of revenue mobilization, quality of public administration, and transparency, accountability, and corruption in the public sector. | D14: World Bank Group, CPIA database (http://www.worldbank.org/ida).
A15: IC.BUS.EASE.XQ | B15: Ease of doing business rank (1=most business-friendly regulations) | C15: Ease of doing business ranks economies from 1 to 190, with first place being the best. The ranking of economies is determined by sorting the aggregate ease of doing business scores. A high ranking (a low numerical rank) means that the regulatory environment is conducive to business operation. | D15: World Bank, Doing Business project (http://www.doingbusiness.org/). NOTE: Doing Business has been discontinued as of 9/16/2021. For more information: https://bit.ly/3CLCbme
A16: ER.PTD.TOTL.ZS | B16: Terrestrial and marine protected areas (% of total territorial area) | C16: Terrestrial protected areas are totally or partially protected areas of at least 1,000 hectares that are designated by national authorities as scientific reserves with limited public access, national parks, natural monuments, nature reserves or wildlife sanctuaries, protected landscapes, and areas managed mainly for sustainable use. Marine protected areas are areas of intertidal or subtidal terrain--and overlying water and associated flora and fauna and historical and cultural features--that have been reserved by law or other effective means to protect part or all of the enclosed environment. Sites protected under local or provincial law are excluded. | D16: World Database on Protected Areas (WDPA) where the compilation and management is carried out by United Nations Environment World Conservation Monitoring Centre (UNEP-WCMC) in collaboration with governments, non-governmental organizations, academia and industry. The data is available online through the Protected Planet website (https://www.protectedplanet.net/).
A17: ER.MRN.PTMR.ZS | B17: Marine protected areas (% of territorial waters) | C17: Marine protected areas are areas of intertidal or subtidal terrain--and overlying water and associated flora and fauna and historical and cultural features--that have been reserved by law or other effective means to protect part or all of the enclosed environment. | D17: World Database on Protected Areas (WDPA) where the compilation and management is carried out by United Nations Environment World Conservation Monitoring Centre (UNEP-WCMC) in collaboration with governments, non-governmental organizations, academia and industry. The data is available online through the Protected Planet website (https://www.protectedplanet.net/).
A18: ER.LND.PTLD.ZS | B18: Terrestrial protected areas (% of total land area) | C18: Terrestrial protected areas are totally or partially protected areas of at least 1,000 hectares that are designated by national authorities as scientific reserves with limited public access, national parks, natural monuments, nature reserves or wildlife sanctuaries, protected landscapes, and areas managed mainly for sustainable use. Marine areas, unclassified areas, littoral (intertidal) areas, and sites protected under local or provincial law are excluded. | D18: World Database on Protected Areas (WDPA) where the compilation and management is carried out by United Nations Environment World Conservation Monitoring Centre (UNEP-WCMC) in collaboration with governments, non-governmental organizations, academia and industry. The data is available online through the Protected Planet website (https://www.protectedplanet.net/).
A19: ER.H2O.FWTL.ZS | B19: Annual freshwater withdrawals, total (% of internal resources) | C19: Annual freshwater withdrawals refer to total water withdrawals, not counting evaporation losses from storage basins. Withdrawals also include water from desalination plants in countries where they are a significant source. Withdrawals can exceed 100 percent of total renewable resources where extraction from nonrenewable aquifers or desalination plants is considerable or where there is significant water reuse. Withdrawals for agriculture and industry are total withdrawals for irrigation and livestock production and for direct industrial use (including withdrawals for cooling thermoelectric plants). Withdrawals for domestic uses include drinking water, municipal use or supply, and use for public services, commercial establishments, and homes. Data are for the most recent year available for 1987-2002. | D19: Food and Agriculture Organization, AQUASTAT data.
A20: ER.H2O.FWTL.K3 | B20: Annual freshwater withdrawals, total (billion cubic meters) | C20: Annual freshwater withdrawals refer to total water withdrawals, not counting evaporation losses from storage basins. Withdrawals also include water from desalination plants in countries where they are a significant source. Withdrawals can exceed 100 percent of total renewable resources where extraction from nonrenewable aquifers or desalination plants is considerable or where there is significant water reuse. Withdrawals for agriculture and industry are total withdrawals for irrigation and livestock production and for direct industrial use (including withdrawals for cooling thermoelectric plants). Withdrawals for domestic uses include drinking water, municipal use or supply, and use for public services, commercial establishments, and homes. Data are for the most recent year available for 1987-2002. | D20: Food and Agriculture Organization, AQUASTAT data.
A21: EN.URB.MCTY.TL.ZS | B21: Population in urban agglomerations of more than 1 million (% of total population) | C21: Population in urban agglomerations of more than one million is the percentage of a country's population living in metropolitan areas that in 2018 had a population of more than one million people. | D21: United Nations, World Urbanization Prospects.
A22: EN.POP.EL5M.ZS | B22: Population living in areas where elevation is below 5 meters (% of total population) | C22: Population below 5m is the percentage of the total population living in areas where the elevation is 5 meters or less. | D22: Center for International Earth Science Information Network (CIESIN)/Columbia University. 2013. Urban-Rural Population and Land Area Estimates Version 2. Palisades, NY: NASA Socioeconomic Data and Applications Center (SEDAC). http://sedac.ciesin.columbia.edu/data/set/lecz-urban-rural-population-land-area-estimates-v2.
A23: EN.POP.EL5M.UR.ZS | B23: Urban population living in areas where elevation is below 5 meters (% of total population) | C23: Urban population below 5m is the percentage of the total population, living in areas where the elevation is 5 meters or less. | D23: Center for International Earth Science Information Network (CIESIN)/Columbia University. 2013. Urban-Rural Population and Land Area Estimates Version 2. Palisades, NY: NASA Socioeconomic Data and Applications Center (SEDAC). http://sedac.ciesin.columbia.edu/data/set/lecz-urban-rural-population-land-area-estimates-v2.
A24: EN.POP.EL5M.RU.ZS | B24: Rural population living in areas where elevation is below 5 meters (% of total population) | C24: Rural population below 5m is the percentage of the total population, living in areas where the elevation is 5 meters or less. | D24: Center for International Earth Science Information Network (CIESIN)/Columbia University. 2013. Urban-Rural Population and Land Area Estimates Version 2. Palisades, NY: NASA Socioeconomic Data and Applications Center (SEDAC). http://sedac.ciesin.columbia.edu/data/set/lecz-urban-rural-population-land-area-estimates-v2.
A25: EN.CLC.MDAT.ZS | B25: Droughts, floods, extreme temperatures (% of population, average 1990-2009) | C25: Droughts, floods and extreme temperatures is the annual average percentage of the population that is affected by natural disasters classified as either droughts, floods, or extreme temperature events. A drought is an extended period of time characterized by a deficiency in a region's water supply that is the result of constantly below average precipitation. A drought can lead to losses to agriculture, affect inland navigation and hydropower plants, and cause a lack of drinking water and famine. A flood is a significant rise of water level in a stream, lake, reservoir or coastal region. Extreme temperature events are either cold waves or heat waves. A cold wave can be both a prolonged period of excessively cold weather and the sudden invasion of very cold air over a large area. Along with frost it can cause damage to agriculture, infrastructure, and property. A heat wave is a prolonged period of excessively hot and sometimes also humid weather relative to normal climate patterns of a certain region. Population affected is the number of people injured, left homeless or requiring immediate assistance during a period of emergency resulting from a natural disaster; it can also include displaced or evacuated people. Average percentage of population affected is calculated by dividing the sum of total affected for the period stated by the sum of the annual population figures for the period stated. | D25: EM-DAT: The OFDA/CRED International Disaster Database: www.emdat.be, Université Catholique de Louvain, Brussels (Belgium), World Bank.
A26: EN.CLC.GHGR.MT.CE | B26: GHG net emissions/removals by LUCF (Mt of CO2 equivalent) | C26: GHG net emissions/removals by LUCF refers to changes in atmospheric levels of all greenhouse gases attributable to forest and land-use change activities, including but not limited to (1) emissions and removals of CO2 from decreases or increases in biomass stocks due to forest management, logging, fuelwood collection, etc.; (2) conversion of existing forests and natural grasslands to other land uses; (3) removal of CO2 from the abandonment of formerly managed lands (e.g. croplands and pastures); and (4) emissions and removals of CO2 in soil associated with land-use change and management. For Annex-I countries under the UNFCCC, these data are drawn from the annual GHG inventories submitted to the UNFCCC by each country; for non-Annex-I countries, data are drawn from the most recently submitted National Communication where available. Because of differences in reporting years and methodologies, these data are not generally considered comparable across countries. Data are in million metric tons. | D26: United Nations Framework Convention on Climate Change.
A27: EN.CLC.DRSK.XQ | B27: Disaster risk reduction progress score (1-5 scale; 5=best) | C27: Disaster risk reduction progress score is an average of self-assessment scores, ranging from 1 to 5, submitted by countries under Priority 1 of the Hyogo Framework National Progress Reports. The Hyogo Framework is a global blueprint for disaster risk reduction efforts that was adopted by 168 countries in 2005. Assessments of "Priority 1" include four indicators that reflect the degree to which countries have prioritized disaster risk reduction and the strengthening of relevant institutions. | D27: (UNISDR, 2009-2011 Progress Reports, http://www.preventionweb.net/english/hyogo).
A28: EN.ATM.SF6G.KT.CE | B28: SF6 gas emissions (thousand metric tons of CO2 equivalent) | C28: Sulfur hexafluoride is used largely to insulate high-voltage electric power equipment. | D28: European Commission, Joint Research Centre (JRC)/Netherlands Environmental Assessment Agency (PBL). Emission Database for Global Atmospheric Research (EDGAR): http://edgar.jrc.ec.europa.eu/
A29: EN.ATM.PFCG.KT.CE | B29: PFC gas emissions (thousand metric tons of CO2 equivalent) | C29: Perfluorocarbons, used as a replacement for chlorofluorocarbons in manufacturing semiconductors, are a byproduct of aluminum smelting and uranium enrichment. | D29: European Commission, Joint Research Centre (JRC)/Netherlands Environmental Assessment Agency (PBL). Emission Database for Global Atmospheric Research (EDGAR): http://edgar.jrc.ec.europa.eu/
A30: EN.ATM.NOXE.ZG | B30: Nitrous oxide emissions (% change from 1990) | C30: Nitrous oxide emissions are emissions from agricultural biomass burning, industrial activities, and livestock management. Each year of data shows the percentage change to that year from 1990. | D30: World Bank staff estimates from original source: European Commission, Joint Research Centre (JRC)/Netherlands Environmental Assessment Agency (PBL). Emission Database for Global Atmospheric Research (EDGAR): http://edgar.jrc.ec.europa.eu/.
A31: EN.ATM.NOXE.KT.CE | B31: Nitrous oxide emissions (thousand metric tons of CO2 equivalent) | C31: Nitrous oxide emissions are emissions from agricultural biomass burning, industrial activities, and livestock management. | D31: Data for up to 1990 are sourced from Carbon Dioxide Information Analysis Center, Environmental Sciences Division, Oak Ridge National Laboratory, Tennessee, United States. Data from 1990 are CAIT data: Climate Watch. 2020. GHG Emissions. Washington, DC: World Resources Institute. Available at: https://www.climatewatchdata.org/ghg-emissions.
A32: EN.ATM.METH.ZG | B32: Methane emissions (% change from 1990) | C32: Methane emissions are those stemming from human activities such as agriculture and from industrial methane production. Each year of data shows the percentage change to that year from 1990. | D32: World Bank staff estimates from original source: European Commission, Joint Research Centre (JRC)/Netherlands Environmental Assessment Agency (PBL). Emission Database for Global Atmospheric Research (EDGAR): http://edgar.jrc.ec.europa.eu/.
A33: EN.ATM.METH.KT.CE | B33: Methane emissions (kt of CO2 equivalent) | C33: Methane emissions are those stemming from human activities such as agriculture and from industrial methane production. | D33: Data for up to 1990 are sourced from Carbon Dioxide Information Analysis Center, Environmental Sciences Division, Oak Ridge National Laboratory, Tennessee, United States. Data from 1990 are CAIT data: Climate Watch. 2020. GHG Emissions. Washington, DC: World Resources Institute. Available at: https://www.climatewatchdata.org/ghg-emissions.
A34: EN.ATM.HFCG.KT.CE | B34: HFC gas emissions (thousand metric tons of CO2 equivalent) | C34: Hydrofluorocarbons, used as a replacement for chlorofluorocarbons, are used mainly in refrigeration and semiconductor manufacturing. | D34: European Commission, Joint Research Centre (JRC)/Netherlands Environmental Assessment Agency (PBL). Emission Database for Global Atmospheric Research (EDGAR): http://edgar.jrc.ec.europa.eu/
A35: EN.ATM.GHGT.ZG | B35: Total greenhouse gas emissions (% change from 1990) | C35: Total greenhouse gas emissions are composed of CO2 totals excluding short-cycle biomass burning (such as agricultural waste burning and savanna burning) but including other biomass burning (such as forest fires, post-burn decay, peat fires and decay of drained peatlands), all anthropogenic CH4 sources, N2O sources and F-gases (HFCs, PFCs and SF6). Each year of data shows the percentage change to that year from 1990. | D35: World Bank staff estimates from original source: European Commission, Joint Research Centre (JRC)/Netherlands Environmental Assessment Agency (PBL). Emission Database for Global Atmospheric Research (EDGAR): http://edgar.jrc.ec.europa.eu/.
A36: EN.ATM.GHGT.KT.CE | B36: Total greenhouse gas emissions (kt of CO2 equivalent) | C36: Total greenhouse gas emissions in kt of CO2 equivalent are composed of CO2 totals excluding short-cycle biomass burning (such as agricultural waste burning and savanna burning) but including other biomass burning (such as forest fires, post-burn decay, peat fires and decay of drained peatlands), all anthropogenic CH4 sources, N2O sources and F-gases (HFCs, PFCs and SF6). | D36: Data for up to 1990 are sourced from Carbon Dioxide Information Analysis Center, Environmental Sciences Division, Oak Ridge National Laboratory, Tennessee, United States. Data from 1990 are CAIT data: Climate Watch. 2020. GHG Emissions. Washington, DC: World Resources Institute. Available at: https://www.climatewatchdata.org/ghg-emissions.
A37: EN.ATM.GHGO.ZG | B37: Other greenhouse gas emissions (% change from 1990) | C37: Other greenhouse gas emissions are by-product emissions of hydrofluorocarbons, perfluorocarbons, and sulfur hexafluoride. Each year of data shows the percentage change to that year from 1990. | D37: World Bank staff estimates from original source: European Commission, Joint Research Centre (JRC)/Netherlands Environmental Assessment Agency (PBL). Emission Database for Global Atmospheric Research (EDGAR): http://edgar.jrc.ec.europa.eu/.
A38: EN.ATM.GHGO.KT.CE | B38: Other greenhouse gas emissions, HFC, PFC and SF6 (thousand metric tons of CO2 equivalent) | C38: Other greenhouse gas emissions are by-product emissions of hydrofluorocarbons, perfluorocarbons, and sulfur hexafluoride. | D38: World Bank staff estimates from original source: European Commission, Joint Research Centre (JRC)/Netherlands Environmental Assessment Agency (PBL). Emission Database for Global Atmospheric Research (EDGAR): http://edgar.jrc.ec.europa.eu/.
A39: EN.ATM.CO2E.SF.ZS | B39: CO2 emissions from solid fuel consumption (% of total) | C39: Carbon dioxide emissions from solid fuel consumption refer mainly to emissions from use of coal as an energy source. | D39: Carbon Dioxide Information Analysis Center, Environmental Sciences Division, Oak Ridge National Laboratory, Tennessee, United States.
A40: EN.ATM.CO2E.SF.KT | B40: CO2 emissions from solid fuel consumption (kt) | C40: Carbon dioxide emissions from solid fuel consumption refer mainly to emissions from use of coal as an energy source. | D40: Carbon Dioxide Information Analysis Center, Environmental Sciences Division, Oak Ridge National Laboratory, Tennessee, United States.
A41: EN.ATM.CO2E.PP.GD.KD | B41: CO2 emissions (kg per 2017 PPP $ of GDP) | C41: Carbon dioxide emissions are those stemming from the burning of fossil fuels and the manufacture of cement. They include carbon dioxide produced during consumption of solid, liquid, and gas fuels and gas flaring. | D41: Data for up to 1990 are sourced from Carbon Dioxide Information Analysis Center, Environmental Sciences Division, Oak Ridge National Laboratory, Tennessee, United States. Data from 1990 are CAIT data: Climate Watch. 2020. GHG Emissions. Washington, DC: World Resources Institute. Available at: https://www.climatewatchdata.org/ghg-emissions. See NY.GDP.MKTP.PP.KD for the denominator's source.
A42: EN.ATM.CO2E.PP.GD | B42: CO2 emissions (kg per PPP $ of GDP) | C42: Carbon dioxide emissions are those stemming from the burning of fossil fuels and the manufacture of cement. They include carbon dioxide produced during consumption of solid, liquid, and gas fuels and gas flaring. | D42: Data for up to 1990 are sourced from Carbon Dioxide Information Analysis Center, Environmental Sciences Division, Oak Ridge National Laboratory, Tennessee, United States. Data from 1990 are CAIT data: Climate Watch. 2020. GHG Emissions. Washington, DC: World Resources Institute. Available at: https://www.climatewatchdata.org/ghg-emissions. See NY.GDP.MKTP.PP.CD for the denominator's source.
A43: EN.ATM.CO2E.PC | B43: CO2 emissions (metric tons per capita) | C43: Carbon dioxide emissions are those stemming from the burning of fossil fuels and the manufacture of cement. They include carbon dioxide produced during consumption of solid, liquid, and gas fuels and gas flaring. | D43: Data for up to 1990 are sourced from Carbon Dioxide Information Analysis Center, Environmental Sciences Division, Oak Ridge National Laboratory, Tennessee, United States. Data from 1990 are CAIT data: Climate Watch. 2020. GHG Emissions. Washington, DC: World Resources Institute. Available at: https://www.climatewatchdata.org/ghg-emissions. See SP.POP.TOTL for the denominator's source.
A44: EN.ATM.CO2E.LF.ZS | B44: CO2 emissions from liquid fuel consumption (% of total) | C44: Carbon dioxide emissions from liquid fuel consumption refer mainly to emissions from use of petroleum-derived fuels as an energy source. | D44: Carbon Dioxide Information Analysis Center, Environmental Sciences Division, Oak Ridge National Laboratory, Tennessee, United States.
A45: EN.ATM.CO2E.LF.KT | B45: CO2 emissions from liquid fuel consumption (kt) | C45: Carbon dioxide emissions from liquid fuel consumption refer mainly to emissions from use of petroleum-derived fuels as an energy source. | D45: Carbon Dioxide Information Analysis Center, Environmental Sciences Division, Oak Ridge National Laboratory, Tennessee, United States.
A46: EN.ATM.CO2E.KT | B46: CO2 emissions (kt) | C46: Carbon dioxide emissions are those stemming from the burning of fossil fuels and the manufacture of cement. They include carbon dioxide produced during consumption of solid, liquid, and gas fuels and gas flaring. | D46: Data for up to 1990 are sourced from Carbon Dioxide Information Analysis Center, Environmental Sciences Division, Oak Ridge National Laboratory, Tennessee, United States. Data from 1990 are CAIT data: Climate Watch. 2020. GHG Emissions. Washington, DC: World Resources Institute. Available at: https://www.climatewatchdata.org/ghg-emissions.
A47: EN.ATM.CO2E.KD.GD | B47: CO2 emissions (kg per 2015 US$ of GDP) | C47: Carbon dioxide emissions are those stemming from the burning of fossil fuels and the manufacture of cement. They include carbon dioxide produced during consumption of solid, liquid, and gas fuels and gas flaring. | D47: Data for up to 1990 are sourced from Carbon Dioxide Information Analysis Center, Environmental Sciences Division, Oak Ridge National Laboratory, Tennessee, United States. Data from 1990 are CAIT data: Climate Watch. 2020. GHG Emissions. Washington, DC: World Resources Institute. Available at: https://www.climatewatchdata.org/ghg-emissions. See NY.GDP.MKTP.KD for the denominator's source.
A48: EN.ATM.CO2E.GF.ZS | B48: CO2 emissions from gaseous fuel consumption (% of total) | C48: Carbon dioxide emissions from liquid fuel consumption refer mainly to emissions from use of natural gas as an energy source. | D48: Carbon Dioxide Information Analysis Center, Environmental Sciences Division, Oak Ridge National Laboratory, Tennessee, United States.
A49: EN.ATM.CO2E.GF.KT | B49: CO2 emissions from gaseous fuel consumption (kt) | C49: Carbon dioxide emissions from liquid fuel consumption refer mainly to emissions from use of natural gas as an energy source. | D49: Carbon Dioxide Information Analysis Center, Environmental Sciences Division, Oak Ridge National Laboratory, Tennessee, United States.
A50: EN.ATM.CO2E.EG.ZS | B50: CO2 intensity (kg per kg of oil equivalent energy use) | C50: Carbon dioxide emissions from solid fuel consumption refer mainly to emissions from use of coal as an energy source. | D50: Carbon Dioxide Information Analysis Center, Environmental Sciences Division, Oak Ridge National Laboratory, Tennessee, United States.
A51: EG.USE.PCAP.KG.OE | B51: Energy use (kg of oil equivalent per capita) | C51: Energy use refers to use of primary energy before transformation to other end-use fuels, which is equal to indigenous production plus imports and stock changes, minus exports and fuels supplied to ships and aircraft engaged in international transport. | D51: IEA Statistics © OECD/IEA 2014 (http://www.iea.org/stats/index.asp), subject to https://www.iea.org/t&c/termsandconditions/
A52: EG.USE.ELEC.KH.PC | B52: Electric power consumption (kWh per capita) | C52: Electric power consumption measures the production of power plants and combined heat and power plants less transmission, distribution, and transformation losses and own use by heat and power plants. | D52: IEA Statistics © OECD/IEA 2014 (http://www.iea.org/stats/index.asp), subject to https://www.iea.org/t&c/termsandconditions/
A53: EG.USE.COMM.GD.PP.KD | B53: Energy use (kg of oil equivalent) per $1,000 GDP (constant 2017 PPP) | C53: Energy use per PPP GDP is the kilogram of oil equivalent of energy use per constant PPP GDP. Energy use refers to use of primary energy before transformation to other end-use fuels, which is equal to indigenous production plus imports and stock changes, minus exports and fuels supplied to ships and aircraft engaged in international transport. PPP GDP is gross domestic product converted to 2017 constant international dollars using purchasing power parity rates. An international dollar has the same purchasing power over GDP as a U.S. dollar has in the United States. | D53: IEA Statistics © OECD/IEA 2014 (http://www.iea.org/stats/index.asp), subject to https://www.iea.org/t&c/termsandconditions/
A54: EG.FEC.RNEW.ZS | B54: Renewable energy consumption (% of total final energy consumption) | C54: Renewable energy consumption is the share of renewables energy in total final energy consumption. | D54: World Bank, Sustainable Energy for All (SE4ALL) database from the SE4ALL Global Tracking Framework led jointly by the World Bank, International Energy Agency, and the Energy Sector Management Assistance Program.
A55: EG.ELC.RNWX.ZS | B55: Electricity production from renewable sources, excluding hydroelectric (% of total) | C55: Electricity production from renewable sources, excluding hydroelectric, includes geothermal, solar, tides, wind, biomass, and biofuels. | D55: IEA Statistics © OECD/IEA 2014 (http://www.iea.org/stats/index.asp), subject to https://www.iea.org/t&c/termsandconditions/
A56: EG.ELC.RNWX.KH | B56: Electricity production from renewable sources, excluding hydroelectric (kWh) | C56: Electricity production from renewable sources, excluding hydroelectric, includes geothermal, solar, tides, wind, biomass, and biofuels. | D56: IEA Statistics © OECD/IEA 2014 (http://www.iea.org/stats/index.asp), subject to https://www.iea.org/t&c/termsandconditions/
A57: EG.ELC.RNEW.ZS | B57: Renewable electricity output (% of total electricity output) | C57: Renewable electricity is the share of electrity generated by renewable power plants in total electricity generated by all types of plants. | D57: IEA Statistics © OECD/IEA 2018 (http://www.iea.org/stats/index.asp), subject to https://www.iea.org/t&c/termsandconditions/
A58: EG.ELC.PETR.ZS | B58: Electricity production from oil sources (% of total) | C58: Sources of electricity refer to the inputs used to generate electricity. Oil refers to crude oil and petroleum products. | D58: IEA Statistics © OECD/IEA 2014 (http://www.iea.org/stats/index.asp), subject to https://www.iea.org/t&c/termsandconditions/
A59: EG.ELC.NUCL.ZS | B59: Electricity production from nuclear sources (% of total) | C59: Sources of electricity refer to the inputs used to generate electricity. Nuclear power refers to electricity produced by nuclear power plants. | D59: IEA Statistics © OECD/IEA 2014 (http://www.iea.org/stats/index.asp), subject to https://www.iea.org/t&c/termsandconditions/
A60: EG.ELC.NGAS.ZS | B60: Electricity production from natural gas sources (% of total) | C60: Sources of electricity refer to the inputs used to generate electricity. Gas refers to natural gas but excludes natural gas liquids. | D60: IEA Statistics © OECD/IEA 2014 (http://www.iea.org/stats/index.asp), subject to https://www.iea.org/t&c/termsandconditions/
A61: EG.ELC.HYRO.ZS | B61: Electricity production from hydroelectric sources (% of total) | C61: Sources of electricity refer to the inputs used to generate electricity. Hydropower refers to electricity produced by hydroelectric power plants. | D61: IEA Statistics © OECD/IEA 2014 (http://www.iea.org/stats/index.asp), subject to https://www.iea.org/t&c/termsandconditions/
A62: EG.ELC.COAL.ZS | B62: Electricity production from coal sources (% of total) | C62: Sources of electricity refer to the inputs used to generate electricity. Coal refers to all coal and brown coal, both primary (including hard coal and lignite-brown coal) and derived fuels (including patent fuel, coke oven coke, gas coke, coke oven gas, and blast furnace gas). Peat is also included in this category. | D62: IEA Statistics © OECD/IEA 2014 (http://www.iea.org/stats/index.asp), subject to https://www.iea.org/t&c/termsandconditions/
A63: EG.ELC.ACCS.ZS | B63: Access to electricity (% of population) | C63: Access to electricity is the percentage of population with access to electricity. Electrification data are collected from industry, national surveys and international sources. | D63: World Bank Global Electrification Database from "Tracking SDG 7: The Energy Progress Report" led jointly by the custodian agencies: the International Energy Agency (IEA), the International Renewable Energy Agency (IRENA), the United Nations Statistics Division (UNSD), the World Bank and the World Health Organization (WHO).
A64: BX.KLT.DINV.WD.GD.ZS | B64: Foreign direct investment, net inflows (% of GDP) | C64: Foreign direct investment are the net inflows of investment to acquire a lasting management interest (10 percent or more of voting stock) in an enterprise operating in an economy other than that of the investor. It is the sum of equity capital, reinvestment of earnings, other long-term capital, and short-term capital as shown in the balance of payments. This series shows net inflows (new investment inflows less disinvestment) in the reporting economy from foreign investors, and is divided by GDP. | D64: International Monetary Fund, International Financial Statistics and Balance of Payments databases, World Bank, International Debt Statistics, and World Bank and OECD GDP estimates.
A65: AG.YLD.CREL.KG | B65: Cereal yield (kg per hectare) | C65: Cereal yield, measured as kilograms per hectare of harvested land, includes wheat, rice, maize, barley, oats, rye, millet, sorghum, buckwheat, and mixed grains. Production data on cereals relate to crops harvested for dry grain only. Cereal crops harvested for hay or harvested green for food, feed, or silage and those used for grazing are excluded. The FAO allocates production data to the calendar year in which the bulk of the harvest took place. Most of a crop harvested near the end of a year will be used in the following year. | D65: Food and Agriculture Organization, electronic files and web site.
A66: AG.LND.PRCP.MM | B66: Average precipitation in depth (mm per year) | C66: Average precipitation is the long-term average in depth (over space and time) of annual precipitation in the country. Precipitation is defined as any kind of water that falls from clouds as a liquid or a solid. | D66: Food and Agriculture Organization, electronic files and web site.
A67: AG.LND.IRIG.AG.ZS | B67: Agricultural irrigated land (% of total agricultural land) | C67: Agricultural irrigated land refers to agricultural areas purposely provided with water, including land irrigated by controlled flooding. | D67: Food and Agriculture Organization, electronic files and web site.
A68: AG.LND.FRST.ZS | B68: Forest area (% of land area) | C68: Forest area is land under natural or planted stands of trees of at least 5 meters in situ, whether productive or not, and excludes tree stands in agricultural production systems (for example, in fruit plantations and agroforestry systems) and trees in urban parks and gardens. | D68: Food and Agriculture Organization, electronic files and web site.
A69: AG.LND.FRST.K2 | B69: Forest area (sq. km) | C69: Forest area is land under natural or planted stands of trees of at least 5 meters in situ, whether productive or not, and excludes tree stands in agricultural production systems (for example, in fruit plantations and agroforestry systems) and trees in urban parks and gardens. | D69: Food and Agriculture Organization, electronic files and web site.
A70: AG.LND.EL5M.ZS | B70: Land area where elevation is below 5 meters (% of total land area) | C70: Land area below 5m is the percentage of total land where the elevation is 5 meters or less. | D70: Center for International Earth Science Information Network (CIESIN)/Columbia University. 2013. Urban-Rural Population and Land Area Estimates Version 2. Palisades, NY: NASA Socioeconomic Data and Applications Center (SEDAC). http://sedac.ciesin.columbia.edu/data/set/lecz-urban-rural-population-land-area-estimates-v2.
A71: AG.LND.EL5M.UR.ZS | B71: Urban land area where elevation is below 5 meters (% of total land area) | C71: Urban land area below 5m is the percentage of total land where the urban land elevation is 5 meters or less. | D71: Center for International Earth Science Information Network (CIESIN)/Columbia University. 2013. Urban-Rural Population and Land Area Estimates Version 2. Palisades, NY: NASA Socioeconomic Data and Applications Center (SEDAC). http://sedac.ciesin.columbia.edu/data/set/lecz-urban-rural-population-land-area-estimates-v2.
A72: AG.LND.EL5M.UR.K2 | B72: Urban land area where elevation is below 5 meters (sq. km) | C72: Urban land area below 5m is the total urban land area in square kilometers where the elevation is 5 meters or less. | D72: Center for International Earth Science Information Network (CIESIN)/Columbia University. 2013. Urban-Rural Population and Land Area Estimates Version 2. Palisades, NY: NASA Socioeconomic Data and Applications Center (SEDAC). http://sedac.ciesin.columbia.edu/data/set/lecz-urban-rural-population-land-area-estimates-v2.
A73: AG.LND.EL5M.RU.ZS | B73: Rural land area where elevation is below 5 meters (% of total land area) | C73: Rural land area below 5m is the percentage of total land where the rural land elevation is 5 meters or less. | D73: Center for International Earth Science Information Network (CIESIN)/Columbia University. 2013. Urban-Rural Population and Land Area Estimates Version 2. Palisades, NY: NASA Socioeconomic Data and Applications Center (SEDAC). http://sedac.ciesin.columbia.edu/data/set/lecz-urban-rural-population-land-area-estimates-v2.
A74: AG.LND.EL5M.RU.K2 | B74: Rural land area where elevation is below 5 meters (sq. km) | C74: Rural land area below 5m is the total rural land area in square kilometers where the elevation is 5 meters or less. | D74: Center for International Earth Science Information Network (CIESIN)/Columbia University. 2013. Urban-Rural Population and Land Area Estimates Version 2. Palisades, NY: NASA Socioeconomic Data and Applications Center (SEDAC). http://sedac.ciesin.columbia.edu/data/set/lecz-urban-rural-population-land-area-estimates-v2.
A75: AG.LND.ARBL.ZS | B75: Arable land (% of land area) | C75: Arable land includes land defined by the FAO as land under temporary crops (double-cropped areas are counted once), temporary meadows for mowing or for pasture, land under market or kitchen gardens, and land temporarily fallow. Land abandoned as a result of shifting cultivation is excluded. | D75: Food and Agriculture Organization, electronic files and web site.
A76: AG.LND.AGRI.ZS | B76: Agricultural land (% of land area) | C76: Agricultural land refers to the share of land area that is arable, under permanent crops, and under permanent pastures. Arable land includes land defined by the FAO as land under temporary crops (double-cropped areas are counted once), temporary meadows for mowing or for pasture, land under market or kitchen gardens, and land temporarily fallow. Land abandoned as a result of shifting cultivation is excluded. Land under permanent crops is land cultivated with crops that occupy the land for long periods and need not be replanted after each harvest, such as cocoa, coffee, and rubber. This category includes land under flowering shrubs, fruit trees, nut trees, and vines, but excludes land under trees grown for wood or timber. Permanent pasture is land used for five or more years for forage, including natural and cultivated crops. | D76: Food and Agriculture Organization, electronic files and web site.
A77: AG.LND.AGRI.K2 | B77: Agricultural land (sq. km) | C77: Agricultural land refers to the share of land area that is arable, under permanent crops, and under permanent pastures. Arable land includes land defined by the FAO as land under temporary crops (double-cropped areas are counted once), temporary meadows for mowing or for pasture, land under market or kitchen gardens, and land temporarily fallow. Land abandoned as a result of shifting cultivation is excluded. Land under permanent crops is land cultivated with crops that occupy the land for long periods and need not be replanted after each harvest, such as cocoa, coffee, and rubber. This category includes land under flowering shrubs, fruit trees, nut trees, and vines, but excludes land under trees grown for wood or timber. Permanent pasture is land used for five or more years for forage, including natural and cultivated crops. | D77: Food and Agriculture Organization, electronic files and web site.

Sheet rGDP
A1: FRED Graph Observations
A2: Federal Reserve Economic Data
A3: Link: https://fred.stlouisfed.org
A4: Help: https://fredhelp.stlouisfed.org
A5: Economic Research Division
A6: Federal Reserve Bank of St. Louis
A8: GDPC1 | B8: Real Gross Domestic Product, Billions of Chained 2012 Dollars, Annual, Seasonally Adjusted Annual Rate
A10: Frequency: Annual | B10: annual average
A11: observation_date | B11: rGDP | C11: rGDPg | D11: lnrGDP
A12: 1979-01-01 | B12: 6780.92375 | D12: =LN(B12) -> 8.821868618
A13: 1980-01-01 | B13: 6763.51375 | C13: =(B13-B12)/B12 -> -0.002567496796 | D13: =LN(B13) -> 8.819297819
A14: 1981-01-01 | B14: 6935.15325 | C14: =(B14-B13)/B13 -> 0.02537726784 | D14: 8.844358431
A15: 1982-01-01 | B15: 6810.12 | C15: -0.01802890945 | D15: 8.82616502
A16: 1983-01-01 | B16: 7122.2905 | C16: 0.04583920694 | D16: 8.870984652
A17: 1984-01-01 | B17: 7637.704 | C17: 0.07236625633 | D17: 8.940852313
A18: 1985-01-01 | B18: 7956.1695 | C18: 0.04169649675 | D18: 8.981702944
A19: 1986-01-01 | B19: 8231.6635 | C19: 0.03462646189 | D19: 9.0157434
A20: 1987-01-01 | B20: 8516.41825 | C20: 0.03459261302 | D20: 9.049751138
A21: 1988-01-01 | B21: 8872.15425 | C21: 0.04177061172 | D21: 9.090672915
A22: 1989-01-01 | B22: 9197.9975 | C22: 0.03672650867 | D22: 9.126741076
A23: 1990-01-01 | B23: 9371.468 | C23: 0.01885959417 | D23: 9.145425033
A24: 1991-01-01 | B24: 9361.322 | C24: -0.001082647884 | D24: 9.144341799
A25: 1992-01-01 | B25: 9691.06875 | C25: 0.03522437857 | D25: 9.178959993
A26: 1993-01-01 | B26: 9957.74625 | C26: 0.02751786277 | D26: 9.206106045
A27: 1994-01-01 | B27: 10358.92325 | C27: 0.04028793162 | D27: 9.245603577
A28: 1995-01-01 | B28: 10636.97875 | C28: 0.02684212377 | D28: 9.272091771
A29: 1996-01-01 | B29: 11038.266 | C29: 0.03772567939 | D29: 9.309123242
A30: 1997-01-01 | B30: 11529.157 | C30: 0.04447174946 | D30: 9.352634497
A31: 1998-01-01 | B31: 12045.824 | C31: 0.04481394433 | D31: 9.396473323
A32: 1999-01-01 | B32: 12623.361 | C32: 0.04794499737 | D32: 9.443304424
A33: 2000-01-01 | B33: 13138.03525 | C33: 0.04077157027 | D33: 9.483266757
A34: 2001-01-01 | B34: 13263.417 | C34: 0.00954341708 | D34: 9.492764923
A35: 2002-01-01 | B35: 13488.357 | C35: 0.01695943059 | D35: 9.509582148
A36: 2003-01-01 | B36: 13865.51925 | C36: 0.02796206017 | D36: 9.537160408
A37: 2004-01-01 | B37: 14399.696 | C37: 0.03852554963 | D37: 9.574962374
A38: 2005-01-01 | B38: 14901.269 | C38: 0.03483219368 | D38: 9.609201656
A39: 2006-01-01 | B39: 15315.94325 | C39: 0.02782811652 | D39: 9.636649607
A40: 2007-01-01 | B40: 15623.8715 | C40: 0.02010507907 | D40: 9.656555248
A41: 2008-01-01 | B41: 15642.962 | C41: 0.001221880249 | D41: 9.657776382
A42: 2009-01-01 | B42: 15236.26225 | C42: -0.0259988965 | D42: 9.63143354
A43: 2010-01-01 | B43: 15648.991 | C43: 0.0270885827 | D43: 9.658161721
A44: 2011-01-01 | B44: 15891.534 | C44: 0.01549895453 | D44: 9.673541794
A45: 2012-01-01 | B45: 16253.97 | C45: 0.02280686056 | D45: 9.696092466
A46: 2013-01-01 | B46: 16553.3475 | C46: 0.01841873093 | D46: 9.714343626
A47: 2014-01-01 | B47: 16932.05175 | C47: 0.02287780463 | D47: 9.736963658
A48: 2015-01-01 | B48: 17390.29525 | C48: 0.0270636723 | D48: 9.763667585
A49: 2016-01-01 | B49: 17680.27375 | C49: 0.01667473127 | D49: 9.78020482
A50: 2017-01-01 | B50: 18079.084 | C50: 0.02255679158 | D50: 9.802510969
A51: 2018-01-01 | B51: 18606.7865 | C51: 0.02918856398 | D51: 9.831281659
A52: 2019-01-01 | B52: 19032.6715 | C52: 0.02288869171 | D52: 9.853912334
A53: 2020-01-01 | B53: 18384.68725 | C53: -0.03404589051 | D53: 9.819273382

Sheet UNEMP
A1: FRED Graph Observations
A2: Federal Reserve Economic Data
A3: Link: https://fred.stlouisfed.org
A4: Help: https://fredhelp.stlouisfed.org
A5: Economic Research Division
A6: Federal Reserve Bank of St. Louis
A8: UNRATE | B8: Unemployment Rate, Percent, Annual, Seasonally Adjusted
A10: Frequency: Annual | B10: annual average
A11: observation_date | B11: UNRATE
A12: 1979-01-01 | B12: 5.85
A13: 1980-01-01 | B13: 7.175
A14: 1981-01-01 | B14: 7.616666667
A15: 1982-01-01 | B15: 9.708333333
A16: 1983-01-01 | B16: 9.6
A17: 1984-01-01 | B17: 7.508333333
A18: 1985-01-01 | B18: 7.191666667
A19: 1986-01-01 | B19: 7
A20: 1987-01-01 | B20: 6.175
A21: 1988-01-01 | B21: 5.491666667
A22: 1989-01-01 | B22: 5.258333333
A23: 1990-01-01 | B23: 5.616666667
A24: 1991-01-01 | B24: 6.85
A25: 1992-01-01 | B25: 7.491666667
A26: 1993-01-01 | B26: 6.908333333
A27: 1994-01-01 | B27: 6.1
A28: 1995-01-01 | B28: 5.591666667
A29: 1996-01-01 | B29: 5.408333333
A30: 1997-01-01 | B30: 4.941666667
A31: 1998-01-01 | B31: 4.5
A32: 1999-01-01 | B32: 4.216666667
A33: 2000-01-01 | B33: 3.966666667
A34: 2001-01-01 | B34: 4.741666667
A35: 2002-01-01 | B35: 5.783333333
A36: 2003-01-01 | B36: 5.991666667
A37: 2004-01-01 | B37: 5.541666667
A38: 2005-01-01 | B38: 5.083333333
A39: 2006-01-01 | B39: 4.608333333
A40: 2007-01-01 | B40: 4.616666667
A41: 2008-01-01 | B41: 5.8
A42: 2009-01-01 | B42: 9.283333333
A43: 2010-01-01 | B43: 9.608333333
A44: 2011-01-01 | B44: 8.933333333
A45: 2012-01-01 | B45: 8.075
A46: 2013-01-01 | B46: 7.358333333
A47: 2014-01-01 | B47: 6.158333333
A48: 2015-01-01 | B48: 5.275
A49: 2016-01-01 | B49: 4.875
A50: 2017-01-01 | B50: 4.35
A51: 2018-01-01 | B51: 3.891666667
A52: 2019-01-01 | B52: 3.683333333
A53: 2020-01-01 | B53: 8.108333333
A54: 2021-01-01 | B54: 0

Sheet TN10y
A1: FRED Graph Observations
A2: Federal Reserve Economic Data
A3: Link: https://fred.stlouisfed.org
A4: Help: https://fredhelp.stlouisfed.org
A5: Economic Research Division
A6: Federal Reserve Bank of St. Louis
A8: DGS10 | B8: Market Yield on U.S. Treasury Securities at 10-Year Constant Maturity, Percent, Annual, Not Seasonally Adjusted
A10: Frequency: Annual | B10: annual average
A11: observation_date | B11: DGS10
A12: 1979-01-01 | B12: 9.432943548
A13: 1980-01-01 | B13: 11.43344
A14: 1981-01-01 | B14: 13.92136546
A15: 1982-01-01 | B15: 13.00550201
A16: 1983-01-01 | B16: 11.103
A17: 1984-01-01 | B17: 12.45811245
A18: 1985-01-01 | B18: 10.61979839
A19: 1986-01-01 | B19: 7.67284
A20: 1987-01-01 | B20: 8.39268
A21: 1988-01-01 | B21: 8.848
A22: 1989-01-01 | B22: 8.49372
A23: 1990-01-01 | B23: 8.5524
A24: 1991-01-01 | B24: 7.86236
A25: 1992-01-01 | B25: 7.008844622
A26: 1993-01-01 | B26: 5.86628
A27: 1994-01-01 | B27: 7.085180723
A28: 1995-01-01 | B28: 6.57392
A29: 1996-01-01 | B29: 6.443531746
A30: 1997-01-01 | B30: 6.35396
A31: 1998-01-01 | B31: 5.26288
A32: 1999-01-01 | B32: 5.646135458
A33: 2000-01-01 | B33: 6.030278884
A34: 2001-01-01 | B34: 5.020685484
A35: 2002-01-01 | B35: 4.61308
A36: 2003-01-01 | B36: 4.01388
A37: 2004-01-01 | B37: 4.27132
A38: 2005-01-01 | B38: 4.28888
A39: 2006-01-01 | B39: 4.795
A40: 2007-01-01 | B40: 4.634661355
A41: 2008-01-01 | B41: 3.664262948
A42: 2009-01-01 | B42: 3.26412
A43: 2010-01-01 | B43: 3.215059761
A44: 2011-01-01 | B44: 2.78164
A45: 2012-01-01 | B45: 1.80344
A46: 2013-01-01 | B46: 2.35016
A47: 2014-01-01 | B47: 2.53956
A48: 2015-01-01 | B48: 2.138286853
A49: 2016-01-01 | B49: 1.83744
A50: 2017-01-01 | B50: 2.32948
A51: 2018-01-01 | B51: 2.91124498
A52: 2019-01-01 | B52: 2.1414
A53: 2020-01-01 | B53: 0.8892031873
A54: 2021-01-01 | B54: 1.44626506

Sheet TN5y
A1: FRED Graph Observations
A2: Federal Reserve Economic Data
A3: Link: https://fred.stlouisfed.org
A4: Help: https://fredhelp.stlouisfed.org
A5: Economic Research Division
A6: Federal Reserve Bank of St. Louis
A8: DGS5 | B8: Market Yield on U.S. Treasury Securities at 5-Year Constant Maturity, Percent, Annual, Not Seasonally Adjusted
A10: Frequency: Annual | B10: annual average
A11: observation_date | B11: DGS5
A12: 1979-01-01 | B12: 9.50733871
A13: 1980-01-01 | B13: 11.44552
A14: 1981-01-01 | B14: 14.24947791
A15: 1982-01-01 | B15: 13.00951807
A16: 1983-01-01 | B16: 10.7948
A17: 1984-01-01 | B17: 12.26192771
A18: 1985-01-01 | B18: 10.12362903
A19: 1986-01-01 | B19: 7.30268
A20: 1987-01-01 | B20: 7.94312
A21: 1988-01-01 | B21: 8.475
A22: 1989-01-01 | B22: 8.50036
A23: 1990-01-01 | B23: 8.37328
A24: 1991-01-01 | B24: 7.3746
A25: 1992-01-01 | B25: 6.186175299
A26: 1993-01-01 | B26: 5.14204
A27: 1994-01-01 | B27: 6.688273092
A28: 1995-01-01 | B28: 6.38332
A29: 1996-01-01 | B29: 6.182103175
A30: 1997-01-01 | B30: 6.22468
A31: 1998-01-01 | B31: 5.15232
A32: 1999-01-01 | B32: 5.550039841
A33: 2000-01-01 | B33: 6.157768924
A34: 2001-01-01 | B34: 4.556693548
A35: 2002-01-01 | B35: 3.81572
A36: 2003-01-01 | B36: 2.96616
A37: 2004-01-01 | B37: 3.42596
A38: 2005-01-01 | B38: 4.04636
A39: 2006-01-01 | B39: 4.74876
A40: 2007-01-01 | B40: 4.431593625
A41: 2008-01-01 | B41: 2.803545817
A42: 2009-01-01 | B42: 2.1978
A43: 2010-01-01 | B43: 1.930159363
A44: 2011-01-01 | B44: 1.51824
A45: 2012-01-01 | B45: 0.76172
A46: 2013-01-01 | B46: 1.17208
A47: 2014-01-01 | B47: 1.6416
A48: 2015-01-01 | B48: 1.531035857
A49: 2016-01-01 | B49: 1.33472
A50: 2017-01-01 | B50: 1.90964
A51: 2018-01-01 | B51: 2.748995984
A52: 2019-01-01 | B52: 1.953
A53: 2020-01-01 | B53: 0.5330677291
A54: 2021-01-01 | B54: 0.8569076305

Sheet TB3m
A1: FRED Graph Observations
A2: Federal Reserve Economic Data
A3: Link: https://fred.stlouisfed.org
A4: Help: https://fredhelp.stlouisfed.org
A5: Economic Research Division
A6: Federal Reserve Bank of St. Louis
A8: DGS3MO | B8: Market Yield on U.S. Treasury Securities at 3-Month Constant Maturity, Percent, Annual, Not Seasonally Adjusted
A10: Frequency: Annual | B10: annual average
A11: observation_date | B11: DGS3MO
A12: 1982-01-01 | B12: 11.08991968
A13: 1983-01-01 | B13: 8.95132
A14: 1984-01-01 | B14: 9.918554217
A15: 1985-01-01 | B15: 7.723830645
A16: 1986-01-01 | B16: 6.14636
A17: 1987-01-01 | B17: 5.96488
A18: 1988-01-01 | B18: 6.88592
A19: 1989-01-01 | B19: 8.39456
A20: 1990-01-01 | B20: 7.74648
A21: 1991-01-01 | B21: 5.5396
A22: 1992-01-01 | B22: 3.514342629
A23: 1993-01-01 | B23: 3.066
A24: 1994-01-01 | B24: 4.37248996
A25: 1995-01-01 | B25: 5.66036
A26: 1996-01-01 | B26: 5.145595238
A27: 1997-01-01 | B27: 5.20144
A28: 1998-01-01 | B28: 4.90696
A29: 1999-01-01 | B29: 4.777211155
A30: 2000-01-01 | B30: 5.999920319
A31: 2001-01-01 | B31: 3.478669355
A32: 2002-01-01 | B32: 1.63532
A33: 2003-01-01 | B33: 1.02804
A34: 2004-01-01 | B34: 1.39872
A35: 2005-01-01 | B35: 3.21612
A36: 2006-01-01 | B36: 4.85156
A37: 2007-01-01 | B37: 4.480956175
A38: 2008-01-01 | B38: 1.39685259
A39: 2009-01-01 | B39: 0.15092
A40: 2010-01-01 | B40: 0.1384462151
A41: 2011-01-01 | B41: 0.05284
A42: 2012-01-01 | B42: 0.0876
A43: 2013-01-01 | B43: 0.05708
A44: 2014-01-01 | B44: 0.03272
A45: 2015-01-01 | B45: 0.05250996016
A46: 2016-01-01 | B46: 0.31936
A47: 2017-01-01 | B47: 0.94896
A48: 2018-01-01 | B48: 1.971686747
A49: 2019-01-01 | B49: 2.10576
A50: 2020-01-01 | B50: 0.3602788845
A51: 2021-01-01 | B51: 0.04481927711

Sheet MORT
A1: FRED Graph Observations
A2: Federal Reserve Economic Data
A3: Link: https://fred.stlouisfed.org
A4: Help: https://fredhelp.stlouisfed.org
A5: Economic Research Division
A6: Federal Reserve Bank of St. Louis
A8: MORTGAGE30US | B8: 30-Year Fixed Rate Mortgage Average in the United States, Percent, Annual, Not Seasonally Adjusted
A10: Frequency: Annual | B10: annual average
A11: observation_date | B11: MORTGAGE30US
A12: 1979-01-01 | B12: 11.20365385
A13: 1980-01-01 | B13: 13.74211538
A14: 1981-01-01 | B14: 16.64150943
A15: 1982-01-01 | B15: 16.04365385
A16: 1983-01-01 | B16: 13.23538462
A17: 1984-01-01 | B17: 13.87769231
A18: 1985-01-01 | B18: 12.43019231
A19: 1986-01-01 | B19: 10.18730769
A20: 1987-01-01 | B20: 10.21339623
A21: 1988-01-01 | B21: 10.34173077
A22: 1989-01-01 | B22: 10.31942308
A23: 1990-01-01 | B23: 10.12942308
A24: 1991-01-01 | B24: 9.246538462
A25: 1992-01-01 | B25: 8.390188679
A26: 1993-01-01 | B26: 7.314615385
A27: 1994-01-01 | B27: 8.380769231
A28: 1995-01-01 | B28: 7.934615385
A29: 1996-01-01 | B29: 7.806153846
A30: 1997-01-01 | B30: 7.598846154
A31: 1998-01-01 | B31: 6.942641509
A32: 1999-01-01 | B32: 7.44
A33: 2000-01-01 | B33: 8.053461538
A34: 2001-01-01 | B34: 6.967884615
A35: 2002-01-01 | B35: 6.537307692
A36: 2003-01-01 | B36: 5.826981132
A37: 2004-01-01 | B37: 5.839230769
A38: 2005-01-01 | B38: 5.866730769
A39: 2006-01-01 | B39: 6.413269231
A40: 2007-01-01 | B40: 6.337307692
A41: 2008-01-01 | B41: 6.027169811
A42: 2009-01-01 | B42: 5.036538462
A43: 2010-01-01 | B43: 4.689807692
A44: 2011-01-01 | B44: 4.447884615
A45: 2012-01-01 | B45: 3.6575
A46: 2013-01-01 | B46: 3.975576923
A47: 2014-01-01 | B47: 4.168867925
A48: 2015-01-01 | B48: 3.850576923
A49: 2016-01-01 | B49: 3.654038462
A50: 2017-01-01 | B50: 3.989807692
A51: 2018-01-01 | B51: 4.544615385
A52: 2019-01-01 | B52: 3.935769231
A53: 2020-01-01 | B53: 3.111698113
A54: 2021-01-01 | B54: 2.957692308

Sheet BBB
A1: FRED Graph Observations
A2: Federal Reserve Economic Data
A3: Link: https://fred.stlouisfed.org
A4: Help: https://fredhelp.stlouisfed.org
A5: Economic Research Division
A6: Federal Reserve Bank of St. Louis
A8: BAMLC0A4CBBBEY | B8: ICE BofA BBB US Corporate Index Effective Yield, Percent, Annual, Not Seasonally Adjusted
A10: Frequency: Annual | B10: annual average
A11: observation_date | B11: BAMLC0A4CBBBEY
A12: 1997-01-01 | B12: 7.205953307
A13: 1998-01-01 | B13: 6.732900763
A14: 1999-01-01 | B14: 7.421363636
A15: 2000-01-01 | B15: 8.304904215
A16: 2001-01-01 | B16: 7.196744186
A17: 2002-01-01 | B17: 7.032824427
A18: 2003-01-01 | B18: 5.292413793
A19: 2004-01-01 | B19: 5.02973384
A20: 2005-01-01 | B20: 5.504022989
A21: 2006-01-01 | B21: 6.039269231
A22: 2007-01-01 | B22: 6.114961538
A23: 2008-01-01 | B23: 7.366145038
A24: 2009-01-01 | B24: 7.377977099
A25: 2010-01-01 | B25: 4.820304183
A26: 2011-01-01 | B26: 4.47137931
A27: 2012-01-01 | B27: 3.830384615
A28: 2013-01-01 | B28: 3.700269231
A29: 2014-01-01 | B29: 3.591302682
A30: 2015-01-01 | B30: 3.856153846
A31: 2016-01-01 | B31: 3.727519084
A32: 2017-01-01 | B32: 3.587038462
A33: 2018-01-01 | B33: 4.310996169
A34: 2019-01-01 | B34: 3.729501916
A35: 2020-01-01 | B35: 2.837557252
A36: 2021-01-01 | B36: 2.350653846

Sheet PRIME
A1: FRED Graph Observations
A2: Federal Reserve Economic Data
A3: Link: https://fred.stlouisfed.org
A4: Help: https://fredhelp.stlouisfed.org
A5: Economic Research Division
A6: Federal Reserve Bank of St. Louis
A8: DPRIME | B8: Bank Prime Loan Rate, Percent, Annual, Not Seasonally Adjusted
A10: Frequency: Annual | B10: annual average
A11: observation_date | B11: DPRIME
A12: 1979-01-01 | B12: 12.66283525
A13: 1980-01-01 | B13: 15.27901961
A14: 1981-01-01 | B14: 18.861
A15: 1982-01-01 | B15: 14.85358566
A16: 1983-01-01 | B16: 10.788
A17: 1984-01-01 | B17: 12.05555556
A18: 1985-01-01 | B18: 9.9312749
A19: 1986-01-01 | B19: 8.324
A20: 1987-01-01 | B20: 8.203373016
A21: 1988-01-01 | B21: 9.318
A22: 1989-01-01 | B22: 10.872
A23: 1990-01-01 | B23: 10.008
A24: 1991-01-01 | B24: 8.462
A25: 1992-01-01 | B25: 6.250996016
A26: 1993-01-01 | B26: 6
A27: 1994-01-01 | B27: 7.144
A28: 1995-01-01 | B28: 8.831
A29: 1996-01-01 | B29: 8.271084337
A30: 1997-01-01 | B30: 8.443227092
A31: 1998-01-01 | B31: 8.355577689
A32: 1999-01-01 | B32: 7.997047244
A33: 2000-01-01 | B33: 9.235119048
A34: 2001-01-01 | B34: 6.938
A35: 2002-01-01 | B35: 4.67687747
A36: 2003-01-01 | B36: 4.121541502
A37: 2004-01-01 | B37: 4.343873518
A38: 2005-01-01 | B38: 6.189243028
A39: 2006-01-01 | B39: 7.961155378
A40: 2007-01-01 | B40: 8.053784861
A41: 2008-01-01 | B41: 5.070866142
A42: 2009-01-01 | B42: 3.25
A43: 2010-01-01 | B43: 3.25
A44: 2011-01-01 | B44: 3.25
A45: 2012-01-01 | B45: 3.25
A46: 2013-01-01 | B46: 3.25
A47: 2014-01-01 | B47: 3.25
A48: 2015-01-01 | B48: 3.259920635
A49: 2016-01-01 | B49: 3.510956175
A50: 2017-01-01 | B50: 4.097222222
A51: 2018-01-01 | B51: 4.902390438
A52: 2019-01-01 | B52: 5.287549407
A53: 2020-01-01 | B53: 3.530632411
A54: 2021-01-01 | B54: 3.25

Sheet CPI
A1: FRED Graph Observations
A2: Federal Reserve Economic Data
A3: Link: https://fred.stlouisfed.org
A4: Help: https://fredhelp.stlouisfed.org
A5: Economic Research Division
A6: Federal Reserve Bank of St. Louis
A8: CPALTT01USM657N | B8: Consumer Price Index: Total All Items for the United States, Growth Rate Previous Period, Annual, Not Seasonally Adjusted
A10: Frequency: Annual | B10: annual average
A11: observation_date | B11: CPALTT01USM657N
A12: 1979-01-01 | B12: 1.045637832
A13: 1980-01-01 | B13: 0.988318574
A14: 1981-01-01 | B14: 0.7151381459
A15: 1982-01-01 | B15: 0.3146447778
A16: 1983-01-01 | B16: 0.3107652036
A17: 1984-01-01 | B17: 0.3234076133
A18: 1985-01-01 | B18: 0.3112220634
A19: 1986-01-01 | B19: 0.09142508888
A20: 1987-01-01 | B20: 0.3623907228
A21: 1988-01-01 | B21: 0.3611422526
A22: 1989-01-01 | B22: 0.3794011072
A23: 1990-01-01 | B23: 0.4956083884
A24: 1991-01-01 | B24: 0.2519417214
A25: 1992-01-01 | B25: 0.2386698891
A26: 1993-01-01 | B26: 0.2263176419
A27: 1994-01-01 | B27: 0.2203021267
A28: 1995-01-01 | B28: 0.209242784
A29: 1996-01-01 | B29: 0.2728777826
A30: 1997-01-01 | B30: 0.1408758097
A31: 1998-01-01 | B31: 0.1333770765
A32: 1999-01-01 | B32: 0.2212236927
A33: 2000-01-01 | B33: 0.2782956892
A34: 2001-01-01 | B34: 0.1289750689
A35: 2002-01-01 | B35: 0.1962016403
A36: 2003-01-01 | B36: 0.1558327972
A37: 2004-01-01 | B37: 0.2677957369
A38: 2005-01-01 | B38: 0.2816586791
A39: 2006-01-01 | B39: 0.2101738288
A40: 2007-01-01 | B40: 0.3344085104
A41: 2008-01-01 | B41: 0.01154409041
A42: 2009-01-01 | B42: 0.2243710287
A43: 2010-01-01 | B43: 0.1238875778
A44: 2011-01-01 | B44: 0.2442304455
A45: 2012-01-01 | B45: 0.1446365427
A46: 2013-01-01 | B46: 0.124656111
A47: 2014-01-01 | B47: 0.06349796432
A48: 2015-01-01 | B48: 0.06115335979
A49: 2016-01-01 | B49: 0.1714691886
A50: 2017-01-01 | B50: 0.1743157934
A51: 2018-01-01 | B51: 0.1581660701
A52: 2019-01-01 | B52: 0.1886817958
A53: 2020-01-01 | B53: 0.1133211141
A54: 2021-01-01 | B54: 0

Sheet rDI
A1: FRED Graph Observations
A2: Federal Reserve Economic Data
A3: Link: https://fred.stlouisfed.org
A4: Help: https://fredhelp.stlouisfed.org
A5: Economic Research Division
A6: Federal Reserve Bank of St. Louis
A8: DSPIC96 | B8: Real Disposable Personal Income, Billions of Chained 2012 Dollars, Annual, Seasonally Adjusted Annual Rate
A10: Frequency: Annual | B10: annual average
A11: observation_date | B11: DSPIC96 | C11: rDIg
A12: 1979-01-01 | B12: 4879.4
A13: 1980-01-01 | B13: 4914.458333 | C13: =(B13-B12)/B12 -> 0.007184968097
A14: 1981-01-01 | B14: 5034.25 | C14: =(B14-B13)/B13 -> 0.02437535503
A15: 1982-01-01 | B15: 5145.391667 | C15: 0.02207710516
A16: 1983-01-01 | B16: 5322.808333 | C16: 0.03448069227
A17: 1984-01-01 | B17: 5688.058333 | C17: 0.06861979187
A18: 1985-01-01 | B18: 5859.275 | C18: 0.03010107433
A19: 1986-01-01 | B19: 6081.841667 | C19: 0.03798535939
A20: 1987-01-01 | B20: 6216.175 | C20: 0.02208760778
A21: 1988-01-01 | B21: 6508.583333 | C21: 0.04703991334
A22: 1989-01-01 | B22: 6699.375 | C22: 0.02931385478
A23: 1990-01-01 | B23: 6830.775 | C23: 0.01961376994
A24: 1991-01-01 | B24: 6880.233333 | C24: 0.007240515656
A25: 1992-01-01 | B25: 7167.05 | C25: 0.04168705519
A26: 1993-01-01 | B26: 7285.5 | C26: 0.01652702297
A27: 1994-01-01 | B27: 7485.041667 | C27: 0.02738887745
A28: 1995-01-01 | B28: 7733.983333 | C28: 0.03325855456
A29: 1996-01-01 | B29: 7979.708333 | C29: 0.03177211398
A30: 1997-01-01 | B30: 8271.791667 | C30: 0.03660325931
A31: 1998-01-01 | B31: 8757.533333 | C31: 0.0587226669
A32: 1999-01-01 | B32: 9053.066667 | C32: 0.03374618424
A33: 2000-01-01 | B33: 9501.216667 | C33: 0.04950256267
A34: 2001-01-01 | B34: 9759.233333 | C34: 0.02715617123
A35: 2002-01-01 | B35: 10047.83333 | C35: 0.02957199507
A36: 2003-01-01 | B36: 10309.75833 | C36: 0.02606780898
A37: 2004-01-01 | B37: 10652.74167 | C37: 0.03326783444
A38: 2005-01-01 | B38: 10811.36667 | C38: 0.01489053288
A39: 2006-01-01 | B39: 11226.59167 | C39: 0.03840633777
A40: 2007-01-01 | B40: 11492.83333 | C40: 0.02371527126
A41: 2008-01-01 | B41: 11630.125 | C41: 0.01194585031
A42: 2009-01-01 | B42: 11618.25833 | C42: -0.001020338704
A43: 2010-01-01 | B43: 11861.325 | C43: 0.02092109331
A44: 2011-01-01 | B44: 12107.26667 | C44: 0.0207347549
A45: 2012-01-01 | B45: 12504.43333 | C45: 0.03280399099
A46: 2013-01-01 | B46: 12350.075 | C46: -0.01234428856
A47: 2014-01-01 | B47: 12821.78333 | C47: 0.0381947748
A48: 2015-01-01 | B48: 13330.075 | C48: 0.0396428214
A49: 2016-01-01 | B49: 13575.71667 | C49: 0.01842762825
A50: 2017-01-01 | B50: 13956.71667 | C50: 0.02806481671
A51: 2018-01-01 | B51: 14429.29167 | C51: 0.0338600411
A52: 2019-01-01 | B52: 14755.63333 | C52: 0.02261661031
A53: 2020-01-01 | B53: 15677.35 | C53: 0.06246540869
A54: 2021-01-01 | B54: 0 | C54: 0

Sheet R_code
